Ref No,Fund Type,Dept,Cost Centre Description    ,Description    ,Creditor Name    ,GL Code Net Amount,Payment date        
2,Revenue,CAHD,Central - Commissioned Services,Permanent Residential,1 St Georges House,13333.52, 17-Nov-2020
3,Revenue,CAHD,CSC - LAC Housing Support Grants,Grants to Voluntary Bodies,1625 Independent People,3343.00, 05-Nov-2020
4,Revenue,CAHD,CSC - LAC Housing Support Grants,Grants to Voluntary Bodies,1625 Independent People,3343.00, 27-Nov-2020
5,Revenue,CAHD,CSC - Care Leavers Independent Living,Independent Living,16Pluscare Support Solutions,24404.58, 06-Nov-2020
6,Revenue,CAHD,South - Commissioned Services,Permanent Residential,2Nd Floor Building,5630.76, 17-Nov-2020
7,Revenue,CAHD,South - Commissioned Services,Permanent Residential,2Nd Floor Building,2806.12, 17-Nov-2020
8,Revenue,CAHD,Central - Commissioned Services,Other Small Contracts,3 Trees Community Support Ltd,5131.84, 02-Nov-2020
9,Revenue,CAHD,Central - Commissioned Services,Supported Living,3 Trees Community Support Ltd,4964.41, 02-Nov-2020
10,Revenue,CAHD,Central - Commissioned Services,Other Small Contracts,3 Trees Community Support Ltd,5135.33, 02-Nov-2020
11,Revenue,CAHD,Central - Commissioned Services,Supported Living,3 Trees Community Support Ltd,5175.06, 02-Nov-2020
12,Revenue,CAHD,Central - Commissioned Services,Other Small Contracts,3 Trees Community Support Ltd,5118.89, 19-Nov-2020
13,Revenue,CAHD,Central - Commissioned Services,Supported Living,3 Trees Community Support Ltd,5128.10, 19-Nov-2020
14,Revenue,CAHD,South - Commissioned Services,Permanent Nursing,3Rd Floor  The Aspect,3593.88, 17-Nov-2020
15,Revenue,CAHD,North - Community based support,Permanent Nursing,3Rd Floor  The Aspect,3234.72, 17-Nov-2020
16,Revenue,CAHD,South - Commissioned Services,Permanent Nursing,3Rd Floor  The Aspect,2287.36, 17-Nov-2020
17,Revenue,CAHD,Central - Commissioned Services,Permanent Residential,5Th Floor Harlech Court,15254.92, 17-Nov-2020
18,Revenue,CAHD,18-25 Year Olds,Permanent Residential,5Th Floor Harlech Court,309728.44, 17-Nov-2020
19,Revenue,CAHD,18-25 Year Olds,Permanent Residential,5Th Floor Harlech Court,18219.32, 17-Nov-2020
20,Revenue,CAHD,South - Commissioned Services,Permanent Residential,5Th Floor Harlech Court,17000.48, 17-Nov-2020
21,Revenue,CAHD,South - Commissioned Services,Permanent Residential,5Th Floor Harlech Court,10627.92, 17-Nov-2020
22,Revenue,CAHD,S28A cases,Permanent Residential,5Th Floor Harlech Court,11122.76, 17-Nov-2020
23,Revenue,CAHD,South - Commissioned Services,Permanent Residential,5Th Floor Harlech Court,11665.12, 17-Nov-2020
24,Revenue,CAHD,North - Community based support,Permanent Residential,5Th Floor Harlech Court,12498.56, 17-Nov-2020
25,Revenue,CAHD,North - Community based support,Permanent Residential,5Th Floor Harlech Court,10537.24, 17-Nov-2020
26,Revenue,CAHD,North - Community based support,Permanent Residential,5Th Floor Harlech Court,9071.12, 17-Nov-2020
27,Revenue,CAHD,CSC - Vinney Green Secure Unit,R & M by Departments,A E Horder (Contracting) Limited,2577.38, 06-Nov-2020
28,Revenue,CAHD,Alexandra Way,Mechanical & Electrical Maintenance,A E Horder (Contracting) Limited,931.92, 20-Nov-2020
29,Revenue,CAHD,EARLY YEARS DEPRIVATION PAYMENT,Preventative Assistance,Abacus Pre School @ Mangotsfield,854.20, 09-Nov-2020
30,Revenue,CAHD,Early Years Inclusion Fund,Other Public Bodies,Abacus Pre-School,4250.00, 25-Nov-2020
31,Revenue,CAHD,Early Years Inclusion Fund,Other Public Bodies,Abacus Pre-School,1000.00, 27-Nov-2020
32,Revenue,CAHD,EARLY YEARS DEPRIVATION PAYMENT,Preventative Assistance,Abacus Pre-School (Meadowbrook),991.49, 09-Nov-2020
33,Revenue,CAHD,Early Years Pupil Premium Grant,Preventative Assistance,Abacus Pre-School (Meadowbrook),516.75, 09-Nov-2020
34,Revenue,CAHD,EARLY YEARS DEPRIVATION PAYMENT,Preventative Assistance,Abacus Pre-School @ Stoke Gifford,503.37, 09-Nov-2020
35,Revenue,CAHD,South - Commissioned Services,Permanent Nursing,Acacia House,2996.00, 17-Nov-2020
36,Revenue,CAHD,Post 16 LDD Transport to college,Bus & Rail Passes (not one off tickets),Acorn Bus & Coach Limited,2880.00, 12-Nov-2020
37,Revenue,CAHD,Jointly Funded H&SC Packages,Permanent Residential,Acorn Care Providers,2310.92, 17-Nov-2020
38,Revenue,CAHD,Section 117 Placements MH Younger,Permanent Residential,Acorn Care Providers,5481.28, 17-Nov-2020
39,Revenue,CAHD,North - S117,Permanent Residential,Acorn Care Providers,3978.00, 17-Nov-2020
40,Revenue,CAHD,Jointly Funded H&SC Packages,Permanent Residential,Acorn Care Providers,2142.00, 17-Nov-2020
41,Revenue,CAHD,MH Purchasing - Younger,Permanent Residential,Acorn Care Providers,6382.04, 17-Nov-2020
42,Revenue,CAHD,Jointly Funded H&SC Packages,Permanent Residential,Acorn Care Providers,3436.48, 17-Nov-2020
43,Revenue,CAHD,MH Purchasing - Younger,Permanent Residential,Acorn Care Providers,6266.88, 17-Nov-2020
44,Revenue,CAHD,Training - Adult Services,Training Expenses,Acorn Health & Safety Limited,477.00, 19-Nov-2020
45,Revenue,CAHD,CSC - Agency Fostering,Foster Parent Allowances,Action for Children,3897.01, 20-Nov-2020
46,Revenue,CAHD,CSC - Agency Fostering,Foster Parent Allowances,Action for Children,3660.17, 20-Nov-2020
47,Revenue,CAHD,CSC - Agency Fostering,Foster Parent Allowances,Action for Children,3660.17, 20-Nov-2020
48,Revenue,CAHD,South - Commissioned Services,Permanent Nursing,Administration And Revenue Centre,2789.80, 17-Nov-2020
49,Revenue,CAHD,South Glos Users in South Glos Homes,Permanent Nursing,Administration And Revenue Centre,735.68, 17-Nov-2020
50,Revenue,CAHD,South - Commissioned Services,Permanent Nursing,Administration And Revenue Centre,2445.96, 17-Nov-2020
51,Revenue,CAHD,South - Commissioned Services,Permanent Nursing,Administration And Revenue Centre,2445.96, 17-Nov-2020
52,Revenue,CAHD,South Glos Users in South Glos Homes,Permanent Nursing,Administration And Revenue Centre,735.68, 17-Nov-2020
53,Revenue,CAHD,South - Commissioned Services,Permanent Residential,Administration And Revenue Centre,2511.80, 17-Nov-2020
54,Revenue,CAHD,South Glos Users in South Glos Homes,Permanent Nursing,Administration And Revenue Centre,735.68, 17-Nov-2020
55,Revenue,CAHD,South - Commissioned Services,Permanent Nursing,Administration And Revenue Centre,2949.60, 17-Nov-2020
56,Revenue,CAHD,South Glos Users in South Glos Homes,Permanent Nursing,Administration And Revenue Centre,735.68, 17-Nov-2020
57,Revenue,CAHD,South Glos Users in South Glos Homes,Permanent Nursing,Administration And Revenue Centre,735.68, 17-Nov-2020
58,Revenue,CAHD,South Glos Users in South Glos Homes,Permanent Nursing,Administration And Revenue Centre,735.68, 17-Nov-2020
59,Revenue,CAHD,South Glos Users in South Glos Homes,Permanent Nursing,Administration And Revenue Centre,735.68, 17-Nov-2020
60,Revenue,CAHD,South - Commissioned Services,Permanent Nursing,Administration And Revenue Centre,2949.60, 17-Nov-2020
61,Revenue,CAHD,South Glos Users in South Glos Homes,Permanent Nursing,Administration And Revenue Centre,735.68, 17-Nov-2020
62,Revenue,CAHD,South - Commissioned Services,Permanent Residential,Administration And Revenue Centre,3203.04, 17-Nov-2020
63,Revenue,CAHD,South - Commissioned Services,Permanent Residential,Administration And Revenue Centre,750.00, 17-Nov-2020
64,Revenue,CAHD,South - Commissioned Services,Permanent Residential,Administration And Revenue Centre,2250.00, 17-Nov-2020
65,Revenue,CAHD,South Glos Users in South Glos Homes,Permanent Nursing,Administration And Revenue Centre,735.68, 17-Nov-2020
66,Revenue,CAHD,South Glos Users in South Glos Homes,Permanent Nursing,Administration And Revenue Centre,735.68, 17-Nov-2020
67,Revenue,CAHD,South - Commissioned Services,Permanent Residential,Administration And Revenue Centre,3366.00, 17-Nov-2020
68,Revenue,CAHD,South - Commissioned Services,Permanent Nursing,Administration And Revenue Centre,2924.56, 17-Nov-2020
69,Revenue,CAHD,South - Commissioned Services,Permanent Residential,Administration And Revenue Centre,9028.57, 17-Nov-2020
70,Revenue,CAHD,South - Commissioned Services,Permanent Residential,Administration And Revenue Centre,3200.00, 17-Nov-2020
71,Revenue,CAHD,South - Commissioned Services,Fees & Charges Income - General,Administration And Revenue Centre,3222.08, 17-Nov-2020
72,Revenue,CAHD,North - Community based support,Respite Planned - Residential,Administration And Revenue Centre,6921.43, 17-Nov-2020
73,Revenue,CAHD,South - Commissioned Services,Permanent Nursing,Administration And Revenue Centre,2511.80, 17-Nov-2020
74,Revenue,CAHD,South Glos Users in South Glos Homes,Permanent Nursing,Administration And Revenue Centre,735.68, 17-Nov-2020
75,Revenue,CAHD,South - Commissioned Services,Permanent Nursing,Administration And Revenue Centre,2445.96, 17-Nov-2020
76,Revenue,CAHD,South Glos Users in South Glos Homes,Permanent Nursing,Administration And Revenue Centre,735.68, 17-Nov-2020
77,Revenue,CAHD,South - Commissioned Services,Permanent Nursing,Administration And Revenue Centre,2445.96, 17-Nov-2020
78,Revenue,CAHD,South Glos Users in South Glos Homes,Permanent Nursing,Administration And Revenue Centre,735.68, 17-Nov-2020
79,Revenue,CAHD,South - Commissioned Services,Permanent Residential,Administration And Revenue Centre,3190.56, 17-Nov-2020
80,Revenue,CAHD,South - Commissioned Services,Permanent Nursing,Administration And Revenue Centre,2445.96, 17-Nov-2020
81,Revenue,CAHD,South Glos Users in South Glos Homes,Permanent Nursing,Administration And Revenue Centre,735.68, 17-Nov-2020
82,Revenue,CAHD,North - Community based support,Respite Planned - Nursing,Administration And Revenue Centre,4342.86, 17-Nov-2020
83,Revenue,CAHD,North - Community based support,Respite Planned - Nursing,Administration And Revenue Centre,3257.14, 17-Nov-2020
84,Revenue,CAHD,South - Commissioned Services,Permanent Residential,Administration And Revenue Centre,2949.60, 17-Nov-2020
85,Revenue,CAHD,South Glos Users in South Glos Homes,Permanent Nursing,Administration And Revenue Centre,735.68, 17-Nov-2020
86,Revenue,CAHD,North - Community based support,Permanent Nursing,Administration And Revenue Centre,2367.00, 17-Nov-2020
87,Revenue,CAHD,South - Commissioned Services,Other Small Contracts,Advantedge Commercial Finance Limited,816.48, 02-Nov-2020
88,Revenue,CAHD,South - Commissioned Services,Other Small Contracts,Advantedge Commercial Finance Limited,680.40, 02-Nov-2020
89,Revenue,CAHD,South - Commissioned Services,Other Small Contracts,Advantedge Commercial Finance Limited,2449.44, 02-Nov-2020
90,Revenue,CAHD,South - Commissioned Services,Other Small Contracts,Advantedge Commercial Finance Limited,972.00, 02-Nov-2020
91,Revenue,CAHD,South - Commissioned Services,Other Small Contracts,Advantedge Commercial Finance Limited,1355.94, 02-Nov-2020
92,Revenue,CAHD,South - Commissioned Services,Other Small Contracts,Advantedge Commercial Finance Limited,1224.72, 25-Nov-2020
93,Revenue,CAHD,South - Commissioned Services,Other Small Contracts,Advantedge Commercial Finance Limited,816.48, 25-Nov-2020
94,Revenue,CAHD,South - Commissioned Services,Other Small Contracts,Advantedge Commercial Finance Limited,675.54, 25-Nov-2020
95,Revenue,CAHD,South - Commissioned Services,Other Small Contracts,Advantedge Commercial Finance Limited,2449.44, 25-Nov-2020
96,Revenue,CAHD,South - Commissioned Services,Other Small Contracts,Advantedge Commercial Finance Limited,972.00, 25-Nov-2020
97,Revenue,CAHD,South - Commissioned Services,Other Small Contracts,Advantedge Commercial Finance Limited,670.68, 25-Nov-2020
98,Revenue,CAHD,South - Commissioned Services,Other Small Contracts,Advantedge Commercial Finance Limited,1360.80, 27-Nov-2020
99,Revenue,CAHD,Covid - ASC - Infection Control,Grants to Voluntary Bodies,Advantedge Commercial Finance Limited,5511.27, 20-Nov-2020
100,Revenue,CAHD,South - Commissioned Services,Day Care / Social Activities,Age Concern,634.08, 17-Nov-2020
101,Revenue,CAHD,Central - Commissioned Services,Day Care / Social Activities,Age Concern,546.72, 17-Nov-2020
102,Revenue,CAHD,Central - Commissioned Services,Day Care / Social Activities,Age Concern,546.72, 17-Nov-2020
103,Revenue,CAHD,Central - Commissioned Services,Day Care / Social Activities,Age Concern,634.08, 17-Nov-2020
104,Revenue,CAHD,South - Commissioned Services,Other Small Contracts,Agincare UK Limited,1497.30, 02-Nov-2020
105,Revenue,CAHD,Younger MH non-res purchasing,Other Small Contracts,Agincare UK Limited,77.28, 02-Nov-2020
106,Revenue,CAHD,South - Commissioned Services,Other Small Contracts,Agincare UK Limited,1627.71, 16-Nov-2020
107,Revenue,CAHD,Younger MH non-res purchasing,Other Small Contracts,Agincare UK Limited,154.56, 16-Nov-2020
108,Revenue,CAHD,South - Commissioned Services,Other Small Contracts,Agincare UK Limited,1656.69, 19-Nov-2020
109,Revenue,CAHD,Younger MH non-res purchasing,Other Small Contracts,Agincare UK Limited,154.56, 19-Nov-2020
110,Revenue,CAHD,South - Commissioned Services,Other Small Contracts,Agincare UK Limited,1613.22, 26-Nov-2020
111,Revenue,CAHD,Younger MH non-res purchasing,Other Small Contracts,Agincare UK Limited,154.56, 26-Nov-2020
112,Revenue,CAHD,Extra Care Housing,Private & Voluntary Home Care,Agincare UK Limited,29078.70, 04-Nov-2020
113,Revenue,CAHD,Extra Care Housing,Private & Voluntary Home Care,Agincare UK Limited,2197.20, 11-Nov-2020
114,Revenue,CAHD,Covid - ASC - Infection Control,Grants to Voluntary Bodies,Agincare UK Limited,14213.27, 18-Nov-2020
115,Revenue,CAHD,Extra Care Housing,Private & Voluntary Home Care,Agincare UK Limited,2123.52, 11-Nov-2020
116,Revenue,CAHD,Extra Care Housing,Private & Voluntary Home Care,Agincare UK Limited,873.74, 13-Nov-2020
117,Revenue,CAHD,Prison Assessments & Costs,Other Supplies & Services,Agincare UK Limited,2784.25, 18-Nov-2020
118,Revenue,CAHD,Prison Assessments & Costs,Other Supplies & Services,Agincare UK Limited,2735.88, 27-Nov-2020
119,Revenue,CAHD,Central - Commissioned Services,Permanent Residential,Alexander House,12155.16, 17-Nov-2020
120,Revenue,CAHD,Covid 19 -Adult Social Care,Other Small Contracts,AliMo Care Ltd,9.56, 23-Nov-2020
121,Revenue,CAHD,South - Commissioned Services,Other Small Contracts,AliMo Care Ltd,846.06, 23-Nov-2020
122,Revenue,CAHD,North - Community based support,Other Small Contracts,AliMo Care Ltd,109.94, 23-Nov-2020
123,Revenue,CAHD,Covid 19 -Adult Social Care,Other Small Contracts,AliMo Care Ltd,9.56, 23-Nov-2020
124,Revenue,CAHD,South - Commissioned Services,Other Small Contracts,AliMo Care Ltd,936.88, 23-Nov-2020
125,Revenue,CAHD,North - Community based support,Other Small Contracts,AliMo Care Ltd,105.16, 23-Nov-2020
126,Revenue,CAHD,Covid 19 -Adult Social Care,Other Small Contracts,AliMo Care Ltd,9.56, 23-Nov-2020
127,Revenue,CAHD,South - Commissioned Services,Other Small Contracts,AliMo Care Ltd,898.64, 23-Nov-2020
128,Revenue,CAHD,North - Community based support,Other Small Contracts,AliMo Care Ltd,124.28, 23-Nov-2020
129,Revenue,CAHD,South - Commissioned Services,Other Small Contracts,AliMo Care Ltd,750.46, 23-Nov-2020
130,Revenue,CAHD,North - Community based support,Other Small Contracts,AliMo Care Ltd,129.06, 23-Nov-2020
131,Revenue,CAHD,Covid - ASC - Infection Control,Grants to Voluntary Bodies,AliMo Care Ltd,8266.90, 18-Nov-2020
132,Revenue,CAHD,North - Community based support,Permanent Nursing,Allambie Court,2320.44, 17-Nov-2020
133,Revenue,CAHD,Central - Commissioned Services,Permanent Residential,Alvony House Residential Care Home,3000.00, 17-Nov-2020
134,Revenue,CAHD,Schools Specific Grant Income,Other Public Bodies,Amberleigh Care Ltd,630.00, 19-Nov-2020
135,Revenue,CAHD,CSC - Residential Placements,Permanent Residential,Ambito Care and Education,19930.88, 06-Nov-2020
136,Revenue,CAHD,CSC - Agency Fostering,Foster Parent Allowances,Amicus Foster Care Ltd,4879.00, 03-Nov-2020
137,Revenue,CAHD,CSC - Agency Fostering,Foster Parent Allowances,Amicus Foster Care Ltd,4832.59, 03-Nov-2020
138,Revenue,CAHD,South - Commissioned Services,Other Supplies & Services,Anchor Hanover Group,3020.09, 12-Nov-2020
139,Revenue,CAHD,Younger MH non-res purchasing,Supported Living,Archcare Rehab Limited,1957.40, 17-Nov-2020
140,Revenue,CAHD,North - Community based support,Permanent Nursing,Argentum Lodge,4000.00, 17-Nov-2020
141,Revenue,CAHD,South - Commissioned Services,Permanent Residential,Ash View House,5529.44, 17-Nov-2020
142,Revenue,CAHD,Jointly Funded H&SC Packages,Permanent Residential,Ash View House,1133.64, 17-Nov-2020
143,Revenue,CAHD,S117 Placements PCT,Permanent Residential,Ash View House,7707.44, 17-Nov-2020
144,Revenue,CAHD,North - Community based support,Permanent Residential,Ash View House,7099.52, 17-Nov-2020
145,Revenue,CAHD,North - Community based support,Permanent Residential,Ash View House,7120.00, 17-Nov-2020
146,Revenue,CAHD,Section 117 Placements MH Younger,Permanent Residential,Ash View House,5022.60, 17-Nov-2020
147,Revenue,CAHD,Jointly Funded H&SC Packages,Permanent Residential,Ash View House,2152.60, 17-Nov-2020
148,Revenue,CAHD,South - S117,Permanent Residential,Ash View House,6826.64, 17-Nov-2020
149,Revenue,CAHD,South - Commissioned Services,Permanent Residential,Ash View House,6747.84, 17-Nov-2020
150,Revenue,CAHD,North - Community based support,Permanent Residential,Aspects 2 Limited,7231.88, 17-Nov-2020
151,Revenue,CAHD,CSC - Care Leavers Independent Living,Adults - Family Support,Aspirations Support Bristol Limited,15419.68, 11-Nov-2020
152,Revenue,CAHD,South - Commissioned Services,Adults - Family Support,Ategi Limited,1279.56, 02-Nov-2020
153,Revenue,CAHD,South - Commissioned Services,Adults - Family Support,Ategi Limited,1940.49, 03-Nov-2020
154,Revenue,CAHD,South - Commissioned Services,Adults - Family Support,Ategi Limited,17773.52, 11-Nov-2020
155,Revenue,CAHD,CSC - Vinney Green Secure Unit,Service Contracts (Premises),Atus Systems Limited,1950.00, 20-Nov-2020
156,Revenue,CAHD,South - Commissioned Services,Permanent Residential,Autism Specialised Care Homes,6506.88, 17-Nov-2020
157,Revenue,CAHD,Younger Adult Mental Health,Health Services (Third Party Payments),Avon & Wiltshire Mental Health,1693.33, 10-Nov-2020
158,Revenue,CAHD,Younger Adult Mental Health,Inter Directorate Recharges,Avon & Wiltshire Mental Health,14583.00, 25-Nov-2020
159,Revenue,CAHD,Alexandra Way,Mechanical & Electrical Maintenance,Avon Armour Limited,219.00, 30-Nov-2020
160,Revenue,CAHD,South - Commissioned Services,Permanent Nursing,Avon Lodge Care Centre,4341.36, 17-Nov-2020
161,Revenue,CAHD,South Glos Users in South Glos Homes,Permanent Nursing,Avon Lodge Care Centre,735.68, 17-Nov-2020
162,Revenue,CAHD,South Glos Users in South Glos Homes,Permanent Nursing,Avon Lodge Care Centre,735.68, 17-Nov-2020
163,Revenue,CAHD,South - Commissioned Services,Permanent Nursing,Avon Lodge Care Centre,4311.16, 17-Nov-2020
164,Revenue,CAHD,South Glos Users in South Glos Homes,Permanent Nursing,Avon Lodge Care Centre,735.68, 17-Nov-2020
165,Revenue,CAHD,South Glos Users in South Glos Homes,Permanent Nursing,Avon Lodge Care Centre,735.68, 17-Nov-2020
166,Revenue,CAHD,South - Commissioned Services,Permanent Nursing,Avon Lodge Care Centre,4537.76, 17-Nov-2020
167,Revenue,CAHD,South Glos Users in South Glos Homes,Permanent Nursing,Avon Lodge Care Centre,735.68, 17-Nov-2020
168,Revenue,CAHD,Central - Commissioned Services,Permanent Nursing,Avon Lodge Care Centre,1385.73, 17-Nov-2020
169,Revenue,CAHD,South Glos Users in South Glos Homes,Permanent Nursing,Avon Lodge Care Centre,735.68, 17-Nov-2020
170,Revenue,CAHD,South - Commissioned Services,Respite Planned - Nursing,Avon Lodge Care Centre,3613.71, 17-Nov-2020
171,Revenue,CAHD,South Glos Users in South Glos Homes,Permanent Nursing,Avon Lodge Care Centre,735.68, 17-Nov-2020
172,Revenue,CAHD,South - Commissioned Services,Permanent Nursing,Avon Lodge Care Centre,3448.20, 17-Nov-2020
173,Revenue,CAHD,South Glos Users in South Glos Homes,Permanent Nursing,Avon Lodge Care Centre,735.68, 17-Nov-2020
174,Revenue,CAHD,South - Commissioned Services,Permanent Nursing,Avon Lodge Care Centre,4311.16, 17-Nov-2020
175,Revenue,CAHD,South Glos Users in South Glos Homes,Permanent Nursing,Avon Lodge Care Centre,735.68, 17-Nov-2020
176,Revenue,CAHD,South - Commissioned Services,Permanent Nursing,Avon Lodge Care Centre,4347.88, 17-Nov-2020
177,Revenue,CAHD,South Glos Users in South Glos Homes,Permanent Nursing,Avon Lodge Care Centre,735.68, 17-Nov-2020
178,Revenue,CAHD,South Glos Users in South Glos Homes,Permanent Nursing,Avon Lodge Care Centre,735.68, 17-Nov-2020
179,Revenue,CAHD,South Glos Users in South Glos Homes,Permanent Nursing,Avon Lodge Care Centre,735.68, 17-Nov-2020
180,Revenue,CAHD,South - Commissioned Services,Permanent Nursing,Avon Lodge Care Centre,4403.84, 17-Nov-2020
181,Revenue,CAHD,South Glos Users in South Glos Homes,Permanent Nursing,Avon Lodge Care Centre,735.68, 17-Nov-2020
182,Revenue,CAHD,South - Commissioned Services,Permanent Nursing,Avon Lodge Care Centre,4311.16, 17-Nov-2020
183,Revenue,CAHD,South Glos Users in South Glos Homes,Permanent Nursing,Avon Lodge Care Centre,735.68, 17-Nov-2020
184,Revenue,CAHD,South Glos Users in South Glos Homes,Permanent Nursing,Avon Lodge Care Centre,735.68, 17-Nov-2020
185,Revenue,CAHD,Central - Commissioned Services,Permanent Nursing,Avon Lodge Care Centre,3884.80, 17-Nov-2020
186,Revenue,CAHD,South Glos Users in South Glos Homes,Permanent Nursing,Avon Lodge Care Centre,735.68, 17-Nov-2020
187,Revenue,CAHD,South - Commissioned Services,Respite Emergency - Residential,Avon Lodge Care Centre,1530.00, 17-Nov-2020
188,Revenue,CAHD,North - Community based support,Permanent Nursing,Avon Lodge Care Centre,5901.43, 17-Nov-2020
189,Revenue,CAHD,North - Community based support,Permanent Nursing,Avon Lodge Care Centre,3060.00, 17-Nov-2020
190,Revenue,CAHD,North - Community based support,Permanent Residential,Avon Lodge Care Centre,4695.71, 17-Nov-2020
191,Revenue,CAHD,North - Community based support,Permanent Residential,Avon Lodge Care Centre,3460.00, 17-Nov-2020
192,Revenue,CAHD,South - Commissioned Services,Permanent Nursing,Avon Lodge Care Centre,4530.04, 17-Nov-2020
193,Revenue,CAHD,South Glos Users in South Glos Homes,Permanent Nursing,Avon Lodge Care Centre,735.68, 17-Nov-2020
194,Revenue,CAHD,South - S117,Permanent Nursing,Avon Lodge Care Centre,3885.48, 17-Nov-2020
195,Revenue,CAHD,South Glos Users in South Glos Homes,Permanent Nursing,Avon Lodge Care Centre,735.68, 17-Nov-2020
196,Revenue,CAHD,South - Commissioned Services,Respite Planned - Nursing,Avon Lodge Care Centre,4942.86, 17-Nov-2020
197,Revenue,CAHD,South - Commissioned Services,Permanent Residential,Avon Lodge Care Centre,3060.00, 17-Nov-2020
198,Revenue,CAHD,South Glos Users in South Glos Homes,Permanent Nursing,Avon Lodge Care Centre,735.68, 17-Nov-2020
199,Revenue,CAHD,South Glos Users in South Glos Homes,Permanent Nursing,Avon Lodge Care Centre,735.68, 17-Nov-2020
200,Revenue,CAHD,South - Commissioned Services,Permanent Residential,Avon Valley Care Home,3960.00, 17-Nov-2020
201,Revenue,CAHD,South - Commissioned Services,Permanent Residential,Avon Valley Care Home,4000.00, 17-Nov-2020
202,Revenue,CAHD,South - Commissioned Services,Permanent Residential,Avon Valley Care Home,3960.00, 17-Nov-2020
203,Revenue,CAHD,South - Commissioned Services,Permanent Residential,Avon Valley Care Home,4000.00, 17-Nov-2020
204,Revenue,CAHD,South - Commissioned Services,Permanent Residential,Avon Valley Care Home,4800.00, 17-Nov-2020
205,Revenue,CAHD,South - Commissioned Services,Permanent Residential,Avon Valley Care Home,3960.00, 17-Nov-2020
206,Revenue,CAHD,South - Commissioned Services,Permanent Residential,Avon Valley Care Home,4000.00, 17-Nov-2020
207,Revenue,CAHD,North - Community based support,Permanent Residential,Avon Valley Care Home,3600.00, 17-Nov-2020
208,Revenue,CAHD,Central - Commissioned Services,Permanent Residential,Avon Valley Care Home,4000.00, 17-Nov-2020
209,Revenue,CAHD,North - Community based support,Permanent Residential,Avonmere Care Home,4892.00, 17-Nov-2020
210,Revenue,CAHD,North - Community based support,Permanent Residential,Avonmere Care Home,4680.00, 17-Nov-2020
211,Revenue,CAHD,Covid 19- Spend on behalf of NHS,Respite Planned - Residential,Avonmere Care Home,4400.00, 17-Nov-2020
212,Revenue,CAHD,North - Community based support,Permanent Residential,Avonmere Care Home,4386.80, 17-Nov-2020
213,Revenue,CAHD,North - Community based support,Permanent Residential,Avonmere Care Home,5420.00, 17-Nov-2020
214,Revenue,CAHD,North - Community based support,Permanent Residential,Avonmere Care Home,4892.00, 17-Nov-2020
215,Revenue,CAHD,Covid 19 -Adult Social Care,Respite Planned - Residential,Avonmere Care Home,4400.00, 17-Nov-2020
216,Revenue,CAHD,North - Community based support,Permanent Residential,Avonmere Care Home,4420.00, 17-Nov-2020
217,Revenue,CAHD,North - Community based support,Permanent Residential,Avonmere Care Home,4620.00, 17-Nov-2020
218,Revenue,CAHD,North - Community based support,Permanent Residential,Avonmere Care Home,4892.00, 17-Nov-2020
219,Revenue,CAHD,North - Community based support,Permanent Residential,Avonmere Care Home,4600.00, 17-Nov-2020
220,Revenue,CAHD,Covid 19- Spend on behalf of NHS,Respite Planned - Residential,Avonmere Care Home,4400.00, 17-Nov-2020
221,Revenue,CAHD,North - Community based support,Permanent Residential,Avonmere Care Home,4892.00, 17-Nov-2020
222,Revenue,CAHD,Covid 19- Spend on behalf of NHS,Respite Planned - Residential,Avonmere Care Home,4400.00, 17-Nov-2020
223,Revenue,CAHD,Covid 19- Spend on behalf of NHS,Respite Planned - Nursing,Badminton Place,2057.14, 17-Nov-2020
224,Revenue,CAHD,Early Years Inclusion Fund,Other Public Bodies,Baker Street Nursery & Pre-School,3600.00, 02-Nov-2020
225,Revenue,CAHD,Childrens - Safeguarding Board,Training Expenses,Barnardo Services Limited,450.00, 20-Nov-2020
226,Revenue,CAHD,Pensions - Non DSG,Annual Pension,Bath & North East Somerset Council,105570.59, 10-Nov-2020
227,Revenue,CAHD,Central - Commissioned Services,Respite Emergency - Residential,Beaufort Grange Care Home,11880.00, 17-Nov-2020
228,Revenue,CAHD,South Glos Users in South Glos Homes,Permanent Nursing,Beaufort Grange Care Home,735.68, 17-Nov-2020
229,Revenue,CAHD,South Glos Users in South Glos Homes,Permanent Nursing,Beaufort Grange Care Home,735.68, 17-Nov-2020
230,Revenue,CAHD,South Glos Users in South Glos Homes,Permanent Nursing,Beaufort Grange Care Home,735.68, 17-Nov-2020
231,Revenue,CAHD,South Glos Users in South Glos Homes,Permanent Nursing,Beaufort Grange Care Home,735.68, 17-Nov-2020
232,Revenue,CAHD,South Glos Users in South Glos Homes,Permanent Nursing,Beaufort Grange Care Home,735.68, 17-Nov-2020
233,Revenue,CAHD,South Glos Users in South Glos Homes,Permanent Nursing,Beaufort Grange Care Home,735.68, 17-Nov-2020
234,Revenue,CAHD,South Glos Users in South Glos Homes,Permanent Nursing,Beaufort Grange Care Home,735.68, 17-Nov-2020
235,Revenue,CAHD,South Glos Users in South Glos Homes,Permanent Nursing,Beaufort Grange Care Home,735.68, 17-Nov-2020
236,Revenue,CAHD,North - S117,Permanent Nursing,Beaufort Grange Care Home,4877.04, 17-Nov-2020
237,Revenue,CAHD,South Glos Users in South Glos Homes,Permanent Nursing,Beaufort Grange Care Home,735.68, 17-Nov-2020
238,Revenue,CAHD,South Glos Users in South Glos Homes,Permanent Nursing,Beaufort Grange Care Home,735.68, 17-Nov-2020
239,Revenue,CAHD,South Glos Users in South Glos Homes,Permanent Nursing,Beaufort Grange Care Home,735.68, 17-Nov-2020
240,Revenue,CAHD,South Glos Users in South Glos Homes,Permanent Nursing,Beaufort Grange Care Home,735.68, 17-Nov-2020
241,Revenue,CAHD,South Glos Users in South Glos Homes,Permanent Nursing,Beaufort Grange Care Home,735.68, 17-Nov-2020
242,Revenue,CAHD,South Glos Users in South Glos Homes,Permanent Nursing,Beaufort Grange Care Home,735.68, 17-Nov-2020
243,Revenue,CAHD,South Glos Users in South Glos Homes,Permanent Nursing,Beaufort Grange Care Home,735.68, 17-Nov-2020
244,Revenue,CAHD,North - S117,Permanent Nursing,Beaufort Grange Care Home,5005.76, 17-Nov-2020
245,Revenue,CAHD,South Glos Users in South Glos Homes,Permanent Nursing,Beaufort Grange Care Home,735.68, 17-Nov-2020
246,Revenue,CAHD,Central - Commissioned Services,Respite Planned - Residential,Beaufort Grange Care Home,1056.93, 17-Nov-2020
247,Revenue,CAHD,South Glos Users in South Glos Homes,Permanent Nursing,Beaufort Grange Care Home,735.68, 17-Nov-2020
248,Revenue,CAHD,South Glos Users in South Glos Homes,Permanent Nursing,Beaufort Grange Care Home,735.68, 17-Nov-2020
249,Revenue,CAHD,South Glos Users in South Glos Homes,Permanent Nursing,Beaufort Grange Care Home,735.68, 17-Nov-2020
250,Revenue,CAHD,South Glos Users in South Glos Homes,Permanent Nursing,Beaufort Grange Care Home,735.68, 17-Nov-2020
251,Revenue,CAHD,South Glos Users in South Glos Homes,Permanent Nursing,Beaufort Grange Care Home,735.68, 17-Nov-2020
252,Revenue,CAHD,South Glos Users in South Glos Homes,Permanent Nursing,Beaufort Grange Care Home,735.68, 17-Nov-2020
253,Revenue,CAHD,South Glos Users in South Glos Homes,Permanent Nursing,Beaufort Grange Care Home,735.68, 17-Nov-2020
254,Revenue,CAHD,South Glos Users in South Glos Homes,Permanent Nursing,Beaufort Grange Care Home,735.68, 17-Nov-2020
255,Revenue,CAHD,South Glos Users in South Glos Homes,Permanent Nursing,Beaufort Grange Care Home,735.68, 17-Nov-2020
256,Revenue,CAHD,South Glos Users in South Glos Homes,Permanent Nursing,Beaufort Grange Care Home,735.68, 17-Nov-2020
257,Revenue,CAHD,South Glos Users in South Glos Homes,Permanent Nursing,Beaufort Grange Care Home,735.68, 17-Nov-2020
258,Revenue,CAHD,South Glos Users in South Glos Homes,Permanent Nursing,Beaufort Grange Care Home,735.68, 17-Nov-2020
259,Revenue,CAHD,South Glos Users in South Glos Homes,Permanent Nursing,Beaufort Grange Care Home,735.68, 17-Nov-2020
260,Revenue,CAHD,South Glos Users in South Glos Homes,Permanent Nursing,Beaufort Grange Care Home,735.68, 17-Nov-2020
261,Revenue,CAHD,Central - Commissioned Services,Permanent Nursing,Beaufort Grange Care Home,5500.00, 17-Nov-2020
262,Revenue,CAHD,South Glos Users in South Glos Homes,Permanent Nursing,Beaufort Grange Care Home,735.68, 17-Nov-2020
263,Revenue,CAHD,South Glos Users in South Glos Homes,Permanent Nursing,Beaufort Grange Care Home,735.68, 17-Nov-2020
264,Revenue,CAHD,South Glos Users in South Glos Homes,Permanent Nursing,Beaufort Grange Care Home,735.68, 17-Nov-2020
265,Revenue,CAHD,South Glos Users in South Glos Homes,Permanent Nursing,Beaufort Grange Care Home,735.68, 17-Nov-2020
266,Revenue,CAHD,Central - Commissioned Services,Permanent Nursing,Beaufort Grange Care Home,20625.00, 17-Nov-2020
267,Revenue,CAHD,Central - Commissioned Services,Permanent Nursing,Beaufort Grange Care Home,5500.00, 17-Nov-2020
268,Revenue,CAHD,South Glos Users in South Glos Homes,Permanent Nursing,Beaufort Grange Care Home,735.68, 17-Nov-2020
269,Revenue,CAHD,South Glos Users in South Glos Homes,Permanent Nursing,Beaufort Grange Care Home,735.68, 17-Nov-2020
270,Revenue,CAHD,South Glos Users in South Glos Homes,Permanent Nursing,Beaufort Grange Care Home,735.68, 17-Nov-2020
271,Revenue,CAHD,South Glos Users in South Glos Homes,Permanent Nursing,Beaufort Grange Care Home,735.68, 17-Nov-2020
272,Revenue,CAHD,South Glos Users in South Glos Homes,Permanent Nursing,Beaufort Grange Care Home,735.68, 17-Nov-2020
273,Revenue,CAHD,South Glos Users in South Glos Homes,Permanent Nursing,Beaufort Grange Care Home,735.68, 17-Nov-2020
274,Revenue,CAHD,South Glos Users in South Glos Homes,Permanent Nursing,Beaufort Grange Care Home,735.68, 17-Nov-2020
275,Revenue,CAHD,South Glos Users in South Glos Homes,Permanent Nursing,Beaufort Grange Care Home,735.68, 17-Nov-2020
276,Revenue,CAHD,South Glos Users in South Glos Homes,Permanent Nursing,Beaufort Grange Care Home,735.68, 17-Nov-2020
277,Revenue,CAHD,South Glos Users in South Glos Homes,Permanent Nursing,Beaufort Grange Care Home,735.68, 17-Nov-2020
278,Revenue,CAHD,South Glos Users in South Glos Homes,Permanent Nursing,Beaufort Grange Care Home,735.68, 17-Nov-2020
279,Revenue,CAHD,South Glos Users in South Glos Homes,Permanent Nursing,Beaufort Grange Care Home,735.68, 17-Nov-2020
280,Revenue,CAHD,South Glos Users in South Glos Homes,Permanent Nursing,Beaufort Grange Care Home,735.68, 17-Nov-2020
281,Revenue,CAHD,North - Community based support,Permanent Residential,Beaufort House,2600.56, 17-Nov-2020
282,Revenue,CAHD,Central - Commissioned Services,Permanent Residential,Beaufort House,2924.56, 17-Nov-2020
283,Revenue,CAHD,Central - Commissioned Services,Permanent Residential,Beaufort House,2831.12, 17-Nov-2020
284,Revenue,CAHD,North - Community based support,Permanent Residential,Beaufort House,2622.84, 17-Nov-2020
285,Revenue,CAHD,South - Commissioned Services,Permanent Residential,Beaufort House,2587.56, 17-Nov-2020
286,Revenue,CAHD,North - Community based support,Permanent Residential,Beaufort House,2753.92, 17-Nov-2020
287,Revenue,CAHD,Central - Commissioned Services,Permanent Residential,Beaufort House,3200.00, 17-Nov-2020
288,Revenue,CAHD,Central - Commissioned Services,Permanent Residential,Beaufort House,3200.00, 17-Nov-2020
289,Revenue,CAHD,South - Commissioned Services,Respite Emergency - Residential,Beaufort House,2000.00, 17-Nov-2020
290,Revenue,CAHD,Central - Commissioned Services,Permanent Residential,Beaufort House,5142.86, 17-Nov-2020
291,Revenue,CAHD,Central - Commissioned Services,Permanent Residential,Beaufort House,3600.00, 17-Nov-2020
292,Revenue,CAHD,Central - Bed Purchasing and Direct Payments,Permanent Residential,Beaufort House,3400.00, 17-Nov-2020
293,Revenue,CAHD,Covid - ASC - Infection Control,Grants to Voluntary Bodies,Beaufort House,9756.03, 04-Nov-2020
294,Revenue,CAHD,South - Commissioned Services,Permanent Residential,Beech House,3018.84, 17-Nov-2020
295,Revenue,CAHD,South Glos Users in South Glos Homes,Permanent Nursing,Beech House,735.68, 17-Nov-2020
296,Revenue,CAHD,North - Community based support,Permanent Nursing,Beech House,4365.60, 17-Nov-2020
297,Revenue,CAHD,South Glos Users in South Glos Homes,Permanent Nursing,Beech House,735.68, 17-Nov-2020
298,Revenue,CAHD,Bed Purchasing - Southmead Hospital,Permanent Residential,Beech House,4280.00, 17-Nov-2020
299,Revenue,CAHD,South Glos Users in South Glos Homes,Permanent Nursing,Beech House,735.68, 17-Nov-2020
300,Revenue,CAHD,South Glos Users in South Glos Homes,Permanent Nursing,Beech House,735.68, 17-Nov-2020
301,Revenue,CAHD,South Glos Users in South Glos Homes,Permanent Nursing,Beech House,735.68, 17-Nov-2020
302,Revenue,CAHD,South Glos Users in South Glos Homes,Permanent Nursing,Beech House,735.68, 17-Nov-2020
303,Revenue,CAHD,South Glos Users in South Glos Homes,Permanent Nursing,Beech House,735.68, 17-Nov-2020
304,Revenue,CAHD,North - Community based support,Permanent Nursing,Beech House,936.19, 17-Nov-2020
305,Revenue,CAHD,South Glos Users in South Glos Homes,Permanent Nursing,Beech House,735.68, 17-Nov-2020
306,Revenue,CAHD,South Glos Users in South Glos Homes,Permanent Nursing,Beech House,735.68, 17-Nov-2020
307,Revenue,CAHD,North - Community based support,Permanent Nursing,Beech House,4280.00, 17-Nov-2020
308,Revenue,CAHD,South Glos Users in South Glos Homes,Permanent Nursing,Beech House,735.68, 17-Nov-2020
309,Revenue,CAHD,South Glos Users in South Glos Homes,Permanent Nursing,Beech House,735.68, 17-Nov-2020
310,Revenue,CAHD,South Glos Users in South Glos Homes,Permanent Nursing,Beech House,735.68, 17-Nov-2020
311,Revenue,CAHD,North - Community based support,Permanent Nursing,Beech House,4308.04, 17-Nov-2020
312,Revenue,CAHD,South Glos Users in South Glos Homes,Permanent Nursing,Beech House,735.68, 17-Nov-2020
313,Revenue,CAHD,Covid 19- Spend on behalf of NHS,Respite Planned - Residential,Beech House,12924.29, 17-Nov-2020
314,Revenue,CAHD,South Glos Users in South Glos Homes,Permanent Nursing,Beech House,735.68, 17-Nov-2020
315,Revenue,CAHD,South Glos Users in South Glos Homes,Permanent Nursing,Beech House,735.68, 17-Nov-2020
316,Revenue,CAHD,Covid 19- Spend on behalf of NHS,Respite Planned - Residential,Beech House,8719.99, 17-Nov-2020
317,Revenue,CAHD,Bed Purchasing - Southmead Hospital,Permanent Nursing,Beech House,4360.00, 17-Nov-2020
318,Revenue,CAHD,South Glos Users in South Glos Homes,Permanent Nursing,Beech House,735.68, 17-Nov-2020
319,Revenue,CAHD,Covid 19- Spend on behalf of NHS,Respite Planned - Residential,Beech House,8720.00, 17-Nov-2020
320,Revenue,CAHD,South Glos Users in South Glos Homes,Permanent Nursing,Beech House,735.68, 17-Nov-2020
321,Revenue,CAHD,South Glos Users in South Glos Homes,Permanent Nursing,Beech House,735.68, 17-Nov-2020
322,Revenue,CAHD,Covid 19- Spend on behalf of NHS,Respite Planned - Residential,Beech House,8720.00, 17-Nov-2020
323,Revenue,CAHD,Covid - ASC - Infection Control,Grants to Voluntary Bodies,Beech House,19163.63, 04-Nov-2020
324,Revenue,CAHD,South Glos Users in South Glos Homes,Permanent Nursing,Beechwood Care Home,1044.00, 17-Nov-2020
325,Revenue,CAHD,Schools Specific Grant Income,Other Public Bodies,Begbrook Primary Academy,630.00, 10-Nov-2020
326,Revenue,CAHD,Schools Specific Grant Income,Other Public Bodies,Begbrook Primary Academy,630.00, 10-Nov-2020
327,Revenue,CAHD,Schools Specific Grant Income,Other Public Bodies,Begbrook Primary Academy,630.00, 10-Nov-2020
328,Revenue,CAHD,Independent Special Placements - Pre 16,Other Private Contractors,Belgrave School,6796.00, 30-Nov-2020
329,Revenue,CAHD,Independent Special Placements - Pre 16,Other Private Contractors,Belgrave School,5688.50, 30-Nov-2020
330,Revenue,CAHD,First Contact Team,Office Supplies & Equipment,Benmor Medical UK Ltd,1580.00, 02-Nov-2020
331,Revenue,CAHD,South - S117,Permanent Residential,Bidna House,3692.64, 17-Nov-2020
332,Revenue,CAHD,Placements OLA Special Schools and RB,Other L.A.s - General,Blaise High School,807.94, 25-Nov-2020
333,Revenue,CAHD,Statemented Support Payments to OLAs,Other L.A.s - General,Blaise High School,907.83, 25-Nov-2020
334,Revenue,CAHD,Statemented Support Payments to OLAs,Other L.A.s - General,Blaise High School,907.83, 25-Nov-2020
335,Revenue,CAHD,Schools Specific Grant Income,Other Public Bodies,Blaise High School,630.00, 10-Nov-2020
336,Revenue,CAHD,CSC - Vinney Green Secure Unit,R & M by Departments,Blake Powell,1000.00, 18-Nov-2020
337,Revenue,CAHD,Central - Commissioned Services,Other Small Contracts,Blakehill Healthcare Ltd,3918.75, 26-Nov-2020
338,Revenue,CAHD,South - Commissioned Services,Other Small Contracts,Blakehill Healthcare Ltd,2012.50, 26-Nov-2020
339,Revenue,CAHD,North - Community based support,Other Small Contracts,Blakehill Healthcare Ltd,1056.25, 26-Nov-2020
340,Revenue,CAHD,Central - Commissioned Services,Other Small Contracts,Blakehill Healthcare Ltd,7375.08, 26-Nov-2020
341,Revenue,CAHD,South - Commissioned Services,Other Small Contracts,Blakehill Healthcare Ltd,2118.75, 26-Nov-2020
342,Revenue,CAHD,North - Community based support,Other Small Contracts,Blakehill Healthcare Ltd,1081.25, 26-Nov-2020
343,Revenue,CAHD,Central - Commissioned Services,Other Small Contracts,Blakehill Healthcare Ltd,500.00, 16-Nov-2020
344,Revenue,CAHD,Central - Commissioned Services,Other Small Contracts,Blakehill Healthcare Ltd,1050.00, 23-Nov-2020
345,Revenue,CAHD,North - Community based support,Other Small Contracts,Blakehill Healthcare Ltd,1218.75, 23-Nov-2020
346,Revenue,CAHD,Covid - ASC - Infection Control,Grants to Voluntary Bodies,Blakehill Healthcare Ltd,4205.97, 18-Nov-2020
347,Revenue,CAHD,Central - Commissioned Services,Other Small Contracts,Blakehill Healthcare Ltd,1225.00, 16-Nov-2020
348,Revenue,CAHD,South Glos Users in South Glos Homes,Permanent Nursing,Blossom Fields Nursing Home,735.68, 17-Nov-2020
349,Revenue,CAHD,South Glos Users in South Glos Homes,Permanent Nursing,Blossom Fields Nursing Home,735.68, 17-Nov-2020
350,Revenue,CAHD,North - Community based support,Permanent Nursing,Blossom Fields Nursing Home,4770.40, 17-Nov-2020
351,Revenue,CAHD,South Glos Users in South Glos Homes,Permanent Nursing,Blossom Fields Nursing Home,735.68, 17-Nov-2020
352,Revenue,CAHD,South Glos Users in South Glos Homes,Permanent Nursing,Blossom Fields Nursing Home,867.05, 17-Nov-2020
353,Revenue,CAHD,South Glos Users in South Glos Homes,Permanent Nursing,Blossom Fields Nursing Home,735.68, 17-Nov-2020
354,Revenue,CAHD,North - bed purchasing and direct  payments,Fees & Charges Income - General,Blossom Fields Nursing Home,528.73, 17-Nov-2020
355,Revenue,CAHD,North - Community based support,Permanent Nursing,Blossom Fields Nursing Home,4352.80, 17-Nov-2020
356,Revenue,CAHD,South Glos Users in South Glos Homes,Permanent Nursing,Blossom Fields Nursing Home,735.68, 17-Nov-2020
357,Revenue,CAHD,South Glos Users in South Glos Homes,Permanent Nursing,Blossom Fields Nursing Home,735.68, 17-Nov-2020
358,Revenue,CAHD,South - Commissioned Services,Permanent Nursing,Blossom Fields Nursing Home,4501.36, 17-Nov-2020
359,Revenue,CAHD,South Glos Users in South Glos Homes,Permanent Nursing,Blossom Fields Nursing Home,735.68, 17-Nov-2020
360,Revenue,CAHD,South Glos Users in South Glos Homes,Permanent Nursing,Blossom Fields Nursing Home,735.68, 17-Nov-2020
361,Revenue,CAHD,South Glos Users in South Glos Homes,Permanent Nursing,Blossom Fields Nursing Home,735.68, 17-Nov-2020
362,Revenue,CAHD,North - Community based support,Permanent Nursing,Blossom Fields Nursing Home,4799.88, 17-Nov-2020
363,Revenue,CAHD,South Glos Users in South Glos Homes,Permanent Nursing,Blossom Fields Nursing Home,735.68, 17-Nov-2020
364,Revenue,CAHD,South Glos Users in South Glos Homes,Permanent Nursing,Blossom Fields Nursing Home,1050.97, 17-Nov-2020
365,Revenue,CAHD,South Glos Users in South Glos Homes,Permanent Nursing,Blossom Fields Nursing Home,735.68, 17-Nov-2020
366,Revenue,CAHD,South Glos Users in South Glos Homes,Permanent Nursing,Blossom Fields Nursing Home,735.68, 17-Nov-2020
367,Revenue,CAHD,North - Community based support,Permanent Nursing,Blossom Fields Nursing Home,4800.00, 17-Nov-2020
368,Revenue,CAHD,South Glos Users in South Glos Homes,Permanent Nursing,Blossom Fields Nursing Home,735.68, 17-Nov-2020
369,Revenue,CAHD,South Glos Users in South Glos Homes,Permanent Nursing,Blossom Fields Nursing Home,735.68, 17-Nov-2020
370,Revenue,CAHD,South Glos Users in South Glos Homes,Permanent Nursing,Blossom Fields Nursing Home,735.68, 17-Nov-2020
371,Revenue,CAHD,South - Commissioned Services,Permanent Nursing,Blossom Fields Nursing Home,4039.20, 17-Nov-2020
372,Revenue,CAHD,South Glos Users in South Glos Homes,Permanent Nursing,Blossom Fields Nursing Home,735.68, 17-Nov-2020
373,Revenue,CAHD,South Glos Users in South Glos Homes,Permanent Nursing,Blossom Fields Nursing Home,1812.93, 17-Nov-2020
374,Revenue,CAHD,South Glos Users in South Glos Homes,Permanent Nursing,Blossom Fields Nursing Home,735.68, 17-Nov-2020
375,Revenue,CAHD,South Glos Users in South Glos Homes,Permanent Nursing,Blossom Fields Nursing Home,735.68, 17-Nov-2020
376,Revenue,CAHD,South Glos Users in South Glos Homes,Permanent Nursing,Blossom Fields Nursing Home,735.68, 17-Nov-2020
377,Revenue,CAHD,Central - Commissioned Services,Permanent Nursing,Blossom Fields Nursing Home,4039.20, 17-Nov-2020
378,Revenue,CAHD,South Glos Users in South Glos Homes,Permanent Nursing,Blossom Fields Nursing Home,735.68, 17-Nov-2020
379,Revenue,CAHD,South Glos Users in South Glos Homes,Permanent Nursing,Blossom Fields Nursing Home,1103.52, 17-Nov-2020
380,Revenue,CAHD,South Glos Users in South Glos Homes,Permanent Nursing,Blossom Fields Nursing Home,735.68, 17-Nov-2020
381,Revenue,CAHD,South Glos Users in South Glos Homes,Permanent Nursing,Blossom Fields Nursing Home,735.68, 17-Nov-2020
382,Revenue,CAHD,South Glos Users in South Glos Homes,Permanent Nursing,Blossom Fields Nursing Home,735.68, 17-Nov-2020
383,Revenue,CAHD,South Glos Users in South Glos Homes,Permanent Nursing,Blossom Fields Nursing Home,735.68, 17-Nov-2020
384,Revenue,CAHD,South Glos Users in South Glos Homes,Permanent Nursing,Blossom Fields Nursing Home,735.68, 17-Nov-2020
385,Revenue,CAHD,Central - Commissioned Services,Permanent Nursing,Blossom Fields Nursing Home,4400.00, 17-Nov-2020
386,Revenue,CAHD,South Glos Users in South Glos Homes,Permanent Nursing,Blossom Fields Nursing Home,735.68, 17-Nov-2020
387,Revenue,CAHD,North - Community based support,Permanent Nursing,Blossom Fields Nursing Home,4039.20, 17-Nov-2020
388,Revenue,CAHD,South Glos Users in South Glos Homes,Permanent Nursing,Blossom Fields Nursing Home,735.68, 17-Nov-2020
389,Revenue,CAHD,Central - Commissioned Services,Permanent Nursing,Blossom Fields Nursing Home,15579.77, 17-Nov-2020
390,Revenue,CAHD,Central - Commissioned Services,Permanent Nursing,Blossom Fields Nursing Home,4039.20, 17-Nov-2020
391,Revenue,CAHD,South Glos Users in South Glos Homes,Permanent Nursing,Blossom Fields Nursing Home,735.68, 17-Nov-2020
392,Revenue,CAHD,South Glos Users in South Glos Homes,Permanent Nursing,Blossom Fields Nursing Home,735.68, 17-Nov-2020
393,Revenue,CAHD,South Glos Users in South Glos Homes,Permanent Nursing,Blossom Fields Nursing Home,735.68, 17-Nov-2020
394,Revenue,CAHD,South Glos Users in South Glos Homes,Permanent Nursing,Blossom Fields Nursing Home,735.68, 17-Nov-2020
395,Revenue,CAHD,North - Community based support,Permanent Nursing,Blossom Fields Nursing Home,3707.64, 17-Nov-2020
396,Revenue,CAHD,South Glos Users in South Glos Homes,Permanent Nursing,Blossom Fields Nursing Home,735.68, 17-Nov-2020
397,Revenue,CAHD,South - bed purchasing and direct  payments,Permanent Nursing,Blossom Fields Nursing Home,4039.20, 17-Nov-2020
398,Revenue,CAHD,South Glos Users in South Glos Homes,Permanent Nursing,Blossom Fields Nursing Home,735.68, 17-Nov-2020
399,Revenue,CAHD,North - Community based support,Permanent Nursing,Blossom Fields Nursing Home,4800.00, 17-Nov-2020
400,Revenue,CAHD,South Glos Users in South Glos Homes,Permanent Nursing,Blossom Fields Nursing Home,735.68, 17-Nov-2020
401,Revenue,CAHD,Central - Commissioned Services,Permanent Nursing,Blossom Fields Nursing Home,4039.20, 17-Nov-2020
402,Revenue,CAHD,South Glos Users in South Glos Homes,Permanent Nursing,Blossom Fields Nursing Home,735.68, 17-Nov-2020
403,Revenue,CAHD,South Glos Users in South Glos Homes,Permanent Nursing,Blossom Fields Nursing Home,735.68, 17-Nov-2020
404,Revenue,CAHD,Central - Commissioned Services,Permanent Nursing,Blossom Fields Nursing Home,4039.20, 17-Nov-2020
405,Revenue,CAHD,South Glos Users in South Glos Homes,Permanent Nursing,Blossom Fields Nursing Home,735.68, 17-Nov-2020
406,Revenue,CAHD,South Glos Users in South Glos Homes,Permanent Nursing,Blossom Fields Nursing Home,735.68, 17-Nov-2020
407,Revenue,CAHD,Central - Commissioned Services,Permanent Residential,Blossom Fields Nursing Home,2885.14, 17-Nov-2020
408,Revenue,CAHD,Central - Commissioned Services,Permanent Residential,Blossom Fields Nursing Home,1009.80, 17-Nov-2020
409,Revenue,CAHD,South - Commissioned Services,Permanent Nursing,Blossom Fields Nursing Home,4683.04, 17-Nov-2020
410,Revenue,CAHD,South Glos Users in South Glos Homes,Permanent Nursing,Blossom Fields Nursing Home,735.68, 17-Nov-2020
411,Revenue,CAHD,Central - Commissioned Services,Permanent Nursing,Blossom Fields Nursing Home,5008.60, 17-Nov-2020
412,Revenue,CAHD,South Glos Users in South Glos Homes,Permanent Nursing,Blossom Fields Nursing Home,735.68, 17-Nov-2020
413,Revenue,CAHD,Central - Commissioned Services,Permanent Nursing,Blossom Fields Nursing Home,4039.20, 17-Nov-2020
414,Revenue,CAHD,South - Commissioned Services,Permanent Nursing,Blossom Fields Nursing Home,3854.40, 17-Nov-2020
415,Revenue,CAHD,South Glos Users in South Glos Homes,Permanent Nursing,Blossom Fields Nursing Home,735.68, 17-Nov-2020
416,Revenue,CAHD,South - Commissioned Services,Permanent Nursing,Blossom Fields Nursing Home,4039.20, 17-Nov-2020
417,Revenue,CAHD,South Glos Users in South Glos Homes,Permanent Nursing,Blossom Fields Nursing Home,735.68, 17-Nov-2020
418,Revenue,CAHD,South Glos Users in South Glos Homes,Permanent Nursing,Blossom Fields Nursing Home,735.68, 17-Nov-2020
419,Revenue,CAHD,Central - Commissioned Services,Permanent Nursing,Blossom Fields Nursing Home,4039.20, 17-Nov-2020
420,Revenue,CAHD,South Glos Users in South Glos Homes,Permanent Nursing,Blossom Fields Nursing Home,735.68, 17-Nov-2020
421,Revenue,CAHD,North - Community based support,Permanent Nursing,Blossom Fields Nursing Home,4039.20, 17-Nov-2020
422,Revenue,CAHD,South Glos Users in South Glos Homes,Permanent Nursing,Blossom Fields Nursing Home,735.68, 17-Nov-2020
423,Revenue,CAHD,Central - Commissioned Services,Permanent Nursing,Blossom Fields Nursing Home,8943.94, 17-Nov-2020
424,Revenue,CAHD,Central - Commissioned Services,Permanent Nursing,Blossom Fields Nursing Home,4039.20, 17-Nov-2020
425,Revenue,CAHD,South Glos Users in South Glos Homes,Permanent Nursing,Blossom Fields Nursing Home,735.68, 17-Nov-2020
426,Revenue,CAHD,South Glos Users in South Glos Homes,Permanent Nursing,Blossom Fields Nursing Home,735.68, 17-Nov-2020
427,Revenue,CAHD,Central - Commissioned Services,Permanent Nursing,Blossom Fields Nursing Home,4683.04, 17-Nov-2020
428,Revenue,CAHD,South Glos Users in South Glos Homes,Permanent Nursing,Blossom Fields Nursing Home,735.68, 17-Nov-2020
429,Revenue,CAHD,Central - Commissioned Services,Permanent Nursing,Blossom Fields Nursing Home,4800.00, 17-Nov-2020
430,Revenue,CAHD,South Glos Users in South Glos Homes,Permanent Nursing,Blossom Fields Nursing Home,735.68, 17-Nov-2020
431,Revenue,CAHD,North - Community based support,Permanent Nursing,Blossom Fields Nursing Home,4500.56, 17-Nov-2020
432,Revenue,CAHD,South Glos Users in South Glos Homes,Permanent Nursing,Blossom Fields Nursing Home,735.68, 17-Nov-2020
433,Revenue,CAHD,North - Community based support,Permanent Nursing,Blossom Fields Nursing Home,21964.29, 17-Nov-2020
434,Revenue,CAHD,North - Community based support,Respite Planned - Nursing,Blossom Fields Nursing Home,14935.71, 17-Nov-2020
435,Revenue,CAHD,North - Community based support,Permanent Nursing,Blossom Fields Nursing Home,4920.00, 17-Nov-2020
436,Revenue,CAHD,South Glos Users in South Glos Homes,Permanent Nursing,Blossom Fields Nursing Home,735.68, 17-Nov-2020
437,Revenue,CAHD,South Glos Users in South Glos Homes,Permanent Nursing,Blossom Fields Nursing Home,735.68, 17-Nov-2020
438,Revenue,CAHD,Central - Commissioned Services,Permanent Nursing,Blossom Fields Nursing Home,4675.44, 17-Nov-2020
439,Revenue,CAHD,South Glos Users in South Glos Homes,Permanent Nursing,Blossom Fields Nursing Home,735.68, 17-Nov-2020
440,Revenue,CAHD,North - Community based support,Permanent Nursing,Blossom Fields Nursing Home,5200.00, 17-Nov-2020
441,Revenue,CAHD,South Glos Users in South Glos Homes,Permanent Nursing,Blossom Fields Nursing Home,735.68, 17-Nov-2020
442,Revenue,CAHD,South Glos Users in South Glos Homes,Permanent Nursing,Blossom Fields Nursing Home,735.68, 17-Nov-2020
443,Revenue,CAHD,South Glos Users in South Glos Homes,Permanent Nursing,Blossom Fields Nursing Home,735.68, 17-Nov-2020
444,Revenue,CAHD,North - S117,Permanent Residential,Blossom Fields Nursing Home,4800.00, 17-Nov-2020
445,Revenue,CAHD,South Glos Users in South Glos Homes,Permanent Nursing,Blossom Fields Nursing Home,735.68, 17-Nov-2020
446,Revenue,CAHD,South Glos Users in South Glos Homes,Permanent Nursing,Blossom Fields Nursing Home,735.68, 17-Nov-2020
447,Revenue,CAHD,North - bed purchasing and direct  payments,Permanent Nursing,Blossom Fields Nursing Home,5000.00, 17-Nov-2020
448,Revenue,CAHD,South Glos Users in South Glos Homes,Permanent Nursing,Blossom Fields Nursing Home,735.68, 17-Nov-2020
449,Revenue,CAHD,Central - Commissioned Services,Permanent Nursing,Blossom Fields Nursing Home,4039.20, 17-Nov-2020
450,Revenue,CAHD,South Glos Users in South Glos Homes,Permanent Nursing,Blossom Fields Nursing Home,735.68, 17-Nov-2020
451,Revenue,CAHD,South Glos Users in South Glos Homes,Permanent Nursing,Blossom Fields Nursing Home,735.68, 17-Nov-2020
452,Revenue,CAHD,North - Community based support,Permanent Nursing,Blossom Fields Nursing Home,4039.20, 17-Nov-2020
453,Revenue,CAHD,North - S117,Permanent Residential,Blossom Fields Nursing Home,5000.00, 17-Nov-2020
454,Revenue,CAHD,South Glos Users in South Glos Homes,Permanent Nursing,Blossom Fields Nursing Home,735.68, 17-Nov-2020
455,Revenue,CAHD,South Glos Users in South Glos Homes,Permanent Nursing,Blossom Fields Nursing Home,735.68, 17-Nov-2020
456,Revenue,CAHD,South Glos Users in South Glos Homes,Permanent Nursing,Blossom Fields Nursing Home,735.68, 17-Nov-2020
457,Revenue,CAHD,Central - Commissioned Services,Permanent Nursing,Blossom Fields Nursing Home,4710.40, 17-Nov-2020
458,Revenue,CAHD,South Glos Users in South Glos Homes,Permanent Nursing,Blossom Fields Nursing Home,735.68, 17-Nov-2020
459,Revenue,CAHD,South Glos Users in South Glos Homes,Permanent Nursing,Blossom Fields Nursing Home,735.68, 17-Nov-2020
460,Revenue,CAHD,South Glos Users in South Glos Homes,Permanent Nursing,Blossom Fields Nursing Home,735.68, 17-Nov-2020
461,Revenue,CAHD,Central - Bed Purchasing and Direct Payments,Permanent Residential,Blossom Fields Nursing Home,37500.00, 17-Nov-2020
462,Revenue,CAHD,Central - Bed Purchasing and Direct Payments,Permanent Residential,Blossom Fields Nursing Home,9464.29, 17-Nov-2020
463,Revenue,CAHD,Central - Bed Purchasing and Direct Payments,Permanent Residential,Blossom Fields Nursing Home,5000.00, 17-Nov-2020
464,Revenue,CAHD,South Glos Users in South Glos Homes,Permanent Nursing,Blossom Fields Nursing Home,735.68, 17-Nov-2020
465,Revenue,CAHD,Central - Bed Purchasing and Direct Payments,Fees & Charges Income - General,Blossom Fields Nursing Home,1077.79, 17-Nov-2020
466,Revenue,CAHD,Central - Bed Purchasing and Direct Payments,Fees & Charges Income - General,Blossom Fields Nursing Home,4465.50, 17-Nov-2020
467,Revenue,CAHD,South Glos Users in South Glos Homes,Permanent Nursing,Blossom Fields Nursing Home,735.68, 17-Nov-2020
468,Revenue,CAHD,South Glos Users in South Glos Homes,Permanent Nursing,Blossom Fields Nursing Home,735.68, 17-Nov-2020
469,Revenue,CAHD,South Glos Users in South Glos Homes,Permanent Nursing,Blossom Fields Nursing Home,735.68, 17-Nov-2020
470,Revenue,CAHD,South Glos Users in South Glos Homes,Permanent Nursing,Blossom Fields Nursing Home,735.68, 17-Nov-2020
471,Revenue,CAHD,South Glos Users in South Glos Homes,Permanent Nursing,Blossom Fields Nursing Home,735.68, 17-Nov-2020
472,Revenue,CAHD,South Glos Users in South Glos Homes,Permanent Nursing,Blossom Fields Nursing Home,735.68, 17-Nov-2020
473,Revenue,CAHD,Central - Commissioned Services,Respite Emergency - Residential,Blossom Fields Nursing Home,7718.57, 17-Nov-2020
474,Revenue,CAHD,Central - Commissioned Services,Respite Emergency - Residential,Blossom Fields Nursing Home,5000.00, 17-Nov-2020
475,Revenue,CAHD,Central - Commissioned Services,Respite Emergency - Residential,Blossom Fields Nursing Home,535.71, 17-Nov-2020
476,Revenue,CAHD,South Glos Users in South Glos Homes,Permanent Nursing,Blossom Fields Nursing Home,735.68, 17-Nov-2020
477,Revenue,CAHD,South Glos Users in South Glos Homes,Permanent Nursing,Blossom Fields Nursing Home,735.68, 17-Nov-2020
478,Revenue,CAHD,South Glos Users in South Glos Homes,Permanent Nursing,Blossom Fields Nursing Home,735.68, 17-Nov-2020
479,Revenue,CAHD,South Glos Users in South Glos Homes,Permanent Nursing,Blossom Fields Nursing Home,1392.54, 17-Nov-2020
480,Revenue,CAHD,South Glos Users in South Glos Homes,Permanent Nursing,Blossom Fields Nursing Home,735.68, 17-Nov-2020
481,Revenue,CAHD,South - S117,Permanent Nursing,Blossom Fields Nursing Home,4386.80, 17-Nov-2020
482,Revenue,CAHD,South Glos Users in South Glos Homes,Permanent Nursing,Blossom Fields Nursing Home,735.68, 17-Nov-2020
483,Revenue,CAHD,South Glos Users in South Glos Homes,Permanent Nursing,Blossom Fields Nursing Home,735.68, 17-Nov-2020
484,Revenue,CAHD,South - Commissioned Services,Permanent Nursing,Blossom Fields Nursing Home,4039.20, 17-Nov-2020
485,Revenue,CAHD,South Glos Users in South Glos Homes,Permanent Nursing,Blossom Fields Nursing Home,735.68, 17-Nov-2020
486,Revenue,CAHD,South - Commissioned Services,Permanent Nursing,Blossom Fields Nursing Home,4022.92, 17-Nov-2020
487,Revenue,CAHD,South Glos Users in South Glos Homes,Permanent Nursing,Blossom Fields Nursing Home,735.68, 17-Nov-2020
488,Revenue,CAHD,Central - Commissioned Services,Permanent Nursing,Blossom Fields Nursing Home,4039.20, 17-Nov-2020
489,Revenue,CAHD,South Glos Users in South Glos Homes,Permanent Nursing,Blossom Fields Nursing Home,735.68, 17-Nov-2020
490,Revenue,CAHD,South Glos Users in South Glos Homes,Permanent Nursing,Blossom Fields Nursing Home,735.68, 17-Nov-2020
491,Revenue,CAHD,North - Community based support,Permanent Nursing,Blossom Fields Nursing Home,4683.00, 17-Nov-2020
492,Revenue,CAHD,South Glos Users in South Glos Homes,Permanent Nursing,Blossom Fields Nursing Home,735.68, 17-Nov-2020
493,Revenue,CAHD,Statemented Support Payments to OLAs,Other L.A.s - General,Blue Coat CE VA Primary School,3877.50, 25-Nov-2020
494,Revenue,CAHD,EARLY YEARS DEPRIVATION PAYMENT,Preventative Assistance,Bluebells Pre School,793.19, 09-Nov-2020
495,Revenue,CAHD,Schools Specific Grant Income,Other Public Bodies,Bluebells Pre School,630.00, 10-Nov-2020
496,Revenue,CAHD,North - Community based support,Other Small Contracts,Bluebird Care (South Gloucestershire),649.30, 06-Nov-2020
497,Revenue,CAHD,Covid 19 -Adult Social Care,Other Small Contracts,Bluebird Care (South Gloucestershire),15.10, 10-Nov-2020
498,Revenue,CAHD,Central - Commissioned Services,Other Small Contracts,Bluebird Care (South Gloucestershire),13080.34, 10-Nov-2020
499,Revenue,CAHD,South - Commissioned Services,Other Small Contracts,Bluebird Care (South Gloucestershire),3493.29, 10-Nov-2020
500,Revenue,CAHD,North - Community based support,Other Small Contracts,Bluebird Care (South Gloucestershire),4196.94, 10-Nov-2020
501,Revenue,CAHD,Resilience Team,Other Small Contracts,Bluebird Care (South Gloucestershire),226.50, 10-Nov-2020
502,Revenue,CAHD,Covid 19 -Adult Social Care,Other Small Contracts,Bluebird Care (South Gloucestershire),15.10, 10-Nov-2020
503,Revenue,CAHD,Central - Commissioned Services,Other Small Contracts,Bluebird Care (South Gloucestershire),14368.80, 10-Nov-2020
504,Revenue,CAHD,South - Commissioned Services,Other Small Contracts,Bluebird Care (South Gloucestershire),3378.39, 10-Nov-2020
505,Revenue,CAHD,North - Community based support,Other Small Contracts,Bluebird Care (South Gloucestershire),3112.31, 10-Nov-2020
506,Revenue,CAHD,Resilience Team,Other Small Contracts,Bluebird Care (South Gloucestershire),241.60, 10-Nov-2020
507,Revenue,CAHD,Covid 19 -Adult Social Care,Other Small Contracts,Bluebird Care (South Gloucestershire),15.10, 20-Nov-2020
508,Revenue,CAHD,Central - Commissioned Services,Other Small Contracts,Bluebird Care (South Gloucestershire),13796.78, 20-Nov-2020
509,Revenue,CAHD,South - Commissioned Services,Other Small Contracts,Bluebird Care (South Gloucestershire),3340.64, 20-Nov-2020
510,Revenue,CAHD,North - Community based support,Other Small Contracts,Bluebird Care (South Gloucestershire),3553.69, 20-Nov-2020
511,Revenue,CAHD,Resilience Team,Other Small Contracts,Bluebird Care (South Gloucestershire),181.20, 20-Nov-2020
512,Revenue,CAHD,Covid 19 -Adult Social Care,Other Small Contracts,Bluebird Care (South Gloucestershire),15.10, 20-Nov-2020
513,Revenue,CAHD,Central - Commissioned Services,Other Small Contracts,Bluebird Care (South Gloucestershire),13789.46, 20-Nov-2020
514,Revenue,CAHD,South - Commissioned Services,Other Small Contracts,Bluebird Care (South Gloucestershire),3416.14, 20-Nov-2020
515,Revenue,CAHD,North - Community based support,Other Small Contracts,Bluebird Care (South Gloucestershire),3463.09, 20-Nov-2020
516,Revenue,CAHD,Resilience Team,Other Small Contracts,Bluebird Care (South Gloucestershire),60.40, 20-Nov-2020
517,Revenue,CAHD,Covid 19 -Adult Social Care,Other Small Contracts,Bluebird Care (South Gloucestershire),22.65, 23-Nov-2020
518,Revenue,CAHD,Central - Commissioned Services,Other Small Contracts,Bluebird Care (South Gloucestershire),13834.50, 23-Nov-2020
519,Revenue,CAHD,South - Commissioned Services,Other Small Contracts,Bluebird Care (South Gloucestershire),3431.24, 23-Nov-2020
520,Revenue,CAHD,North - Community based support,Other Small Contracts,Bluebird Care (South Gloucestershire),3609.99, 23-Nov-2020
521,Revenue,CAHD,Covid - ASC - Infection Control,Grants to Voluntary Bodies,Bluebird Care (South Gloucestershire),18999.36, 12-Nov-2020
522,Revenue,CAHD,Covid - ASC - Infection Control,Grants to Voluntary Bodies,Bluebird Care (South Gloucestershire),18999.36, 18-Nov-2020
523,Revenue,CAHD,CSC - Vinney Green Secure Unit,Mechanical & Electrical Maintenance,Bob Ritchie Limited,430.00, 26-Nov-2020
524,Revenue,CAHD,S28A cases,Permanent Residential,Bradbury House,6505.16, 17-Nov-2020
525,Revenue,CAHD,North - Community based support,Permanent Residential,Bradbury House,10016.24, 17-Nov-2020
526,Revenue,CAHD,Jointly Funded H&SC Packages,Permanent Residential,Bradbury House,8244.08, 17-Nov-2020
527,Revenue,CAHD,North - S117,Permanent Residential,Bradbury House,5969.84, 17-Nov-2020
528,Revenue,CAHD,South - Commissioned Services,Permanent Residential,Bradbury House,10168.08, 17-Nov-2020
529,Revenue,CAHD,CSC - Residential Placements,Permanent Residential,Branas ISAF Ltd,20127.86, 23-Nov-2020
530,Revenue,CAHD,Social Lettings Agency,Rent,Individual,699.32, 25-Nov-2020
531,Revenue,CAHD,Social Lettings Agency,Fees - General,Individual,20.57, 25-Nov-2020
532,Revenue,CAHD,Social Lettings Agency,Rent,Individual,766.10, 03-Nov-2020
533,Revenue,CAHD,Social Lettings Agency,Fees - General,Individual,8.15, 03-Nov-2020
534,Revenue,CAHD,COVID19 CAHC,Client Transport,Individual,691.20, 12-Nov-2020
535,Revenue,CAHD,COVID19 CAHC,Client Transport,Individual,691.20, 12-Nov-2020
536,Revenue,CAHD,North - bed purchasing and direct  payments,Permanent Residential,Bridge House Care Home,2740.00, 17-Nov-2020
537,Revenue,CAHD,North - Community based support,Permanent Residential,Bridge House Care Home,2848.00, 17-Nov-2020
538,Revenue,CAHD,North - Community based support,Permanent Residential,Bridge House Care Home,2678.04, 17-Nov-2020
539,Revenue,CAHD,South - Commissioned Services,Respite Planned - Residential,Bridge House Care Home,2920.00, 17-Nov-2020
540,Revenue,CAHD,South - Commissioned Services,Respite Planned - Residential,Bridge House Care Home,1251.43, 17-Nov-2020
541,Revenue,CAHD,Covid - ASC - Infection Control,Grants to Voluntary Bodies,Bridge House Care Home,5574.87, 04-Nov-2020
542,Revenue,CAHD,North - Community based support,Permanent Residential,Bridgwater Court Care Home,10773.64, 17-Nov-2020
543,Revenue,CAHD,EARLY YEARS DEPRIVATION PAYMENT,Preventative Assistance,Bright Sparks,1052.50, 09-Nov-2020
544,Revenue,CAHD,Early Years Pupil Premium Grant,Preventative Assistance,Bright Sparks,548.55, 09-Nov-2020
545,Revenue,CAHD,EARLY YEARS DEPRIVATION PAYMENT,Preventative Assistance,Bright Sparks Pre School Ltd,938.61, 09-Nov-2020
546,Revenue,CAHD,Statemented Support Academies,Other Public Bodies,Bristol & South Gloucestershire UTC,1556.28, 25-Nov-2020
547,Revenue,CAHD,Statemented Support Academies,Other Public Bodies,Bristol & South Gloucestershire UTC,3112.56, 25-Nov-2020
548,Revenue,CAHD,Statemented Support Payments to OLAs,Other L.A.s - General,Bristol Cathedral Choir School,942.58, 25-Nov-2020
549,Revenue,CAHD,Statemented Support Payments to OLAs,Other L.A.s - General,Bristol Cathedral Choir School,880.08, 25-Nov-2020
550,Revenue,CAHD,Schools Specific Grant Income,Other Public Bodies,Bristol Cathedral Choir School,630.00, 10-Nov-2020
551,Revenue,CAHD,CSC - Care Leavers Support Costs,"Provisions (Food, etc)",Bristol City Council,1000.00, 20-Nov-2020
552,Revenue,CAHD,Placements OLA Special Schools and RB,Other L.A.s - General,Bristol City Council - Schools,1917.52, 25-Nov-2020
553,Revenue,CAHD,Placements OLA Special Schools and RB,Other L.A.s - General,Bristol City Council - Schools,1917.52, 25-Nov-2020
554,Revenue,CAHD,Placements OLA Special Schools and RB,Other L.A.s - General,Bristol City Council - Schools,625.16, 25-Nov-2020
555,Revenue,CAHD,Placements OLA Special Schools and RB,Other L.A.s - General,Bristol City Council - Schools,1227.12, 25-Nov-2020
556,Revenue,CAHD,Statemented Support Payments to OLAs,Other L.A.s - General,Bristol City Council - Schools,1625.17, 25-Nov-2020
557,Revenue,CAHD,Statemented Support Payments to OLAs,Other L.A.s - General,Bristol City Council - Schools,1379.43, 25-Nov-2020
558,Revenue,CAHD,Placements OLA Special Schools and RB,Other L.A.s - General,Bristol City Council - Schools,766.84, 25-Nov-2020
559,Revenue,CAHD,Placements OLA Special Schools and RB,Other L.A.s - General,Bristol City Council - Schools,1227.12, 25-Nov-2020
560,Revenue,CAHD,Statemented Support Payments to OLAs,Other L.A.s - General,Bristol City Council - Schools,554.13, 25-Nov-2020
561,Revenue,CAHD,Placements OLA Special Schools and RB,Other L.A.s - General,Bristol City Council - Schools,2685.22, 25-Nov-2020
562,Revenue,CAHD,Placements OLA Special Schools and RB,Other L.A.s - General,Bristol City Council - Schools,625.16, 25-Nov-2020
563,Revenue,CAHD,Placements OLA Special Schools and RB,Other L.A.s - General,Bristol City Council - Schools,2685.22, 25-Nov-2020
564,Revenue,CAHD,Placements OLA Special Schools and RB,Other L.A.s - General,Bristol City Council - Schools,2685.22, 25-Nov-2020
565,Revenue,CAHD,Statemented Support Payments to OLAs,Other L.A.s - General,Bristol City Council - Schools,787.54, 25-Nov-2020
566,Revenue,CAHD,Statemented Support Payments to OLAs,Other L.A.s - General,Bristol City Council - Schools,635.33, 25-Nov-2020
567,Revenue,CAHD,Placements OLA Special Schools and RB,Other L.A.s - General,Bristol City Council - Schools,1917.52, 25-Nov-2020
568,Revenue,CAHD,Placements OLA Special Schools and RB,Other L.A.s - General,Bristol City Council - Schools,625.16, 25-Nov-2020
569,Revenue,CAHD,Placements OLA Special Schools and RB,Other L.A.s - General,Bristol City Council - Schools,1227.12, 25-Nov-2020
570,Revenue,CAHD,Placements OLA Special Schools and RB,Other L.A.s - General,Bristol City Council - Schools,1917.52, 25-Nov-2020
571,Revenue,CAHD,Placements OLA Special Schools and RB,Other L.A.s - General,Bristol City Council - Schools,1227.12, 25-Nov-2020
572,Revenue,CAHD,Placements OLA Special Schools and RB,Other L.A.s - General,Bristol City Council - Schools,1227.12, 25-Nov-2020
573,Revenue,CAHD,Placements OLA Special Schools and RB,Other L.A.s - General,Bristol City Council - Schools,1917.52, 25-Nov-2020
574,Revenue,CAHD,Placements OLA Special Schools and RB,Other L.A.s - General,Bristol City Council - Schools,1652.36, 25-Nov-2020
575,Revenue,CAHD,Placements OLA Special Schools and RB,Other L.A.s - General,Bristol City Council - Schools,1845.18, 25-Nov-2020
576,Revenue,CAHD,Placements OLA Special Schools and RB,Other L.A.s - General,Bristol City Council - Schools,766.84, 25-Nov-2020
577,Revenue,CAHD,Placements OLA Special Schools and RB,Other L.A.s - General,Bristol City Council - Schools,2685.22, 25-Nov-2020
578,Revenue,CAHD,Placements OLA Special Schools and RB,Other L.A.s - General,Bristol City Council - Schools,1917.52, 25-Nov-2020
579,Revenue,CAHD,Placements OLA Special Schools and RB,Other L.A.s - General,Bristol City Council - Schools,766.84, 25-Nov-2020
580,Revenue,CAHD,Placements OLA Special Schools and RB,Other L.A.s - General,Bristol City Council - Schools,766.84, 25-Nov-2020
581,Revenue,CAHD,Placements OLA Special Schools and RB,Other L.A.s - General,Bristol City Council - Schools,1917.52, 25-Nov-2020
582,Revenue,CAHD,Placements OLA Special Schools and RB,Other L.A.s - General,Bristol City Council - Schools,625.16, 25-Nov-2020
583,Revenue,CAHD,Placements OLA Special Schools and RB,Other L.A.s - General,Bristol City Council - Schools,767.02, 25-Nov-2020
584,Revenue,CAHD,Placements OLA Special Schools and RB,Other L.A.s - General,Bristol City Council - Schools,2685.22, 25-Nov-2020
585,Revenue,CAHD,Placements OLA Special Schools and RB,Other L.A.s - General,Bristol City Council - Schools,1917.52, 25-Nov-2020
586,Revenue,CAHD,Placements OLA Special Schools and RB,Other L.A.s - General,Bristol City Council - Schools,625.16, 25-Nov-2020
587,Revenue,CAHD,Placements OLA Special Schools and RB,Other L.A.s - General,Bristol City Council - Schools,766.84, 25-Nov-2020
588,Revenue,CAHD,Placements OLA Special Schools and RB,Other L.A.s - General,Bristol City Council - Schools,2685.22, 25-Nov-2020
589,Revenue,CAHD,Placements OLA Special Schools and RB,Other L.A.s - General,Bristol City Council - Schools,625.16, 25-Nov-2020
590,Revenue,CAHD,Placements OLA Special Schools and RB,Other L.A.s - General,Bristol City Council - Schools,1534.02, 25-Nov-2020
591,Revenue,CAHD,Placements OLA Special Schools and RB,Other L.A.s - General,Bristol City Council - Schools,500.10, 25-Nov-2020
592,Revenue,CAHD,Placements OLA Special Schools and RB,Other L.A.s - General,Bristol City Council - Schools,1227.12, 25-Nov-2020
593,Revenue,CAHD,Placements OLA Special Schools and RB,Other L.A.s - General,Bristol City Council - Schools,1227.12, 25-Nov-2020
594,Revenue,CAHD,Placements OLA Special Schools and RB,Other L.A.s - General,Bristol City Council - Schools,1917.52, 25-Nov-2020
595,Revenue,CAHD,Placements OLA Special Schools and RB,Other L.A.s - General,Bristol City Council - Schools,625.16, 25-Nov-2020
596,Revenue,CAHD,Placements OLA Special Schools and RB,Other L.A.s - General,Bristol City Council - Schools,2685.22, 25-Nov-2020
597,Revenue,CAHD,Placements OLA Special Schools and RB,Other L.A.s - General,Bristol City Council - Schools,1227.12, 25-Nov-2020
598,Revenue,CAHD,Placements OLA Special Schools and RB,Other L.A.s - General,Bristol City Council - Schools,1227.12, 25-Nov-2020
599,Revenue,CAHD,Schools Specific Grant Income,Other Public Bodies,Bristol City Council - Schools,630.00, 10-Nov-2020
600,Revenue,CAHD,Statemented Support Payments to OLAs,Other L.A.s - General,Broadlands Academy,1332.27, 25-Nov-2020
601,Revenue,CAHD,Statemented Support Payments to OLAs,Other L.A.s - General,Broadlands Academy,2505.51, 25-Nov-2020
602,Revenue,CAHD,North - Community based support,Permanent Residential,Brockhills Farm,3300.00, 17-Nov-2020
603,Revenue,CAHD,Discretionary Housing Payment,Other Supplies & Services,Bromford  :  Merlin Housing Society,694.96, 16-Nov-2020
604,Revenue,CAHD,Parent Partnership,Fees - General,Browne Jacobson,3483.00, 20-Nov-2020
605,Revenue,CAHD,Parent Partnership,Fees - General,Browne Jacobson,5863.00, 20-Nov-2020
606,Revenue,CAHD,South Glos Users in South Glos Homes,Permanent Nursing,Brunelcare,814.50, 23-Nov-2020
607,Revenue,CAHD,South Glos Users in South Glos Homes,Permanent Nursing,Brunelcare,814.50, 23-Nov-2020
608,Revenue,CAHD,South Glos Users in South Glos Homes,Permanent Nursing,Brunelcare,814.50, 23-Nov-2020
609,Revenue,CAHD,South Glos Users in South Glos Homes,Permanent Nursing,Brunelcare,814.50, 23-Nov-2020
610,Revenue,CAHD,South Glos Users in South Glos Homes,Permanent Nursing,Brunelcare,814.50, 23-Nov-2020
611,Revenue,CAHD,South Glos Users in South Glos Homes,Permanent Nursing,Brunelcare,814.50, 23-Nov-2020
612,Revenue,CAHD,South Glos Users in South Glos Homes,Permanent Nursing,Brunelcare,814.50, 23-Nov-2020
613,Revenue,CAHD,South Glos Users in South Glos Homes,Permanent Nursing,Brunelcare,814.50, 23-Nov-2020
614,Revenue,CAHD,South Glos Users in South Glos Homes,Permanent Nursing,Brunelcare,814.50, 23-Nov-2020
615,Revenue,CAHD,South Glos Users in South Glos Homes,Permanent Nursing,Brunelcare,814.50, 23-Nov-2020
616,Revenue,CAHD,South Glos Users in South Glos Homes,Permanent Nursing,Brunelcare,814.50, 23-Nov-2020
617,Revenue,CAHD,South Glos Users in South Glos Homes,Permanent Nursing,Brunelcare,814.50, 23-Nov-2020
618,Revenue,CAHD,South Glos Users in South Glos Homes,Permanent Nursing,Brunelcare,814.50, 23-Nov-2020
619,Revenue,CAHD,North - S117,Permanent Nursing,Brunelcare,3742.45, 23-Nov-2020
620,Revenue,CAHD,North - S117,Permanent Nursing,Brunelcare,3742.45, 23-Nov-2020
621,Revenue,CAHD,South - Commissioned Services,Permanent Nursing,Brunelcare,3742.45, 23-Nov-2020
622,Revenue,CAHD,South - Commissioned Services,Permanent Nursing,Brunelcare,2717.59, 23-Nov-2020
623,Revenue,CAHD,South - Commissioned Services,Permanent Nursing,Brunelcare,2889.24, 23-Nov-2020
624,Revenue,CAHD,South - Commissioned Services,Permanent Nursing,Brunelcare,3010.76, 23-Nov-2020
625,Revenue,CAHD,South - Commissioned Services,Permanent Nursing,Brunelcare,2704.48, 23-Nov-2020
626,Revenue,CAHD,South - Commissioned Services,Permanent Nursing,Brunelcare,3117.45, 23-Nov-2020
627,Revenue,CAHD,South - Commissioned Services,Permanent Nursing,Brunelcare,2154.99, 23-Nov-2020
628,Revenue,CAHD,Central - Commissioned Services,Permanent Nursing,Brunelcare,3070.46, 23-Nov-2020
629,Revenue,CAHD,South - Commissioned Services,Respite Planned - Nursing,Brunelcare,1569.42, 23-Nov-2020
630,Revenue,CAHD,South - Commissioned Services,Respite Planned - Nursing,Brunelcare,2645.97, 23-Nov-2020
631,Revenue,CAHD,North - Community based support,Permanent Nursing,Brunelcare,3742.45, 23-Nov-2020
632,Revenue,CAHD,North - Community based support,Permanent Nursing,Brunelcare,2994.11, 23-Nov-2020
633,Revenue,CAHD,North - Community based support,Permanent Nursing,Brunelcare,2983.04, 23-Nov-2020
634,Revenue,CAHD,South - Commissioned Services,Other Small Contracts,Brunelcare,14849.84, 10-Nov-2020
635,Revenue,CAHD,North - Community based support,Other Small Contracts,Brunelcare,351.36, 10-Nov-2020
636,Revenue,CAHD,South - Commissioned Services,Other Small Contracts,Brunelcare,14913.28, 20-Nov-2020
637,Revenue,CAHD,North - Community based support,Other Small Contracts,Brunelcare,361.12, 20-Nov-2020
638,Revenue,CAHD,South - Commissioned Services,Other Small Contracts,Brunelcare,15210.96, 20-Nov-2020
639,Revenue,CAHD,North - Community based support,Other Small Contracts,Brunelcare,361.12, 20-Nov-2020
640,Revenue,CAHD,South - Commissioned Services,Other Small Contracts,Brunelcare,14820.56, 20-Nov-2020
641,Revenue,CAHD,North - Community based support,Other Small Contracts,Brunelcare,366.00, 20-Nov-2020
642,Revenue,CAHD,Central - Commissioned Services,Other Small Contracts,Brunelcare,268.40, 26-Nov-2020
643,Revenue,CAHD,South - Commissioned Services,Other Small Contracts,Brunelcare,13878.72, 26-Nov-2020
644,Revenue,CAHD,North - Community based support,Other Small Contracts,Brunelcare,370.88, 26-Nov-2020
645,Revenue,CAHD,North - S117,Permanent Residential,Buckland Care,3600.00, 17-Nov-2020
646,Revenue,CAHD,Learning Difficulties Development Fund,Other Supplies & Services,Building Circles,3631.75, 25-Nov-2020
647,Revenue,CAHD,Early Years High Needs Support,Other Private Contractors,Busy Bees Day Nursery,1335.75, 25-Nov-2020
648,Revenue,CAHD,Training - Adult Services,Training Expenses,BW Training & Coaching Ltd,600.00, 02-Nov-2020
649,Revenue,CAHD,Training - Adult Services,Training Expenses,BW Training & Coaching Ltd,760.00, 16-Nov-2020
650,Revenue,CAHD,CSC - Vinney Green Secure Unit,R & M by Departments,BWS Standfast Fire & Security Systems,1894.40, 27-Nov-2020
651,Revenue,CAHD,CSC - Vinney Green Secure Unit,R & M by Departments,BWS Standfast Fire & Security Systems,1180.00, 27-Nov-2020
652,Revenue,CAHD,CSC - Vinney Green Secure Unit,R & M by Departments,BWS Standfast Fire & Security Systems,1338.00, 27-Nov-2020
653,Revenue,CAHD,Social Lettings Agency,Rent,Individual,710.96, 26-Nov-2020
654,Revenue,CAHD,Social Lettings Agency,Fees - General,Individual,16.16, 26-Nov-2020
655,Revenue,CAHD,North - Community based support,Permanent Nursing,Clevedon Court Nursing Home,3448.16, 17-Nov-2020
656,Revenue,CAHD,Statemented Support Payments to OLAs,Other L.A.s - General,Cabot Learning Federation,1544.49, 25-Nov-2020
657,Revenue,CAHD,Statemented Support Academies,Other Public Bodies,Cabot Learning Federation,918.71, 25-Nov-2020
658,Revenue,CAHD,Statemented Support Academies,Other Public Bodies,Cabot Learning Federation,1202.39, 25-Nov-2020
659,Revenue,CAHD,Statemented Support Academies,Other Public Bodies,Cabot Learning Federation,908.00, 25-Nov-2020
660,Revenue,CAHD,Statemented Support Academies,Other Public Bodies,Cabot Learning Federation,1666.67, 25-Nov-2020
661,Revenue,CAHD,Statemented Support Academies,Other Public Bodies,Cabot Learning Federation,1103.25, 25-Nov-2020
662,Revenue,CAHD,Statemented Support Academies,Other Public Bodies,Cabot Learning Federation,907.83, 25-Nov-2020
663,Revenue,CAHD,Statemented Support Academies,Other Public Bodies,Cabot Learning Federation,1899.58, 25-Nov-2020
664,Revenue,CAHD,Statemented Support Academies,Other Public Bodies,Cabot Learning Federation,788.22, 25-Nov-2020
665,Revenue,CAHD,Statemented Support Academies,Other Public Bodies,Cabot Learning Federation,957.92, 25-Nov-2020
666,Revenue,CAHD,Statemented Support Academies,Other Public Bodies,Cabot Learning Federation,1654.33, 25-Nov-2020
667,Revenue,CAHD,Statemented Support Academies,Other Public Bodies,Cabot Learning Federation,2206.25, 25-Nov-2020
668,Revenue,CAHD,Schools Specific Grant Income,Other Public Bodies,Cabot Learning Federation,630.00, 10-Nov-2020
669,Revenue,CAHD,Statemented Support Payments to OLAs,Other L.A.s - General,Cabot Learning Federation,1013.94, 25-Nov-2020
670,Revenue,CAHD,Schools Specific Grant Income,Other Public Bodies,Cabot Learning Federation,630.00, 10-Nov-2020
671,Revenue,CAHD,Statemented Support Academies,Other Public Bodies,Cabot Learning Federation,658.75, 25-Nov-2020
672,Revenue,CAHD,Statemented Support Academies,Other Public Bodies,Cabot Learning Federation,1854.42, 25-Nov-2020
673,Revenue,CAHD,Statemented Support Academies,Other Public Bodies,Cabot Learning Federation,632.67, 25-Nov-2020
674,Revenue,CAHD,Statemented Support Academies,Other Public Bodies,Cabot Learning Federation,695.61, 25-Nov-2020
675,Revenue,CAHD,Statemented Support Academies,Other Public Bodies,Cabot Learning Federation,530.55, 25-Nov-2020
676,Revenue,CAHD,Statemented Support Academies,Other Public Bodies,Cabot Learning Federation,918.75, 25-Nov-2020
677,Revenue,CAHD,Statemented Support Academies,Other Public Bodies,Cabot Learning Federation,975.58, 25-Nov-2020
678,Revenue,CAHD,Statemented Support Academies,Other Public Bodies,Cabot Learning Federation,1052.92, 25-Nov-2020
679,Revenue,CAHD,Academy Resource Base Funding,Other Public Bodies,Cabot Learning Federation,1137.94, 24-Nov-2020
680,Revenue,CAHD,Academy Resource Base Funding,Other Public Bodies,Cabot Learning Federation,1648.02, 24-Nov-2020
681,Revenue,CAHD,Academy Resource Base Funding,Other Public Bodies,Cabot Learning Federation,1491.12, 24-Nov-2020
682,Revenue,CAHD,Academy Resource Base Funding,Other Public Bodies,Cabot Learning Federation,1137.94, 24-Nov-2020
683,Revenue,CAHD,Academy Resource Base Funding,Other Public Bodies,Cabot Learning Federation,1491.12, 24-Nov-2020
684,Revenue,CAHD,Academy Resource Base Funding,Other Public Bodies,Cabot Learning Federation,1137.94, 24-Nov-2020
685,Revenue,CAHD,Academy Resource Base Funding,Other Public Bodies,Cabot Learning Federation,1491.12, 24-Nov-2020
686,Revenue,CAHD,Academy Resource Base Funding,Other Public Bodies,Cabot Learning Federation,1137.94, 24-Nov-2020
687,Revenue,CAHD,Academy Resource Base Funding,Other Public Bodies,Cabot Learning Federation,1137.94, 24-Nov-2020
688,Revenue,CAHD,Academy Resource Base Funding,Other Public Bodies,Cabot Learning Federation,1648.02, 24-Nov-2020
689,Revenue,CAHD,Academy Resource Base Funding,Other Public Bodies,Cabot Learning Federation,627.78, 24-Nov-2020
690,Revenue,CAHD,Academy Resource Base Funding,Other Public Bodies,Cabot Learning Federation,981.04, 24-Nov-2020
691,Revenue,CAHD,Academy Resource Base Funding,Other Public Bodies,Cabot Learning Federation,627.78, 24-Nov-2020
692,Revenue,CAHD,Academy Resource Base Funding,Other Public Bodies,Cabot Learning Federation,1491.12, 24-Nov-2020
693,Revenue,CAHD,Academy Resource Base Funding,Other Public Bodies,Cabot Learning Federation,2118.90, 24-Nov-2020
694,Revenue,CAHD,Academy Resource Base Funding,Other Public Bodies,Cabot Learning Federation,2118.90, 24-Nov-2020
695,Revenue,CAHD,Academy Resource Base Funding,Other Public Bodies,Cabot Learning Federation,1137.94, 24-Nov-2020
696,Revenue,CAHD,Academy Resource Base Funding,Other Public Bodies,Cabot Learning Federation,1137.94, 24-Nov-2020
697,Revenue,CAHD,Academy Resource Base Funding,Other Public Bodies,Cabot Learning Federation,1137.94, 24-Nov-2020
698,Revenue,CAHD,Academy Resource Base Funding,Other Public Bodies,Cabot Learning Federation,1137.94, 24-Nov-2020
699,Revenue,CAHD,Academy Resource Base Funding,Other Public Bodies,Cabot Learning Federation,1648.02, 24-Nov-2020
700,Revenue,CAHD,Statemented Support Payments to OLAs,Other L.A.s - General,Cabot Learning Federation,872.46, 25-Nov-2020
701,Revenue,CAHD,Statemented Support Academies,Other Public Bodies,Cabot Learning Federation,710.58, 25-Nov-2020
702,Revenue,CAHD,Statemented Support Academies,Other Public Bodies,Cabot Learning Federation,804.08, 25-Nov-2020
703,Revenue,CAHD,Statemented Support Academies,Other Public Bodies,Cabot Learning Federation,554.13, 25-Nov-2020
704,Revenue,CAHD,Statemented Support Academies,Other Public Bodies,Cabot Learning Federation,742.77, 25-Nov-2020
705,Revenue,CAHD,Statemented Support Academies,Other Public Bodies,Cabot Learning Federation,778.14, 25-Nov-2020
706,Revenue,CAHD,Statemented Support Academies,Other Public Bodies,Cabot Learning Federation,813.51, 25-Nov-2020
707,Revenue,CAHD,Schools Block Growth Contingency,Other Public Bodies,Cabot Learning Federation,39405.89, 25-Nov-2020
708,Revenue,CAHD,Statemented Support Payments to OLAs,Other L.A.s - General,Cabot Learning Federation,601.29, 25-Nov-2020
709,Revenue,CAHD,Statemented Support Academies,Other Public Bodies,Cabot Learning Federation,1131.84, 25-Nov-2020
710,Revenue,CAHD,Statemented Support Academies,Other Public Bodies,Cabot Learning Federation,589.50, 25-Nov-2020
711,Revenue,CAHD,Statemented Support Academies,Other Public Bodies,Cabot Learning Federation,554.13, 25-Nov-2020
712,Revenue,CAHD,Statemented Support Academies,Other Public Bodies,Cabot Learning Federation,801.72, 25-Nov-2020
713,Revenue,CAHD,Statemented Support Academies,Other Public Bodies,Cabot Learning Federation,1096.47, 25-Nov-2020
714,Revenue,CAHD,Statemented Support Academies,Other Public Bodies,Cabot Learning Federation,730.98, 25-Nov-2020
715,Revenue,CAHD,Statemented Support Academies,Other Public Bodies,Cabot Learning Federation,907.83, 25-Nov-2020
716,Revenue,CAHD,Statemented Support Academies,Other Public Bodies,Cabot Learning Federation,801.92, 25-Nov-2020
717,Revenue,CAHD,Statemented Support Academies,Other Public Bodies,Cabot Learning Federation,530.55, 25-Nov-2020
718,Revenue,CAHD,Statemented Support Academies,Other Public Bodies,Cabot Learning Federation,931.41, 25-Nov-2020
719,Revenue,CAHD,Schools Specific Grant Income,Other Public Bodies,Cabot Learning Federation,630.00, 10-Nov-2020
720,Revenue,CAHD,Schools Specific Grant Income,Other Public Bodies,Cabot Learning Federation,630.00, 10-Nov-2020
721,Revenue,CAHD,Schools Specific Grant Income,Other Public Bodies,Cabot Learning Federation,630.00, 10-Nov-2020
722,Revenue,CAHD,Schools Specific Grant Income,Other Public Bodies,Cabot Learning Federation,630.00, 10-Nov-2020
723,Revenue,CAHD,Schools Specific Grant Income,Other Public Bodies,Cabot Learning Federation,630.00, 10-Nov-2020
724,Revenue,CAHD,Schools Specific Grant Income,Other Public Bodies,Cabot Learning Federation,1755.00, 23-Nov-2020
725,Revenue,CAHD,Schools Specific Grant Income,Other Public Bodies,Cabot Learning Federation,630.00, 10-Nov-2020
726,Revenue,CAHD,Statemented Support Academies,Other Public Bodies,Cabot Learning Federation,577.50, 25-Nov-2020
727,Revenue,CAHD,Statemented Support Academies,Other Public Bodies,Cabot Learning Federation,966.83, 25-Nov-2020
728,Revenue,CAHD,Statemented Support Academies,Other Public Bodies,Cabot Learning Federation,872.46, 25-Nov-2020
729,Revenue,CAHD,Schools Specific Grant Income,Other Public Bodies,Cabot Learning Federation,630.00, 10-Nov-2020
730,Revenue,CAHD,Schools Specific Grant Income,Other Public Bodies,Cabot Learning Federation,630.00, 10-Nov-2020
731,Revenue,CAHD,Schools Specific Grant Income,Other Public Bodies,Cabot Learning Federation,630.00, 10-Nov-2020
732,Revenue,CAHD,EARLY YEARS DISABILITY  ACCES FUND,Preventative Assistance,Caerleon Childcare,615.00, 10-Nov-2020
733,Revenue,CAHD,North - Community based support,Permanent Nursing,Caernarvon House,4800.00, 17-Nov-2020
734,Revenue,CAHD,North - Community based support,Permanent Nursing,Caernarvon House,4710.40, 17-Nov-2020
735,Revenue,CAHD,North - S117,Permanent Nursing,Caernarvon House,3990.24, 17-Nov-2020
736,Revenue,CAHD,South - Commissioned Services,Permanent Nursing,Caernarvon House,4915.20, 17-Nov-2020
737,Revenue,CAHD,North - Community based support,Permanent Nursing,Caernarvon House,20892.86, 17-Nov-2020
738,Revenue,CAHD,North - Community based support,Permanent Nursing,Caernarvon House,20357.14, 17-Nov-2020
739,Revenue,CAHD,North - Community based support,Fees & Charges Income - General,Caernarvon House,2424.13, 17-Nov-2020
740,Revenue,CAHD,South - Commissioned Services,Permanent Nursing,Caernarvon House,4800.00, 17-Nov-2020
741,Revenue,CAHD,South - Commissioned Services,Permanent Nursing,Caernarvon House,4300.80, 17-Nov-2020
742,Revenue,CAHD,South - S117,Permanent Nursing,Caernarvon House,4915.20, 17-Nov-2020
743,Revenue,CAHD,South - Commissioned Services,Respite Emergency - Residential,Caernarvon House,4800.00, 17-Nov-2020
744,Revenue,CAHD,Post 16 High Needs Placements,Other Private Contractors,Cambian Whinfell School Limited,27747.77, 06-Nov-2020
745,Revenue,CAHD,Post 16 High Needs Placements,Other Private Contractors,Cambian Whinfell School Limited,28734.89, 06-Nov-2020
746,Revenue,CAHD,North - Community based support,Day Care / Social Activities,Camphill Communities Thornbury Limited,874.23, 06-Nov-2020
747,Revenue,CAHD,North - Community based support,Other Small Contracts,Camphill Communities Thornbury Limited,565.11, 06-Nov-2020
748,Revenue,CAHD,North - Community based support,Supported Living,Camphill Communities Thornbury Limited,1062.60, 06-Nov-2020
749,Revenue,CAHD,North - Community based support,Day Care / Social Activities,Camphill Communities Thornbury Limited,695.52, 13-Nov-2020
750,Revenue,CAHD,North - Community based support,Other Small Contracts,Camphill Communities Thornbury Limited,676.20, 13-Nov-2020
751,Revenue,CAHD,North - Community based support,Supported Living,Camphill Communities Thornbury Limited,1067.43, 13-Nov-2020
752,Revenue,CAHD,North - Community based support,Day Care / Social Activities,Camphill Communities Thornbury Limited,695.52, 20-Nov-2020
753,Revenue,CAHD,North - Community based support,Other Small Contracts,Camphill Communities Thornbury Limited,289.80, 20-Nov-2020
754,Revenue,CAHD,North - Community based support,Supported Living,Camphill Communities Thornbury Limited,1072.26, 20-Nov-2020
755,Revenue,CAHD,North - Community based support,Day Care / Social Activities,Camphill Communities Thornbury Limited,705.18, 27-Nov-2020
756,Revenue,CAHD,North - Community based support,Other Small Contracts,Camphill Communities Thornbury Limited,173.88, 27-Nov-2020
757,Revenue,CAHD,North - Community based support,Supported Living,Camphill Communities Thornbury Limited,883.89, 27-Nov-2020
758,Revenue,CAHD,North - S117,Permanent Residential,Canjayor,3937.76, 17-Nov-2020
759,Revenue,CAHD,CSC - Asylum Seekers - Unaccompanied,Foster Parent Allowances,Capstone Foster Care (South West) Limited,3405.66, 04-Nov-2020
760,Revenue,CAHD,CSC - Agency Fostering,Foster Parent Allowances,Capstone Foster Care (South West) Limited,3222.45, 04-Nov-2020
761,Revenue,CAHD,CSC - Agency Fostering,Foster Parent Allowances,Capstone Foster Care (South West) Limited,3498.66, 04-Nov-2020
762,Revenue,CAHD,CSC - Agency Fostering,Foster Parent Allowances,Capstone Foster Care (South West) Limited,3671.33, 04-Nov-2020
763,Revenue,CAHD,Central - Commissioned Services,Other Small Contracts,Care 1st Homecare,2990.40, 16-Nov-2020
764,Revenue,CAHD,North - Community based support,Supported Living,Care Horizons,5435.28, 17-Nov-2020
765,Revenue,CAHD,North - Community based support,Supported Living,Care Horizons,5435.28, 17-Nov-2020
766,Revenue,CAHD,Central - Commissioned Services,Other Small Contracts,Care Horizons Limited,1005.72, 19-Nov-2020
767,Revenue,CAHD,South - Commissioned Services,Other Small Contracts,Care Horizons Limited,493.00, 19-Nov-2020
768,Revenue,CAHD,North - Community based support,Other Small Contracts,Care Horizons Limited,685.27, 19-Nov-2020
769,Revenue,CAHD,Younger MH non-res purchasing,Other Small Contracts,Care Horizons Limited,236.64, 19-Nov-2020
770,Revenue,CAHD,Central - Commissioned Services,Other Small Contracts,Care Horizons Limited,877.54, 16-Nov-2020
771,Revenue,CAHD,South - Commissioned Services,Other Small Contracts,Care Horizons Limited,493.00, 16-Nov-2020
772,Revenue,CAHD,North - Community based support,Other Small Contracts,Care Horizons Limited,764.15, 16-Nov-2020
773,Revenue,CAHD,Younger MH non-res purchasing,Other Small Contracts,Care Horizons Limited,281.01, 16-Nov-2020
774,Revenue,CAHD,Central - Commissioned Services,Other Small Contracts,Care Horizons Limited,956.42, 19-Nov-2020
775,Revenue,CAHD,South - Commissioned Services,Other Small Contracts,Care Horizons Limited,493.00, 19-Nov-2020
776,Revenue,CAHD,North - Community based support,Other Small Contracts,Care Horizons Limited,754.29, 19-Nov-2020
777,Revenue,CAHD,Younger MH non-res purchasing,Other Small Contracts,Care Horizons Limited,236.64, 19-Nov-2020
778,Revenue,CAHD,Central - Commissioned Services,Other Small Contracts,Care Horizons Limited,1183.20, 26-Nov-2020
779,Revenue,CAHD,South - Commissioned Services,Other Small Contracts,Care Horizons Limited,374.68, 26-Nov-2020
780,Revenue,CAHD,North - Community based support,Other Small Contracts,Care Horizons Limited,818.38, 26-Nov-2020
781,Revenue,CAHD,Younger MH non-res purchasing,Other Small Contracts,Care Horizons Limited,216.92, 26-Nov-2020
782,Revenue,CAHD,Covid - ASC - Infection Control,Grants to Voluntary Bodies,Care Horizons Limited,5221.20, 18-Nov-2020
783,Revenue,CAHD,Covid 19 -Adult Social Care,Other Small Contracts,Carepride Ltd,9.86, 11-Nov-2020
784,Revenue,CAHD,Central - Commissioned Services,Other Small Contracts,Carepride Ltd,566.95, 11-Nov-2020
785,Revenue,CAHD,South - Commissioned Services,Other Small Contracts,Carepride Ltd,113.39, 11-Nov-2020
786,Revenue,CAHD,North - Community based support,Other Small Contracts,Carepride Ltd,226.78, 11-Nov-2020
787,Revenue,CAHD,Covid 19 -Adult Social Care,Other Small Contracts,Carepride Ltd,9.86, 26-Nov-2020
788,Revenue,CAHD,Central - Commissioned Services,Other Small Contracts,Carepride Ltd,626.11, 26-Nov-2020
789,Revenue,CAHD,South - Commissioned Services,Other Small Contracts,Carepride Ltd,118.32, 26-Nov-2020
790,Revenue,CAHD,North - Community based support,Other Small Contracts,Carepride Ltd,216.92, 26-Nov-2020
791,Revenue,CAHD,Central - Commissioned Services,Other Small Contracts,Carepride Ltd,532.44, 26-Nov-2020
792,Revenue,CAHD,South - Commissioned Services,Other Small Contracts,Carepride Ltd,113.39, 26-Nov-2020
793,Revenue,CAHD,North - Community based support,Other Small Contracts,Carepride Ltd,221.85, 26-Nov-2020
794,Revenue,CAHD,Covid 19 -Adult Social Care,Other Small Contracts,Carepride Ltd,9.86, 26-Nov-2020
795,Revenue,CAHD,Central - Commissioned Services,Other Small Contracts,Carepride Ltd,571.88, 26-Nov-2020
796,Revenue,CAHD,South - Commissioned Services,Other Small Contracts,Carepride Ltd,113.39, 26-Nov-2020
797,Revenue,CAHD,North - Community based support,Other Small Contracts,Carepride Ltd,226.78, 26-Nov-2020
798,Revenue,CAHD,Covid - ASC - Infection Control,Grants to Voluntary Bodies,Carepride Ltd,7686.77, 18-Nov-2020
799,Revenue,CAHD,Supporting People Programme,Grants to Voluntary Bodies,Caring for Communities and People,12849.00, 04-Nov-2020
800,Revenue,CAHD,CSC - Care Leavers Independent Living,Independent Living,Caring for Communities and People,2507.14, 27-Nov-2020
801,Revenue,CAHD,CSC - Care Leavers Independent Living,Adults - Family Support,Caring for Communities and People,10080.31, 12-Nov-2020
802,Revenue,CAHD,CSC - Care Leavers Independent Living,Adults - Family Support,Caring for Communities and People,8208.31, 12-Nov-2020
803,Revenue,CAHD,CSC - ASYE,Training Expenses,Individual,1000.00, 23-Nov-2020
804,Revenue,CAHD,Social Lettings Agency,Rent,Individual,699.32, 20-Nov-2020
805,Revenue,CAHD,Social Lettings Agency,Fees - General,Individual,20.57, 20-Nov-2020
806,Revenue,CAHD,South Glos Users in South Glos Homes,Permanent Nursing,Cash Management Team  5Th Floor,4913.29, 17-Nov-2020
807,Revenue,CAHD,Central - Commissioned Services,Permanent Nursing,Cash Management Team  5Th Floor,1710.63, 17-Nov-2020
808,Revenue,CAHD,Central - Commissioned Services,Fees & Charges Income - General,Cash Management Team  5Th Floor,732.23, 17-Nov-2020
809,Revenue,CAHD,North - Community based support,Permanent Nursing,Cash Management Team  5Th Floor,7435.50, 17-Nov-2020
810,Revenue,CAHD,Schools Specific Grant Income,Other Public Bodies,Castle School Education Trust,630.00, 10-Nov-2020
811,Revenue,CAHD,Schools Specific Grant Income,Other Public Bodies,Castle School Education Trust,630.00, 10-Nov-2020
812,Revenue,CAHD,Statemented Support Academies,Other Public Bodies,Castle School Education Trust,530.55, 25-Nov-2020
813,Revenue,CAHD,Statemented Support Academies,Other Public Bodies,Castle School Education Trust,565.92, 25-Nov-2020
814,Revenue,CAHD,Statemented Support Academies,Other Public Bodies,Castle School Education Trust,778.14, 25-Nov-2020
815,Revenue,CAHD,Statemented Support Academies,Other Public Bodies,Castle School Education Trust,931.41, 25-Nov-2020
816,Revenue,CAHD,Statemented Support Academies,Other Public Bodies,Castle School Education Trust,821.50, 25-Nov-2020
817,Revenue,CAHD,Statemented Support Academies,Other Public Bodies,Castle School Education Trust,672.03, 25-Nov-2020
818,Revenue,CAHD,Statemented Support Academies,Other Public Bodies,Castle School Education Trust,577.71, 25-Nov-2020
819,Revenue,CAHD,Statemented Support Academies,Other Public Bodies,Castle School Education Trust,505.08, 25-Nov-2020
820,Revenue,CAHD,Statemented Support Academies,Other Public Bodies,Castle School Education Trust,1461.96, 25-Nov-2020
821,Revenue,CAHD,Statemented Support Academies,Other Public Bodies,Castle School Education Trust,1002.15, 25-Nov-2020
822,Revenue,CAHD,Statemented Support Academies,Other Public Bodies,Castle School Education Trust,613.08, 25-Nov-2020
823,Revenue,CAHD,Statemented Support Academies,Other Public Bodies,Castle School Education Trust,672.03, 25-Nov-2020
824,Revenue,CAHD,Statemented Support Academies,Other Public Bodies,Castle School Education Trust,1120.05, 25-Nov-2020
825,Revenue,CAHD,Statemented Support Academies,Other Public Bodies,Castle School Education Trust,636.66, 25-Nov-2020
826,Revenue,CAHD,Statemented Support Academies,Other Public Bodies,Castle School Education Trust,589.08, 25-Nov-2020
827,Revenue,CAHD,Statemented Support Academies,Other Public Bodies,Castle School Education Trust,954.99, 25-Nov-2020
828,Revenue,CAHD,Statemented Support Academies,Other Public Bodies,Castle School Education Trust,577.71, 25-Nov-2020
829,Revenue,CAHD,Statemented Support Academies,Other Public Bodies,Castle School Education Trust,624.87, 25-Nov-2020
830,Revenue,CAHD,Statemented Support Academies,Other Public Bodies,Castle School Education Trust,825.30, 25-Nov-2020
831,Revenue,CAHD,Statemented Support Academies,Other Public Bodies,Castle School Education Trust,1190.79, 25-Nov-2020
832,Revenue,CAHD,Statemented Support Academies,Other Public Bodies,Castle School Education Trust,848.88, 25-Nov-2020
833,Revenue,CAHD,Statemented Support Academies,Other Public Bodies,Castle School Education Trust,841.00, 25-Nov-2020
834,Revenue,CAHD,Statemented Support Academies,Other Public Bodies,Castle School Education Trust,1237.95, 25-Nov-2020
835,Revenue,CAHD,Statemented Support Academies,Other Public Bodies,Castle School Education Trust,1061.10, 25-Nov-2020
836,Revenue,CAHD,Statemented Support Academies,Other Public Bodies,Castle School Education Trust,518.76, 25-Nov-2020
837,Revenue,CAHD,Statemented Support Academies,Other Public Bodies,Castle School Education Trust,577.71, 25-Nov-2020
838,Revenue,CAHD,Statemented Support Academies,Other Public Bodies,Castle School Education Trust,1143.63, 25-Nov-2020
839,Revenue,CAHD,Statemented Support Academies,Other Public Bodies,Castle School Education Trust,754.25, 25-Nov-2020
840,Revenue,CAHD,Statemented Support Academies,Other Public Bodies,Castle School Education Trust,1485.54, 25-Nov-2020
841,Revenue,CAHD,Schools Specific Grant Income,Other Public Bodies,Castle School Education Trust,630.00, 10-Nov-2020
842,Revenue,CAHD,Statemented Support Academies,Other Public Bodies,Castle School Education Trust,888.75, 25-Nov-2020
843,Revenue,CAHD,Statemented Support Academies,Other Public Bodies,Castle School Education Trust,1261.75, 25-Nov-2020
844,Revenue,CAHD,Statemented Support Academies,Other Public Bodies,Castle School Education Trust,1322.75, 25-Nov-2020
845,Revenue,CAHD,Statemented Support Academies,Other Public Bodies,Castle School Education Trust,801.92, 25-Nov-2020
846,Revenue,CAHD,Statemented Support Academies,Other Public Bodies,Castle School Education Trust,943.17, 25-Nov-2020
847,Revenue,CAHD,Statemented Support Academies,Other Public Bodies,Castle School Education Trust,1267.50, 25-Nov-2020
848,Revenue,CAHD,Academy Resource Base Funding,Other Public Bodies,Castle School Education Trust,1648.02, 24-Nov-2020
849,Revenue,CAHD,Academy Resource Base Funding,Other Public Bodies,Castle School Education Trust,1648.02, 24-Nov-2020
850,Revenue,CAHD,Academy Resource Base Funding,Other Public Bodies,Castle School Education Trust,1648.02, 24-Nov-2020
851,Revenue,CAHD,Academy Resource Base Funding,Other Public Bodies,Castle School Education Trust,1648.02, 24-Nov-2020
852,Revenue,CAHD,Academy Resource Base Funding,Other Public Bodies,Castle School Education Trust,1648.02, 24-Nov-2020
853,Revenue,CAHD,Academy Resource Base Funding,Other Public Bodies,Castle School Education Trust,1648.02, 24-Nov-2020
854,Revenue,CAHD,Academy Resource Base Funding,Other Public Bodies,Castle School Education Trust,2118.90, 24-Nov-2020
855,Revenue,CAHD,Academy Resource Base Funding,Other Public Bodies,Castle School Education Trust,1648.02, 24-Nov-2020
856,Revenue,CAHD,Academy Resource Base Funding,Other Public Bodies,Castle School Education Trust,1648.02, 24-Nov-2020
857,Revenue,CAHD,Academy Resource Base Funding,Other Public Bodies,Castle School Education Trust,1648.02, 24-Nov-2020
858,Revenue,CAHD,Academy Resource Base Funding,Other Public Bodies,Castle School Education Trust,2432.78, 24-Nov-2020
859,Revenue,CAHD,Academy Resource Base Funding,Other Public Bodies,Castle School Education Trust,1648.02, 24-Nov-2020
860,Revenue,CAHD,Schools Block Growth Contingency,Other Public Bodies,Castle School Education Trust,49367.50, 25-Nov-2020
861,Revenue,CAHD,Statemented Support Academies,Other Public Bodies,Castle School Education Trust,672.03, 25-Nov-2020
862,Revenue,CAHD,Statemented Support Academies,Other Public Bodies,Castle School Education Trust,822.50, 25-Nov-2020
863,Revenue,CAHD,Statemented Support Academies,Other Public Bodies,Castle School Education Trust,872.46, 25-Nov-2020
864,Revenue,CAHD,Statemented Support Academies,Other Public Bodies,Castle School Education Trust,848.88, 25-Nov-2020
865,Revenue,CAHD,Statemented Support Academies,Other Public Bodies,Castle School Education Trust,541.58, 25-Nov-2020
866,Revenue,CAHD,Statemented Support Academies,Other Public Bodies,Castle School Education Trust,1444.17, 25-Nov-2020
867,Revenue,CAHD,Statemented Support Academies,Other Public Bodies,Castle School Education Trust,956.00, 25-Nov-2020
868,Revenue,CAHD,Statemented Support Academies,Other Public Bodies,Castle School Education Trust,1025.73, 25-Nov-2020
869,Revenue,CAHD,Statemented Support Academies,Other Public Bodies,Castle School Education Trust,4885.26, 25-Nov-2020
870,Revenue,CAHD,Statemented Support Academies,Other Public Bodies,Castle School Education Trust,560.17, 25-Nov-2020
871,Revenue,CAHD,Schools Specific Grant Income,Other Public Bodies,Castle School Education Trust,630.00, 10-Nov-2020
872,Revenue,CAHD,Schools Specific Grant Income,Other Public Bodies,Castle School Education Trust,630.00, 10-Nov-2020
873,Revenue,CAHD,Statemented Support Academies,Other Public Bodies,Castle School Education Trust,630.58, 25-Nov-2020
874,Revenue,CAHD,Statemented Support Academies,Other Public Bodies,Castle School Education Trust,778.14, 25-Nov-2020
875,Revenue,CAHD,Statemented Support Academies,Other Public Bodies,Castle School Education Trust,941.58, 25-Nov-2020
876,Revenue,CAHD,Statemented Support Academies,Other Public Bodies,Castle School Education Trust,613.08, 25-Nov-2020
877,Revenue,CAHD,Schools Specific Grant Income,Other Public Bodies,Castle School Education Trust,630.00, 10-Nov-2020
878,Revenue,CAHD,Schools Specific Grant Income,Other Public Bodies,Castle School Education Trust,630.00, 10-Nov-2020
879,Revenue,CAHD,Schools Specific Grant Income,Other Public Bodies,Castle School Education Trust,630.00, 10-Nov-2020
880,Revenue,CAHD,Schools Specific Grant Income,Other Public Bodies,Castle School Education Trust,630.00, 10-Nov-2020
881,Revenue,CAHD,Schools Specific Grant Income,Other Public Bodies,Castle School Education Trust,630.00, 10-Nov-2020
882,Revenue,CAHD,Schools Specific Grant Income,Other Public Bodies,Castle School Education Trust,720.00, 23-Nov-2020
883,Revenue,CAHD,Schools Specific Grant Income,Other Public Bodies,Castle School Educational Turust,630.00, 10-Nov-2020
884,Revenue,CAHD,Schools Specific Grant Income,Other Public Bodies,Castle School Educational Turust,630.00, 10-Nov-2020
885,Revenue,CAHD,Statemented Support Academies,Other Public Bodies,Castle School Educational Turust,1129.92, 25-Nov-2020
886,Revenue,CAHD,Statemented Support Academies,Other Public Bodies,Castle School Educational Turust,854.00, 25-Nov-2020
887,Revenue,CAHD,Statemented Support Academies,Other Public Bodies,Castle School Educational Turust,790.58, 25-Nov-2020
888,Revenue,CAHD,Statemented Support Academies,Other Public Bodies,Castle School Educational Turust,508.67, 25-Nov-2020
889,Revenue,CAHD,Statemented Support Academies,Other Public Bodies,Castle School Educational Turust,1148.20, 25-Nov-2020
890,Revenue,CAHD,Statemented Support Academies,Other Public Bodies,Castle School Educational Turust,1097.25, 25-Nov-2020
891,Revenue,CAHD,Statemented Support Academies,Other Public Bodies,Castle School Educational Turust,1742.01, 25-Nov-2020
892,Revenue,CAHD,North - Community based support,Day Care / Social Activities,Causeway House,2176.64, 17-Nov-2020
893,Revenue,CAHD,South - Commissioned Services,Day Care / Social Activities,Causeway House,5358.20, 17-Nov-2020
894,Revenue,CAHD,Central - Commissioned Services,Day Care / Social Activities,Causeway House,1447.08, 17-Nov-2020
895,Revenue,CAHD,18-25 Year Olds,Day Care / Social Activities,Causeway House,4502.92, 17-Nov-2020
896,Revenue,CAHD,Central - Commissioned Services,Day Care / Social Activities,Causeway House,3671.36, 17-Nov-2020
897,Revenue,CAHD,Central - Commissioned Services,Day Care / Social Activities,Causeway House,3969.44, 17-Nov-2020
898,Revenue,CAHD,Central - Commissioned Services,Day Care / Social Activities,Causeway House,2119.20, 17-Nov-2020
899,Revenue,CAHD,North - Community based support,Day Care / Social Activities,Causeway House,3290.72, 17-Nov-2020
900,Revenue,CAHD,North - Community based support,Day Care / Social Activities,Causeway House,4902.56, 17-Nov-2020
901,Revenue,CAHD,Central - Commissioned Services,Day Care / Social Activities,Causeway House,3725.16, 17-Nov-2020
902,Revenue,CAHD,North - Community based support,Day Care / Social Activities,Causeway House,3212.08, 17-Nov-2020
903,Revenue,CAHD,North - Community based support,Day Care / Social Activities,Causeway House,579.68, 17-Nov-2020
904,Revenue,CAHD,South - Commissioned Services,Permanent Residential,Challenge House,2834.44, 17-Nov-2020
905,Revenue,CAHD,South - Commissioned Services,Permanent Residential,Challenge House,2836.00, 17-Nov-2020
906,Revenue,CAHD,North - S117,Permanent Residential,Challenge House,2571.40, 17-Nov-2020
907,Revenue,CAHD,Central - Commissioned Services,Permanent Residential,Challenge House,2800.00, 17-Nov-2020
908,Revenue,CAHD,North - Community based support,Permanent Residential,Challenge House,2233.00, 17-Nov-2020
909,Revenue,CAHD,Central - Commissioned Services,Permanent Residential,Challenge House,2365.64, 17-Nov-2020
910,Revenue,CAHD,North - Community based support,Permanent Residential,Challenge House,2363.40, 17-Nov-2020
911,Revenue,CAHD,Central - Commissioned Services,Permanent Residential,Challenge House,16320.00, 17-Nov-2020
912,Revenue,CAHD,Central - Commissioned Services,Permanent Residential,Challenge House,2720.00, 17-Nov-2020
913,Revenue,CAHD,Central - Commissioned Services,Fees & Charges Income - General,Challenge House,5765.60, 17-Nov-2020
914,Revenue,CAHD,North - Community based support,Permanent Residential,Challenge House,2834.40, 17-Nov-2020
915,Revenue,CAHD,North - Community based support,Permanent Nursing,Challenge House,3205.48, 17-Nov-2020
916,Revenue,CAHD,North - S117,Permanent Nursing,Challenge House,2453.28, 17-Nov-2020
917,Revenue,CAHD,North - bed purchasing and direct  payments,Permanent Residential,Challenge House,669.24, 17-Nov-2020
918,Revenue,CAHD,North - Community based support,Permanent Nursing,Challenge House,2453.28, 17-Nov-2020
919,Revenue,CAHD,North - Community based support,Permanent Nursing,Challenge House,3205.48, 17-Nov-2020
920,Revenue,CAHD,South - Commissioned Services,Respite Planned - Nursing,Challenge House,6800.00, 17-Nov-2020
921,Revenue,CAHD,South Glos Users in South Glos Homes,Permanent Nursing,Challenge House,735.68, 17-Nov-2020
922,Revenue,CAHD,North - Community based support,Permanent Nursing,Challenge House,3400.00, 17-Nov-2020
923,Revenue,CAHD,South Glos Users in South Glos Homes,Permanent Nursing,Challenge House,735.68, 17-Nov-2020
924,Revenue,CAHD,South - Commissioned Services,Permanent Nursing,Challenge House,2941.88, 17-Nov-2020
925,Revenue,CAHD,South Glos Users in South Glos Homes,Permanent Nursing,Challenge House,735.68, 17-Nov-2020
926,Revenue,CAHD,North - Community based support,Permanent Nursing,Challenge House,3272.64, 17-Nov-2020
927,Revenue,CAHD,South Glos Users in South Glos Homes,Permanent Nursing,Challenge House,735.68, 17-Nov-2020
928,Revenue,CAHD,South Glos Users in South Glos Homes,Permanent Nursing,Challenge House,735.68, 17-Nov-2020
929,Revenue,CAHD,North - Community based support,Fees & Charges Income - General,Challenge House,1035.41, 17-Nov-2020
930,Revenue,CAHD,North - Community based support,Respite Planned - Residential,Challenge House,850.00, 17-Nov-2020
931,Revenue,CAHD,Central - Commissioned Services,Respite Planned - Nursing,Challenge House,3400.00, 17-Nov-2020
932,Revenue,CAHD,Central - Commissioned Services,Respite Planned - Nursing,Challenge House,2064.29, 17-Nov-2020
933,Revenue,CAHD,South Glos Users in South Glos Homes,Permanent Nursing,Challenge House,735.68, 17-Nov-2020
934,Revenue,CAHD,South Glos Users in South Glos Homes,Permanent Nursing,Challenge House,735.68, 17-Nov-2020
935,Revenue,CAHD,South - Commissioned Services,Permanent Residential,Challenge House,3060.00, 17-Nov-2020
936,Revenue,CAHD,South Glos Users in South Glos Homes,Permanent Nursing,Challenge House,735.68, 17-Nov-2020
937,Revenue,CAHD,South Glos Users in South Glos Homes,Permanent Nursing,Challenge House,735.68, 17-Nov-2020
938,Revenue,CAHD,South Glos Users in South Glos Homes,Permanent Nursing,Challenge House,735.68, 17-Nov-2020
939,Revenue,CAHD,South Glos Users in South Glos Homes,Permanent Nursing,Challenge House,735.68, 17-Nov-2020
940,Revenue,CAHD,South Glos Users in South Glos Homes,Permanent Nursing,Challenge House,735.68, 17-Nov-2020
941,Revenue,CAHD,South Glos Users in South Glos Homes,Permanent Nursing,Challenge House,735.68, 17-Nov-2020
942,Revenue,CAHD,South Glos Users in South Glos Homes,Permanent Nursing,Challenge House,735.68, 17-Nov-2020
943,Revenue,CAHD,South Glos Users in South Glos Homes,Permanent Nursing,Challenge House,735.68, 17-Nov-2020
944,Revenue,CAHD,South Glos Users in South Glos Homes,Permanent Nursing,Challenge House,735.68, 17-Nov-2020
945,Revenue,CAHD,South Glos Users in South Glos Homes,Permanent Nursing,Challenge House,735.68, 17-Nov-2020
946,Revenue,CAHD,North - Community based support,Permanent Nursing,Challenge House,2884.08, 17-Nov-2020
947,Revenue,CAHD,South Glos Users in South Glos Homes,Permanent Nursing,Challenge House,735.68, 17-Nov-2020
948,Revenue,CAHD,North - Community based support,Permanent Nursing,Challenge House,3243.60, 17-Nov-2020
949,Revenue,CAHD,South Glos Users in South Glos Homes,Permanent Nursing,Challenge House,735.68, 17-Nov-2020
950,Revenue,CAHD,Central - Commissioned Services,Permanent Nursing,Challenge House,728.57, 17-Nov-2020
951,Revenue,CAHD,North - Community based support,Permanent Nursing,Challenge House,3405.60, 17-Nov-2020
952,Revenue,CAHD,South Glos Users in South Glos Homes,Permanent Nursing,Challenge House,735.68, 17-Nov-2020
953,Revenue,CAHD,North - Community based support,Permanent Residential,Challenge House,3121.20, 17-Nov-2020
954,Revenue,CAHD,South Glos Users in South Glos Homes,Permanent Nursing,Challenge House,735.68, 17-Nov-2020
955,Revenue,CAHD,North - Community based support,Permanent Nursing,Challenge House,2884.08, 17-Nov-2020
956,Revenue,CAHD,South Glos Users in South Glos Homes,Permanent Nursing,Challenge House,735.68, 17-Nov-2020
957,Revenue,CAHD,South Glos Users in South Glos Homes,Permanent Nursing,Challenge House,735.68, 17-Nov-2020
958,Revenue,CAHD,Covid - ASC - Infection Control,Grants to Voluntary Bodies,Challenge House,13937.18, 18-Nov-2020
959,Revenue,CAHD,CSC - Vinney Green Secure Unit,External Lecturers Fees,Changing Tunes,2500.00, 26-Nov-2020
960,Revenue,CAHD,Early Years Inclusion Fund,Other Public Bodies,Charfield Pre-School,900.00, 23-Nov-2020
961,Revenue,CAHD,Early Years Inclusion Fund,Other Public Bodies,Charfield Pre-School,1000.00, 23-Nov-2020
962,Revenue,CAHD,Early Years Inclusion Fund,Other Public Bodies,Charfield Pre-School,1000.00, 23-Nov-2020
963,Revenue,CAHD,CSC - Vinney Green Secure Unit,"Provisions (Food, etc)",Charles Saunders Limited,386.71, 11-Nov-2020
964,Revenue,CAHD,CSC - Vinney Green Secure Unit,"Provisions (Food, etc)",Charles Saunders Limited,151.76, 11-Nov-2020
965,Revenue,CAHD,CSC - Vinney Green Secure Unit,"Provisions (Food, etc)",Charles Saunders Limited,549.71, 04-Nov-2020
966,Revenue,CAHD,CSC - Vinney Green Secure Unit,"Provisions (Food, etc)",Charles Saunders Limited,116.42, 04-Nov-2020
967,Revenue,CAHD,CSC - Vinney Green Secure Unit,"Provisions (Food, etc)",Charles Saunders Limited,495.80, 06-Nov-2020
968,Revenue,CAHD,Alexandra Way,"Provisions (Food, etc)",Charles Saunders Limited,491.82, 20-Nov-2020
969,Revenue,CAHD,CSC - Vinney Green Secure Unit,"Provisions (Food, etc)",Charles Saunders Limited,369.99, 13-Nov-2020
970,Revenue,CAHD,CSC - Vinney Green Secure Unit,"Provisions (Food, etc)",Charles Saunders Limited,286.17, 13-Nov-2020
971,Revenue,CAHD,CSC - Vinney Green Secure Unit,"Provisions (Food, etc)",Charles Saunders Limited,377.12, 30-Nov-2020
972,Revenue,CAHD,CSC - Vinney Green Secure Unit,"Provisions (Food, etc)",Charles Saunders Limited,105.13, 30-Nov-2020
973,Revenue,CAHD,Training - Adult Services,Training Expenses,Individual,550.00, 02-Nov-2020
974,Revenue,CAHD,Training - Adult Services,Training Expenses,Individual,600.00, 02-Nov-2020
975,Revenue,CAHD,Schools Block Growth Contingency,Other Public Bodies,Charlton Wood Primary Academy,29166.67, 25-Nov-2020
976,Revenue,CAHD,Schools Block Growth Contingency,Other Public Bodies,Charlton Wood Primary Academy,49367.50, 25-Nov-2020
977,Revenue,CAHD,Statemented Support Academies,Other Public Bodies,Charlton Wood Primary Academy,702.17, 25-Nov-2020
978,Revenue,CAHD,South - Commissioned Services,Other Small Contracts,Cherish Able Care Limited,1029.00, 16-Nov-2020
979,Revenue,CAHD,South - Commissioned Services,Other Small Contracts,Cherish Able Care Limited,1029.00, 16-Nov-2020
980,Revenue,CAHD,Central - Commissioned Services,Other Small Contracts,Cherish Able Care Limited,2390.85, 02-Nov-2020
981,Revenue,CAHD,South - Commissioned Services,Other Small Contracts,Cherish Able Care Limited,5554.67, 02-Nov-2020
982,Revenue,CAHD,North - Community based support,Other Small Contracts,Cherish Able Care Limited,879.06, 02-Nov-2020
983,Revenue,CAHD,Central - Commissioned Services,Other Small Contracts,Cherish Able Care Limited,2443.98, 12-Nov-2020
984,Revenue,CAHD,South - Commissioned Services,Other Small Contracts,Cherish Able Care Limited,5536.28, 12-Nov-2020
985,Revenue,CAHD,North - Community based support,Other Small Contracts,Cherish Able Care Limited,869.40, 12-Nov-2020
986,Revenue,CAHD,Central - Commissioned Services,Other Small Contracts,Cherish Able Care Limited,1883.70, 19-Nov-2020
987,Revenue,CAHD,South - Commissioned Services,Other Small Contracts,Cherish Able Care Limited,5279.86, 19-Nov-2020
988,Revenue,CAHD,North - Community based support,Other Small Contracts,Cherish Able Care Limited,1642.20, 19-Nov-2020
989,Revenue,CAHD,Covid - ASC - Infection Control,Grants to Voluntary Bodies,Cherish Able Care Limited,6961.60, 18-Nov-2020
990,Revenue,CAHD,South - Commissioned Services,Supported Living,Cherry Orchards,1275.12, 06-Nov-2020
991,Revenue,CAHD,18-25 Year Olds,Other Small Contracts,Cherry Orchards,1622.88, 06-Nov-2020
992,Revenue,CAHD,South - Commissioned Services,Other Small Contracts,Cherry Orchards,6452.88, 06-Nov-2020
993,Revenue,CAHD,South - Commissioned Services,Supported Living,Cherry Orchards,2085.84, 17-Nov-2020
994,Revenue,CAHD,18-25 Year Olds,Supported Living,Cherry Orchards,2030.52, 17-Nov-2020
995,Revenue,CAHD,North - Community based support,Supported Living,Cherry Orchards,1042.96, 17-Nov-2020
996,Revenue,CAHD,S28A cases,Permanent Residential,Chescombe Trust Ltd,9959.72, 17-Nov-2020
997,Revenue,CAHD,Early Years Inclusion Fund,Other Public Bodies,Chipping Sodbury Pre School,3600.00, 13-Nov-2020
998,Revenue,CAHD,Early Years Inclusion Fund,Other Public Bodies,Christchurch Pre School,1650.00, 09-Nov-2020
999,Revenue,CAHD,Early Years Inclusion Fund,Other Public Bodies,Christchurch Pre School,2000.00, 09-Nov-2020
1000,Revenue,CAHD,18-25 Year Olds,Other Small Contracts,Cintre,846.60, 02-Nov-2020
1001,Revenue,CAHD,Central - Commissioned Services,Other Small Contracts,Cintre,159.36, 02-Nov-2020
1002,Revenue,CAHD,South - Commissioned Services,Other Small Contracts,Cintre,1294.80, 02-Nov-2020
1003,Revenue,CAHD,18-25 Year Olds,Other Small Contracts,Cintre,846.60, 06-Nov-2020
1004,Revenue,CAHD,Central - Commissioned Services,Other Small Contracts,Cintre,239.04, 06-Nov-2020
1005,Revenue,CAHD,South - Commissioned Services,Other Small Contracts,Cintre,1334.64, 06-Nov-2020
1006,Revenue,CAHD,18-25 Year Olds,Other Small Contracts,Cintre,846.60, 12-Nov-2020
1007,Revenue,CAHD,Central - Commissioned Services,Other Small Contracts,Cintre,258.96, 12-Nov-2020
1008,Revenue,CAHD,South - Commissioned Services,Other Small Contracts,Cintre,1334.64, 12-Nov-2020
1009,Revenue,CAHD,18-25 Year Olds,Other Small Contracts,Cintre,846.60, 19-Nov-2020
1010,Revenue,CAHD,Central - Commissioned Services,Other Small Contracts,Cintre,318.72, 19-Nov-2020
1011,Revenue,CAHD,South - Commissioned Services,Other Small Contracts,Cintre,1334.64, 19-Nov-2020
1012,Revenue,CAHD,18-25 Year Olds,Other Small Contracts,Cintre,582.28, 20-Nov-2020
1013,Revenue,CAHD,Information Systems - Software,Software Support & Maintenance,Civica UK Limited,25718.90, 19-Nov-2020
1014,Revenue,CAHD,South - Commissioned Services,Permanent Residential,Clearwater Care,5280.28, 17-Nov-2020
1015,Revenue,CAHD,South - Commissioned Services,Permanent Residential,Cleeve Lodge,3760.12, 17-Nov-2020
1016,Revenue,CAHD,South - Commissioned Services,Permanent Residential,Cleeve Lodge,3760.12, 17-Nov-2020
1017,Revenue,CAHD,South - Commissioned Services,Permanent Residential,Cleeve Lodge,1334.60, 17-Nov-2020
1018,Revenue,CAHD,South - Commissioned Services,Permanent Residential,Cleeve Lodge,532.16, 17-Nov-2020
1019,Revenue,CAHD,South - Commissioned Services,Permanent Residential,Cleeve Lodge,4400.00, 17-Nov-2020
1020,Revenue,CAHD,North - Community based support,Permanent Residential,Cleeve Lodge,4400.00, 17-Nov-2020
1021,Revenue,CAHD,South - Commissioned Services,Permanent Residential,Cleeve Lodge,4000.00, 17-Nov-2020
1022,Revenue,CAHD,North - Community based support,Respite Planned - Residential,Cleeve Lodge,15428.57, 17-Nov-2020
1023,Revenue,CAHD,South - Commissioned Services,Permanent Residential,Cleeve Lodge,2950.88, 17-Nov-2020
1024,Revenue,CAHD,Central - Commissioned Services,Other Small Contracts,Clover Health and Home Care Ltd,605.34, 04-Nov-2020
1025,Revenue,CAHD,North - Community based support,Permanent Residential,Collingwood Care Home,3000.00, 17-Nov-2020
1026,Revenue,CAHD,South - Commissioned Services,Permanent Residential,Collingwood Care Home,2554.36, 17-Nov-2020
1027,Revenue,CAHD,Covid - ASC - Infection Control,Grants to Voluntary Bodies,Collingwood Care Home,9059.17, 18-Nov-2020
1028,Revenue,CAHD,South - Commissioned Services,Permanent Residential,Community Theraputic Services,7893.40, 17-Nov-2020
1029,Revenue,CAHD,Jointly Funded H&SC Packages,Permanent Residential,Community Theraputic Services,4875.84, 17-Nov-2020
1030,Revenue,CAHD,North - Community based support,Permanent Residential,Community Theraputic Services,8119.76, 17-Nov-2020
1031,Revenue,CAHD,Jointly Funded H&SC Packages,Permanent Residential,Community Theraputic Services,2027.52, 17-Nov-2020
1032,Revenue,CAHD,Statemented Support Equipment,Educational Supplies & Equipment,Connevans Limited,2101.58, 04-Nov-2020
1033,Revenue,CAHD,Statemented Support Equipment,Educational Supplies & Equipment,Connevans Limited,1590.05, 20-Nov-2020
1034,Revenue,CAHD,Statemented Support Equipment,Educational Supplies & Equipment,Connevans Limited,2492.25, 27-Nov-2020
1035,Revenue,CAHD,CSC - Care Leavers Independent Living,Adults - Family Support,Connolly & Callaghan Limited,630.00, 04-Nov-2020
1036,Revenue,CAHD,Bed and Breakfast,Bed & Breakfast,Connolly & Callaghan Limited,422.80, 02-Nov-2020
1037,Revenue,CAHD,Bed and Breakfast,Bed & Breakfast,Connolly & Callaghan Limited,422.80, 02-Nov-2020
1038,Revenue,CAHD,Bed and Breakfast,Bed & Breakfast,Connolly & Callaghan Limited,422.80, 02-Nov-2020
1039,Revenue,CAHD,Bed and Breakfast,Bed & Breakfast,Connolly & Callaghan Limited,679.00, 02-Nov-2020
1040,Revenue,CAHD,Bed and Breakfast,Bed & Breakfast,Connolly & Callaghan Limited,593.60, 26-Nov-2020
1041,Revenue,CAHD,Bed and Breakfast,Bed & Breakfast,Connolly & Callaghan Limited,515.90, 02-Nov-2020
1042,Revenue,CAHD,CSC - Care Leavers Independent Living,Adults - Family Support,Connolly & Callaghan Limited,630.00, 17-Nov-2020
1043,Revenue,CAHD,Bed and Breakfast,Bed & Breakfast,Connolly & Callaghan Limited,422.80, 12-Nov-2020
1044,Revenue,CAHD,Bed and Breakfast,Bed & Breakfast,Connolly & Callaghan Limited,422.80, 12-Nov-2020
1045,Revenue,CAHD,Bed and Breakfast,Bed & Breakfast,Connolly & Callaghan Limited,422.80, 13-Nov-2020
1046,Revenue,CAHD,Bed and Breakfast,Bed & Breakfast,Connolly & Callaghan Limited,679.00, 13-Nov-2020
1047,Revenue,CAHD,Bed and Breakfast,Bed & Breakfast,Connolly & Callaghan Limited,515.90, 18-Nov-2020
1048,Revenue,CAHD,CSC - Care Leavers Independent Living,Adults - Family Support,Connolly & Callaghan Limited,630.00, 25-Nov-2020
1049,Revenue,CAHD,Bed and Breakfast,Bed & Breakfast,Connolly & Callaghan Limited,422.80, 20-Nov-2020
1050,Revenue,CAHD,Bed and Breakfast,Bed & Breakfast,Connolly & Callaghan Limited,422.80, 20-Nov-2020
1051,Revenue,CAHD,Bed and Breakfast,Bed & Breakfast,Connolly & Callaghan Limited,679.00, 20-Nov-2020
1052,Revenue,CAHD,Bed and Breakfast,Bed & Breakfast,Connolly & Callaghan Limited,515.90, 20-Nov-2020
1053,Revenue,CAHD,Bed and Breakfast,Bed & Breakfast,Connolly & Callaghan Limited,679.00, 30-Nov-2020
1054,Revenue,CAHD,Bed and Breakfast,Other Supplies & Services,Connolly & Callaghan Limited,420.00, 30-Nov-2020
1055,Revenue,CAHD,Bed and Breakfast,Bed & Breakfast,Connolly & Callaghan Limited,422.80, 20-Nov-2020
1056,Revenue,CAHD,CSC - Vinney Green Secure Unit,Other Supplies & Services,Coram Voice,2247.50, 25-Nov-2020
1057,Revenue,CAHD,CSC - Vinney Green Secure Unit,Other Supplies & Services,Coram Voice,2247.50, 20-Nov-2020
1058,Revenue,CAHD,CSC - Fostering Carer Support,Care Mgt/Asesmnt Staff Pay,Core Assets Expert Services Ltd T/A Carter Brown,750.00, 02-Nov-2020
1059,Revenue,CAHD,CSC - Fostering Carer Support,Care Mgt/Asesmnt Staff Pay,Core Assets Expert Services Ltd T/A Carter Brown,2800.00, 13-Nov-2020
1060,Revenue,CAHD,CSC - Fostering Carer Support,Care Mgt/Asesmnt Staff Pay,Core Assets Expert Services Ltd T/A Carter Brown,1200.00, 13-Nov-2020
1061,Revenue,CAHD,Alexandra Way,Cleaning & Domestic Services,Countrywide Healthcare Supplies Ltd,502.67, 24-Nov-2020
1062,Revenue,CAHD,North - Community based support,Permanent Residential,Court House Residential C.H.,3400.00, 17-Nov-2020
1063,Revenue,CAHD,Childrens - Safeguarding Board,Training Expenses,Craft Training and Development,2300.00, 30-Nov-2020
1064,Revenue,CAHD,Positive Activities Subsidy for Young Pe,Training Expenses,Creative Youth Network,1000.00, 06-Nov-2020
1065,Revenue,CAHD,S28A cases,Permanent Residential,Creedy Court,10597.96, 17-Nov-2020
1066,Revenue,CAHD,S28A cases,Permanent Residential,Creedy Court,8904.92, 17-Nov-2020
1067,Revenue,CAHD,North - Community based support,Permanent Residential,Creedy Court,14054.00, 17-Nov-2020
1068,Revenue,CAHD,EARLY YEARS DEPRIVATION PAYMENT,Preventative Assistance,Crossways Pre-School,1123.68, 09-Nov-2020
1069,Revenue,CAHD,Early Years Pupil Premium Grant,Preventative Assistance,Crossways Pre-School,585.65, 09-Nov-2020
1070,Revenue,CAHD,Training Budget - Children`s Social Serv,Training Expenses,Cruidin Training and Consultancy Ltd,2000.00, 11-Nov-2020
1071,Revenue,CAHD,Community Support - South,Preventative Assistance,Cucumber Recruitment Limited,1422.00, 27-Nov-2020
1072,Revenue,CAHD,Central - Commissioned Services,Supported Living,Cygnet Healthcare Limited,3304.00, 17-Nov-2020
1073,Revenue,CAHD,South - Commissioned Services,Permanent Residential,Daneswood,12759.56, 17-Nov-2020
1074,Revenue,CAHD,South - Commissioned Services,Day Care / Social Activities,Daneswood,1441.60, 17-Nov-2020
1075,Revenue,CAHD,North - Community based support,Permanent Residential,Daneswood,13579.68, 17-Nov-2020
1076,Revenue,CAHD,CSC - Legal Fees,Legal Fees,Daniel Woodman & Co Limited,587.00, 25-Nov-2020
1077,Revenue,CAHD,South - S117,Permanent Nursing,Danshell Healthcare Group,11437.64, 17-Nov-2020
1078,Revenue,CAHD,Jointly Funded H&SC Packages,Permanent Nursing,Danshell Healthcare Group,1697.16, 17-Nov-2020
1079,Revenue,CAHD,Learning Difficulties PSL,Rent,Individual,2400.00, 20-Nov-2020
1080,Revenue,CAHD,CSC - LAC Placements,Preventative Assistance,David Lloyd Leisure Ltd,2228.75, 12-Nov-2020
1081,Revenue,CAHD,Central - Commissioned Services,Permanent Residential,Debt Recovery,4173.72, 17-Nov-2020
1082,Revenue,CAHD,South - Commissioned Services,Permanent Residential,Debt Recovery,4266.36, 17-Nov-2020
1083,Revenue,CAHD,North - Community based support,Permanent Nursing,Debt Recovery,4478.12, 17-Nov-2020
1084,Revenue,CAHD,North - Community based support,Permanent Nursing,Debt Recovery,3687.20, 17-Nov-2020
1085,Revenue,CAHD,Central - Commissioned Services,Permanent Residential,Debt Recovery,4617.04, 17-Nov-2020
1086,Revenue,CAHD,North - Community based support,Permanent Nursing,Debt Recovery,5604.96, 17-Nov-2020
1087,Revenue,CAHD,North - Community based support,Permanent Nursing,Debt Recovery,3586.16, 17-Nov-2020
1088,Revenue,CAHD,Central - Commissioned Services,Permanent Nursing,Debt Recovery,5568.36, 17-Nov-2020
1089,Revenue,CAHD,North - Community based support,Permanent Residential,Debt Recovery,3643.92, 17-Nov-2020
1090,Revenue,CAHD,North - Community based support,Permanent Nursing,Debt Recovery,6274.96, 17-Nov-2020
1091,Revenue,CAHD,North - Community based support,Permanent Nursing,Debt Recovery,4121.24, 17-Nov-2020
1092,Revenue,CAHD,South - Commissioned Services,Permanent Nursing,Debt Recovery,6437.72, 17-Nov-2020
1093,Revenue,CAHD,South Glos Users in South Glos Homes,Permanent Nursing,Deerhurst Nursing Home,735.68, 17-Nov-2020
1094,Revenue,CAHD,South - Commissioned Services,Permanent Nursing,Deerhurst Nursing Home,3881.40, 17-Nov-2020
1095,Revenue,CAHD,South Glos Users in South Glos Homes,Permanent Nursing,Deerhurst Nursing Home,735.68, 17-Nov-2020
1096,Revenue,CAHD,South - Commissioned Services,Permanent Nursing,Deerhurst Nursing Home,4160.00, 17-Nov-2020
1097,Revenue,CAHD,South - Commissioned Services,Permanent Nursing,Deerhurst Nursing Home,2822.86, 17-Nov-2020
1098,Revenue,CAHD,South - Commissioned Services,Permanent Nursing,Deerhurst Nursing Home,4400.00, 17-Nov-2020
1099,Revenue,CAHD,South Glos Users in South Glos Homes,Permanent Nursing,Deerhurst Nursing Home,735.68, 17-Nov-2020
1100,Revenue,CAHD,South - Commissioned Services,Day Care / Social Activities,Deerhurst Nursing Home,568.16, 17-Nov-2020
1101,Revenue,CAHD,South Glos Users in South Glos Homes,Permanent Nursing,Deerhurst Nursing Home,735.68, 17-Nov-2020
1102,Revenue,CAHD,South - Commissioned Services,Permanent Nursing,Deerhurst Nursing Home,4098.52, 17-Nov-2020
1103,Revenue,CAHD,South Glos Users in South Glos Homes,Permanent Nursing,Deerhurst Nursing Home,735.68, 17-Nov-2020
1104,Revenue,CAHD,South - Commissioned Services,Permanent Nursing,Deerhurst Nursing Home,4006.00, 17-Nov-2020
1105,Revenue,CAHD,South Glos Users in South Glos Homes,Permanent Nursing,Deerhurst Nursing Home,735.68, 17-Nov-2020
1106,Revenue,CAHD,North - Community based support,Permanent Nursing,Deerhurst Nursing Home,3891.20, 17-Nov-2020
1107,Revenue,CAHD,South - Commissioned Services,Permanent Nursing,Deerhurst Nursing Home,3965.12, 17-Nov-2020
1108,Revenue,CAHD,South Glos Users in South Glos Homes,Permanent Nursing,Deerhurst Nursing Home,735.68, 17-Nov-2020
1109,Revenue,CAHD,North - Community based support,Permanent Nursing,Deerhurst Nursing Home,4140.00, 17-Nov-2020
1110,Revenue,CAHD,South - Commissioned Services,Permanent Nursing,Deerhurst Nursing Home,4129.40, 17-Nov-2020
1111,Revenue,CAHD,South - Commissioned Services,Permanent Nursing,Deerhurst Nursing Home,4088.08, 17-Nov-2020
1112,Revenue,CAHD,South Glos Users in South Glos Homes,Permanent Nursing,Deerhurst Nursing Home,735.68, 17-Nov-2020
1113,Revenue,CAHD,South - bed purchasing and direct  payments,Permanent Nursing,Deerhurst Nursing Home,4084.08, 17-Nov-2020
1114,Revenue,CAHD,South Glos Users in South Glos Homes,Permanent Nursing,Deerhurst Nursing Home,735.68, 17-Nov-2020
1115,Revenue,CAHD,South Glos Users in South Glos Homes,Permanent Nursing,Deerhurst Nursing Home,735.68, 17-Nov-2020
1116,Revenue,CAHD,South Glos Users in South Glos Homes,Permanent Nursing,Deerhurst Nursing Home,735.68, 17-Nov-2020
1117,Revenue,CAHD,North - Community based support,Permanent Nursing,Deerhurst Nursing Home,4088.08, 17-Nov-2020
1118,Revenue,CAHD,South Glos Users in South Glos Homes,Permanent Nursing,Deerhurst Nursing Home,735.68, 17-Nov-2020
1119,Revenue,CAHD,South - Commissioned Services,Permanent Nursing,Deerhurst Nursing Home,4086.08, 17-Nov-2020
1120,Revenue,CAHD,South Glos Users in South Glos Homes,Permanent Nursing,Deerhurst Nursing Home,735.68, 17-Nov-2020
1121,Revenue,CAHD,South Glos Users in South Glos Homes,Permanent Nursing,Deerhurst Nursing Home,735.68, 17-Nov-2020
1122,Revenue,CAHD,South - Commissioned Services,Permanent Nursing,Deerhurst Nursing Home,3969.04, 17-Nov-2020
1123,Revenue,CAHD,South Glos Users in South Glos Homes,Permanent Nursing,Deerhurst Nursing Home,735.68, 17-Nov-2020
1124,Revenue,CAHD,South Glos Users in South Glos Homes,Permanent Nursing,Deerhurst Nursing Home,735.68, 17-Nov-2020
1125,Revenue,CAHD,South - Commissioned Services,Permanent Nursing,Deerhurst Nursing Home,4132.00, 17-Nov-2020
1126,Revenue,CAHD,South Glos Users in South Glos Homes,Permanent Nursing,Deerhurst Nursing Home,735.68, 17-Nov-2020
1127,Revenue,CAHD,South Glos Users in South Glos Homes,Permanent Nursing,Deerhurst Nursing Home,735.68, 17-Nov-2020
1128,Revenue,CAHD,South Glos Users in South Glos Homes,Permanent Nursing,Deerhurst Nursing Home,735.68, 17-Nov-2020
1129,Revenue,CAHD,South Glos Users in South Glos Homes,Permanent Nursing,Deerhurst Nursing Home,735.68, 17-Nov-2020
1130,Revenue,CAHD,North - Community based support,Permanent Nursing,Deerhurst Nursing Home,4006.00, 17-Nov-2020
1131,Revenue,CAHD,South Glos Users in South Glos Homes,Permanent Nursing,Deerhurst Nursing Home,735.68, 17-Nov-2020
1132,Revenue,CAHD,South - Commissioned Services,Permanent Nursing,Deerhurst Nursing Home,4085.36, 17-Nov-2020
1133,Revenue,CAHD,South Glos Users in South Glos Homes,Permanent Nursing,Deerhurst Nursing Home,735.68, 17-Nov-2020
1134,Revenue,CAHD,South Glos Users in South Glos Homes,Permanent Nursing,Deerhurst Nursing Home,735.68, 17-Nov-2020
1135,Revenue,CAHD,South Glos Users in South Glos Homes,Permanent Nursing,Deerhurst Nursing Home,735.68, 17-Nov-2020
1136,Revenue,CAHD,South - Commissioned Services,Permanent Nursing,Deerhurst Nursing Home,4006.00, 17-Nov-2020
1137,Revenue,CAHD,South - Commissioned Services,Permanent Residential,Deerhurst Nursing Home,4129.00, 17-Nov-2020
1138,Revenue,CAHD,South Glos Users in South Glos Homes,Permanent Nursing,Deerhurst Nursing Home,735.68, 17-Nov-2020
1139,Revenue,CAHD,South Glos Users in South Glos Homes,Permanent Nursing,Deerhurst Nursing Home,735.68, 17-Nov-2020
1140,Revenue,CAHD,South - Commissioned Services,Permanent Nursing,Deerhurst Nursing Home,4006.00, 17-Nov-2020
1141,Revenue,CAHD,South - Commissioned Services,Permanent Residential,Deerhurst Nursing Home,3891.20, 17-Nov-2020
1142,Revenue,CAHD,South Glos Users in South Glos Homes,Permanent Nursing,Deerhurst Nursing Home,735.68, 17-Nov-2020
1143,Revenue,CAHD,North - Community based support,Permanent Nursing,Deerhurst Nursing Home,3094.88, 17-Nov-2020
1144,Revenue,CAHD,South Glos Users in South Glos Homes,Permanent Nursing,Deerhurst Nursing Home,735.68, 17-Nov-2020
1145,Revenue,CAHD,South Glos Users in South Glos Homes,Permanent Nursing,Deerhurst Nursing Home,735.68, 17-Nov-2020
1146,Revenue,CAHD,South Glos Users in South Glos Homes,Permanent Nursing,Deerhurst Nursing Home,735.68, 17-Nov-2020
1147,Revenue,CAHD,South Glos Users in South Glos Homes,Permanent Nursing,Deerhurst Nursing Home,735.68, 17-Nov-2020
1148,Revenue,CAHD,South Glos Users in South Glos Homes,Permanent Nursing,Deerhurst Nursing Home,735.68, 17-Nov-2020
1149,Revenue,CAHD,Schools Specific Grant Income,Other Public Bodies,Dene Magna School,630.00, 10-Nov-2020
1150,Revenue,CAHD,South - Commissioned Services,Supported Living,Design House,2714.44, 17-Nov-2020
1151,Revenue,CAHD,South - Commissioned Services,Other Small Contracts,Design House,3124.28, 17-Nov-2020
1152,Revenue,CAHD,South - Commissioned Services,Supported Living,Design House,3053.16, 17-Nov-2020
1153,Revenue,CAHD,South - Commissioned Services,Day Care / Social Activities,Design House,526.72, 17-Nov-2020
1154,Revenue,CAHD,18-25 Year Olds,Supported Living,Design House,1952.16, 17-Nov-2020
1155,Revenue,CAHD,Central - Commissioned Services,Day Care / Social Activities,Design House,2991.44, 17-Nov-2020
1156,Revenue,CAHD,South - Commissioned Services,Day Care / Social Activities,Design House,1317.04, 17-Nov-2020
1157,Revenue,CAHD,South - Commissioned Services,Supported Living,Design House,2691.36, 17-Nov-2020
1158,Revenue,CAHD,South - Commissioned Services,Supported Living,Design House,2691.36, 17-Nov-2020
1159,Revenue,CAHD,South - Commissioned Services,Other Small Contracts,Design House,2192.32, 17-Nov-2020
1160,Revenue,CAHD,South - Commissioned Services,Supported Living,Design House,1934.44, 17-Nov-2020
1161,Revenue,CAHD,South - Commissioned Services,Day Care / Social Activities,Design House,526.72, 17-Nov-2020
1162,Revenue,CAHD,South - Commissioned Services,Other Small Contracts,Design House,2566.92, 17-Nov-2020
1163,Revenue,CAHD,South - Commissioned Services,Supported Living,Design House,4393.28, 17-Nov-2020
1164,Revenue,CAHD,North - Community based support,Supported Living,Design House,3115.32, 17-Nov-2020
1165,Revenue,CAHD,South - Commissioned Services,Day Care / Social Activities,Design House,1536.08, 17-Nov-2020
1166,Revenue,CAHD,South - Commissioned Services,Supported Living,Design House,2983.16, 17-Nov-2020
1167,Revenue,CAHD,South - Commissioned Services,Supported Living,Design House,2593.64, 17-Nov-2020
1168,Revenue,CAHD,South - Commissioned Services,Supported Living,Design House,2302.64, 17-Nov-2020
1169,Revenue,CAHD,South - Commissioned Services,Supported Living,Design House,2302.64, 17-Nov-2020
1170,Revenue,CAHD,High Risk Group Funding,Other Public Bodies,Downend School,3980.00, 17-Nov-2020
1171,Revenue,CAHD,High Risk Group Funding,Other Public Bodies,Downend School,5000.00, 17-Nov-2020
1172,Revenue,CAHD,Statemented Support Academies,Other Public Bodies,Downend School,978.57, 25-Nov-2020
1173,Revenue,CAHD,Statemented Support Academies,Other Public Bodies,Downend School,660.24, 25-Nov-2020
1174,Revenue,CAHD,Statemented Support Academies,Other Public Bodies,Downend School,1025.73, 25-Nov-2020
1175,Revenue,CAHD,Statemented Support Academies,Other Public Bodies,Downend School,1013.94, 25-Nov-2020
1176,Revenue,CAHD,Statemented Support Academies,Other Public Bodies,Downend School,801.72, 25-Nov-2020
1177,Revenue,CAHD,Statemented Support Academies,Other Public Bodies,Downend School,1061.34, 25-Nov-2020
1178,Revenue,CAHD,Statemented Support Academies,Other Public Bodies,Downend School,1108.26, 25-Nov-2020
1179,Revenue,CAHD,Statemented Support Academies,Other Public Bodies,Downend School,554.13, 25-Nov-2020
1180,Revenue,CAHD,Statemented Support Academies,Other Public Bodies,Downend School,666.00, 25-Nov-2020
1181,Revenue,CAHD,Statemented Support Academies,Other Public Bodies,Downend School,1438.38, 25-Nov-2020
1182,Revenue,CAHD,Statemented Support Academies,Other Public Bodies,Downend School,1709.55, 25-Nov-2020
1183,Revenue,CAHD,Statemented Support Academies,Other Public Bodies,Downend School,1192.50, 25-Nov-2020
1184,Revenue,CAHD,Statemented Support Academies,Other Public Bodies,Downend School,1544.49, 25-Nov-2020
1185,Revenue,CAHD,Social Lettings Agency,Rent,Individual,595.11, 24-Nov-2020
1186,Revenue,CAHD,Social Lettings Agency,Fees - General,Individual,10.53, 24-Nov-2020
1187,Revenue,CAHD,Central - Bed Purchasing and Direct Payments,Permanent Residential,Drakes Court,3542.86, 17-Nov-2020
1188,Revenue,CAHD,South - bed purchasing and direct  payments,Fees & Charges Income - General,Drakes Court,807.71, 17-Nov-2020
1189,Revenue,CAHD,Schools Specific Grant Income,Other Public Bodies,Durham School,630.00, 10-Nov-2020
1190,Revenue,CAHD,18-25 Year Olds,Software Purchase,Dyslexia Box Limited,1882.00, 20-Nov-2020
1191,Revenue,CAHD,CSC - Therapeutic Foster Care Programm,Special Fostering Scheme,Individual,573.00, 06-Nov-2020
1192,Revenue,CAHD,CSC - Therapeutic Foster Care Programm,Special Fostering Scheme,Individual,573.00, 13-Nov-2020
1193,Revenue,CAHD,CSC - Therapeutic Foster Care Programm,Special Fostering Scheme,Individual,573.00, 20-Nov-2020
1194,Revenue,CAHD,CSC - Therapeutic Foster Care Programm,Special Fostering Scheme,Individual,573.00, 27-Nov-2020
1195,Revenue,CAHD,North - Community based support,Permanent Residential,East Court,2763.56, 17-Nov-2020
1196,Revenue,CAHD,Central - Commissioned Services,Permanent Residential,Edendale Lodge,3000.00, 17-Nov-2020
1197,Revenue,CAHD,Preventative Services North Locality,Long Service Awards,Edenred (UK Group) Limited,530.00, 09-Nov-2020
1198,Revenue,CAHD,Alexandra Way,Long Service Awards,Edenred (UK Group) Limited,430.00, 27-Nov-2020
1199,Revenue,CAHD,South - Commissioned Services,Permanent Residential,Edgemont House Ltd,3200.00, 17-Nov-2020
1200,Revenue,CAHD,South - bed purchasing and direct  payments,Permanent Residential,Edgemont House Ltd,3264.00, 17-Nov-2020
1201,Revenue,CAHD,Covid - ASC - Infection Control,Grants to Voluntary Bodies,Edgemont House Ltd,4878.01, 25-Nov-2020
1202,Revenue,CAHD,South - Commissioned Services,Permanent Nursing,Edgemont View Ltd,6875.00, 17-Nov-2020
1203,Revenue,CAHD,South - Commissioned Services,Permanent Nursing,Edgemont View Ltd,3500.00, 17-Nov-2020
1204,Revenue,CAHD,South Glos Users in South Glos Homes,Permanent Nursing,Edgemont View Ltd,735.68, 17-Nov-2020
1205,Revenue,CAHD,South - Commissioned Services,Fees & Charges Income - General,Edgemont View Ltd,735.00, 17-Nov-2020
1206,Revenue,CAHD,South - Commissioned Services,Fees & Charges Income - General,Edgemont View Ltd,1094.45, 17-Nov-2020
1207,Revenue,CAHD,South - Commissioned Services,Fees & Charges Income - General,Edgemont View Ltd,3900.16, 17-Nov-2020
1208,Revenue,CAHD,South Glos Users in South Glos Homes,Permanent Nursing,Edgemont View Ltd,735.68, 17-Nov-2020
1209,Revenue,CAHD,South Glos Users in South Glos Homes,Permanent Nursing,Edgemont View Ltd,735.68, 17-Nov-2020
1210,Revenue,CAHD,South Glos Users in South Glos Homes,Permanent Nursing,Edgemont View Ltd,735.68, 17-Nov-2020
1211,Revenue,CAHD,South - Commissioned Services,Permanent Nursing,Edgemont View Ltd,3600.00, 17-Nov-2020
1212,Revenue,CAHD,South Glos Users in South Glos Homes,Permanent Nursing,Edgemont View Ltd,735.68, 17-Nov-2020
1213,Revenue,CAHD,South Glos Users in South Glos Homes,Permanent Nursing,Edgemont View Ltd,735.68, 17-Nov-2020
1214,Revenue,CAHD,South Glos Users in South Glos Homes,Permanent Nursing,Edgemont View Ltd,735.68, 17-Nov-2020
1215,Revenue,CAHD,South - Commissioned Services,Permanent Nursing,Edgemont View Ltd,3655.68, 17-Nov-2020
1216,Revenue,CAHD,South Glos Users in South Glos Homes,Permanent Nursing,Edgemont View Ltd,735.68, 17-Nov-2020
1217,Revenue,CAHD,Covid - ASC - Infection Control,Grants to Voluntary Bodies,Edgemont View Ltd,7317.02, 25-Nov-2020
1218,Revenue,CAHD,Planning and Partnerships Procurement,Other Supplies & Services,Eldercare,2790.08, 30-Nov-2020
1219,Revenue,CAHD,Social Lettings Agency,Rent,Individual,1169.28, 05-Nov-2020
1220,Revenue,CAHD,Social Lettings Agency,Fees - General,Individual,15.12, 05-Nov-2020
1221,Revenue,CAHD,Minor Adaptations Service,Operational Equipment,Ellis Building Products (EBP) Ltd,890.55, 27-Nov-2020
1222,Revenue,CAHD,CSC - Legal Fees,Legal Fees,Individual,440.00, 25-Nov-2020
1223,Revenue,CAHD,Special ISB,Other Public Bodies,Enable Trust,1491.12, 24-Nov-2020
1224,Revenue,CAHD,Special ISB,Other Public Bodies,Enable Trust,1137.94, 24-Nov-2020
1225,Revenue,CAHD,Special ISB,Other Public Bodies,Enable Trust,1137.94, 24-Nov-2020
1226,Revenue,CAHD,Special ISB,Other Public Bodies,Enable Trust,863.28, 24-Nov-2020
1227,Revenue,CAHD,Special ISB,Other Public Bodies,Enable Trust,1491.12, 24-Nov-2020
1228,Revenue,CAHD,Special ISB,Other Public Bodies,Enable Trust,1491.12, 24-Nov-2020
1229,Revenue,CAHD,Special ISB,Other Public Bodies,Enable Trust,1137.94, 24-Nov-2020
1230,Revenue,CAHD,Special ISB,Other Public Bodies,Enable Trust,1137.94, 24-Nov-2020
1231,Revenue,CAHD,Special ISB,Other Public Bodies,Enable Trust,1137.94, 24-Nov-2020
1232,Revenue,CAHD,Special ISB,Other Public Bodies,Enable Trust,1491.12, 24-Nov-2020
1233,Revenue,CAHD,Special ISB,Other Public Bodies,Enable Trust,627.78, 24-Nov-2020
1234,Revenue,CAHD,Special ISB,Other Public Bodies,Enable Trust,863.28, 24-Nov-2020
1235,Revenue,CAHD,Special ISB,Other Public Bodies,Enable Trust,863.28, 24-Nov-2020
1236,Revenue,CAHD,Special ISB,Other Public Bodies,Enable Trust,1137.94, 24-Nov-2020
1237,Revenue,CAHD,Special ISB,Other Public Bodies,Enable Trust,1137.94, 24-Nov-2020
1238,Revenue,CAHD,Special ISB,Other Public Bodies,Enable Trust,1137.94, 24-Nov-2020
1239,Revenue,CAHD,Special ISB,Other Public Bodies,Enable Trust,1491.12, 24-Nov-2020
1240,Revenue,CAHD,Special ISB,Other Public Bodies,Enable Trust,627.78, 24-Nov-2020
1241,Revenue,CAHD,Special ISB,Other Public Bodies,Enable Trust,1648.02, 24-Nov-2020
1242,Revenue,CAHD,Special ISB,Other Public Bodies,Enable Trust,1491.12, 24-Nov-2020
1243,Revenue,CAHD,Special ISB,Other Public Bodies,Enable Trust,1137.94, 24-Nov-2020
1244,Revenue,CAHD,Special ISB,Other Public Bodies,Enable Trust,1137.94, 24-Nov-2020
1245,Revenue,CAHD,Special ISB,Other Public Bodies,Enable Trust,863.28, 24-Nov-2020
1246,Revenue,CAHD,Special ISB,Other Public Bodies,Enable Trust,1137.94, 24-Nov-2020
1247,Revenue,CAHD,Special ISB,Other Public Bodies,Enable Trust,863.28, 24-Nov-2020
1248,Revenue,CAHD,Special ISB,Other Public Bodies,Enable Trust,2118.90, 24-Nov-2020
1249,Revenue,CAHD,Special ISB,Other Public Bodies,Enable Trust,1137.94, 24-Nov-2020
1250,Revenue,CAHD,Special ISB,Other Public Bodies,Enable Trust,1137.94, 24-Nov-2020
1251,Revenue,CAHD,Special ISB,Other Public Bodies,Enable Trust,1137.94, 24-Nov-2020
1252,Revenue,CAHD,Special ISB,Other Public Bodies,Enable Trust,1137.94, 24-Nov-2020
1253,Revenue,CAHD,Special ISB,Other Public Bodies,Enable Trust,1137.94, 24-Nov-2020
1254,Revenue,CAHD,Special ISB,Other Public Bodies,Enable Trust,2118.90, 24-Nov-2020
1255,Revenue,CAHD,Special ISB,Other Public Bodies,Enable Trust,1137.94, 24-Nov-2020
1256,Revenue,CAHD,Special ISB,Other Public Bodies,Enable Trust,1491.12, 24-Nov-2020
1257,Revenue,CAHD,Special ISB,Other Public Bodies,Enable Trust,863.28, 24-Nov-2020
1258,Revenue,CAHD,Special ISB,Other Public Bodies,Enable Trust,1491.12, 24-Nov-2020
1259,Revenue,CAHD,Special ISB,Other Public Bodies,Enable Trust,1137.94, 24-Nov-2020
1260,Revenue,CAHD,Special ISB,Other Public Bodies,Enable Trust,1491.12, 24-Nov-2020
1261,Revenue,CAHD,Special ISB,Other Public Bodies,Enable Trust,1137.94, 24-Nov-2020
1262,Revenue,CAHD,Special ISB,Other Public Bodies,Enable Trust,1491.12, 24-Nov-2020
1263,Revenue,CAHD,Special ISB,Other Public Bodies,Enable Trust,1137.94, 24-Nov-2020
1264,Revenue,CAHD,Special ISB,Other Public Bodies,Enable Trust,1137.94, 24-Nov-2020
1265,Revenue,CAHD,Special ISB,Other Public Bodies,Enable Trust,1137.94, 24-Nov-2020
1266,Revenue,CAHD,Special ISB,Other Public Bodies,Enable Trust,1137.94, 24-Nov-2020
1267,Revenue,CAHD,Special ISB,Other Public Bodies,Enable Trust,2118.90, 24-Nov-2020
1268,Revenue,CAHD,Special ISB,Other Public Bodies,Enable Trust,1491.12, 24-Nov-2020
1269,Revenue,CAHD,Special ISB,Other Public Bodies,Enable Trust,863.28, 24-Nov-2020
1270,Revenue,CAHD,Special ISB,Other Public Bodies,Enable Trust,863.28, 24-Nov-2020
1271,Revenue,CAHD,Special ISB,Other Public Bodies,Enable Trust,1491.12, 24-Nov-2020
1272,Revenue,CAHD,Special ISB,Other Public Bodies,Enable Trust,1491.12, 24-Nov-2020
1273,Revenue,CAHD,Special ISB,Other Public Bodies,Enable Trust,1137.94, 24-Nov-2020
1274,Revenue,CAHD,Special ISB,Other Public Bodies,Enable Trust,1137.94, 24-Nov-2020
1275,Revenue,CAHD,Special ISB,Other Public Bodies,Enable Trust,1491.12, 24-Nov-2020
1276,Revenue,CAHD,Special ISB,Other Public Bodies,Enable Trust,1491.12, 24-Nov-2020
1277,Revenue,CAHD,Special ISB,Other Public Bodies,Enable Trust,1137.94, 24-Nov-2020
1278,Revenue,CAHD,Special ISB,Other Public Bodies,Enable Trust,1137.94, 24-Nov-2020
1279,Revenue,CAHD,Special ISB,Other Public Bodies,Enable Trust,1137.94, 24-Nov-2020
1280,Revenue,CAHD,Special ISB,Other Public Bodies,Enable Trust,1137.94, 24-Nov-2020
1281,Revenue,CAHD,Special ISB,Other Public Bodies,Enable Trust,1491.12, 24-Nov-2020
1282,Revenue,CAHD,Special ISB,Other Public Bodies,Enable Trust,2118.90, 24-Nov-2020
1283,Revenue,CAHD,Special ISB,Other Public Bodies,Enable Trust,2118.90, 24-Nov-2020
1284,Revenue,CAHD,Special ISB,Other Public Bodies,Enable Trust,1137.94, 24-Nov-2020
1285,Revenue,CAHD,Special ISB,Other Public Bodies,Enable Trust,627.78, 24-Nov-2020
1286,Revenue,CAHD,Special ISB,Other Public Bodies,Enable Trust,1137.94, 24-Nov-2020
1287,Revenue,CAHD,Special ISB,Other Public Bodies,Enable Trust,1137.94, 24-Nov-2020
1288,Revenue,CAHD,Special ISB,Other Public Bodies,Enable Trust,863.28, 24-Nov-2020
1289,Revenue,CAHD,Special ISB,Other Public Bodies,Enable Trust,1137.94, 24-Nov-2020
1290,Revenue,CAHD,Special ISB,Other Public Bodies,Enable Trust,863.28, 24-Nov-2020
1291,Revenue,CAHD,Special ISB,Other Public Bodies,Enable Trust,1491.12, 24-Nov-2020
1292,Revenue,CAHD,Special ISB,Other Public Bodies,Enable Trust,1137.94, 24-Nov-2020
1293,Revenue,CAHD,Special ISB,Other Public Bodies,Enable Trust,863.28, 24-Nov-2020
1294,Revenue,CAHD,Special ISB,Other Public Bodies,Enable Trust,1491.12, 24-Nov-2020
1295,Revenue,CAHD,Special ISB,Other Public Bodies,Enable Trust,4523.09, 24-Nov-2020
1296,Revenue,CAHD,Special ISB,Other Public Bodies,Enable Trust,3451.76, 24-Nov-2020
1297,Revenue,CAHD,Special ISB,Other Public Bodies,Enable Trust,6427.33, 24-Nov-2020
1298,Revenue,CAHD,Special ISB,Other Public Bodies,Enable Trust,6427.33, 24-Nov-2020
1299,Revenue,CAHD,Special ISB,Other Public Bodies,Enable Trust,6427.33, 24-Nov-2020
1300,Revenue,CAHD,Special ISB,Other Public Bodies,Enable Trust,1137.94, 24-Nov-2020
1301,Revenue,CAHD,Schools Specific Grant Income,Other Public Bodies,Enable Trust,630.00, 24-Nov-2020
1302,Revenue,CAHD,Schools Specific Grant Income,Other Public Bodies,Enable Trust,630.00, 24-Nov-2020
1303,Revenue,CAHD,Special ISB,Other Public Bodies,Enable Trust,1137.94, 24-Nov-2020
1304,Revenue,CAHD,Special ISB,Other Public Bodies,Enable Trust,1648.02, 24-Nov-2020
1305,Revenue,CAHD,Special ISB,Other Public Bodies,Enable Trust,863.28, 24-Nov-2020
1306,Revenue,CAHD,Special ISB,Other Public Bodies,Enable Trust,1648.02, 24-Nov-2020
1307,Revenue,CAHD,Special ISB,Other Public Bodies,Enable Trust,1137.94, 24-Nov-2020
1308,Revenue,CAHD,Special ISB,Other Public Bodies,Enable Trust,2118.90, 24-Nov-2020
1309,Revenue,CAHD,Special ISB,Other Public Bodies,Enable Trust,2118.90, 24-Nov-2020
1310,Revenue,CAHD,Special ISB,Other Public Bodies,Enable Trust,1459.68, 24-Nov-2020
1311,Revenue,CAHD,Special ISB,Other Public Bodies,Enable Trust,863.28, 24-Nov-2020
1312,Revenue,CAHD,Special ISB,Other Public Bodies,Enable Trust,863.28, 24-Nov-2020
1313,Revenue,CAHD,Special ISB,Other Public Bodies,Enable Trust,2432.78, 24-Nov-2020
1314,Revenue,CAHD,Special ISB,Other Public Bodies,Enable Trust,863.28, 24-Nov-2020
1315,Revenue,CAHD,Special ISB,Other Public Bodies,Enable Trust,863.28, 24-Nov-2020
1316,Revenue,CAHD,Special ISB,Other Public Bodies,Enable Trust,1648.02, 24-Nov-2020
1317,Revenue,CAHD,Special ISB,Other Public Bodies,Enable Trust,1648.02, 24-Nov-2020
1318,Revenue,CAHD,Special ISB,Other Public Bodies,Enable Trust,1137.94, 24-Nov-2020
1319,Revenue,CAHD,Special ISB,Other Public Bodies,Enable Trust,1648.02, 24-Nov-2020
1320,Revenue,CAHD,Special ISB,Other Public Bodies,Enable Trust,1648.02, 24-Nov-2020
1321,Revenue,CAHD,Special ISB,Other Public Bodies,Enable Trust,1137.94, 24-Nov-2020
1322,Revenue,CAHD,Special ISB,Other Public Bodies,Enable Trust,1137.94, 24-Nov-2020
1323,Revenue,CAHD,Special ISB,Other Public Bodies,Enable Trust,863.28, 24-Nov-2020
1324,Revenue,CAHD,Special ISB,Other Public Bodies,Enable Trust,1648.02, 24-Nov-2020
1325,Revenue,CAHD,Special ISB,Other Public Bodies,Enable Trust,1137.94, 24-Nov-2020
1326,Revenue,CAHD,Special ISB,Other Public Bodies,Enable Trust,1137.94, 24-Nov-2020
1327,Revenue,CAHD,Special ISB,Other Public Bodies,Enable Trust,1137.94, 24-Nov-2020
1328,Revenue,CAHD,Special ISB,Other Public Bodies,Enable Trust,1648.02, 24-Nov-2020
1329,Revenue,CAHD,Special ISB,Other Public Bodies,Enable Trust,1137.94, 24-Nov-2020
1330,Revenue,CAHD,Special ISB,Other Public Bodies,Enable Trust,1648.02, 24-Nov-2020
1331,Revenue,CAHD,Special ISB,Other Public Bodies,Enable Trust,1137.94, 24-Nov-2020
1332,Revenue,CAHD,Special ISB,Other Public Bodies,Enable Trust,1137.94, 24-Nov-2020
1333,Revenue,CAHD,Special ISB,Other Public Bodies,Enable Trust,1137.94, 24-Nov-2020
1334,Revenue,CAHD,Special ISB,Other Public Bodies,Enable Trust,981.04, 24-Nov-2020
1335,Revenue,CAHD,Special ISB,Other Public Bodies,Enable Trust,1137.94, 24-Nov-2020
1336,Revenue,CAHD,Special ISB,Other Public Bodies,Enable Trust,863.28, 24-Nov-2020
1337,Revenue,CAHD,Special ISB,Other Public Bodies,Enable Trust,1137.94, 24-Nov-2020
1338,Revenue,CAHD,Special ISB,Other Public Bodies,Enable Trust,1137.94, 24-Nov-2020
1339,Revenue,CAHD,Special ISB,Other Public Bodies,Enable Trust,2118.90, 24-Nov-2020
1340,Revenue,CAHD,Special ISB,Other Public Bodies,Enable Trust,1648.02, 24-Nov-2020
1341,Revenue,CAHD,Special ISB,Other Public Bodies,Enable Trust,1648.02, 24-Nov-2020
1342,Revenue,CAHD,Special ISB,Other Public Bodies,Enable Trust,863.28, 24-Nov-2020
1343,Revenue,CAHD,Special ISB,Other Public Bodies,Enable Trust,627.78, 24-Nov-2020
1344,Revenue,CAHD,Special ISB,Other Public Bodies,Enable Trust,1137.94, 24-Nov-2020
1345,Revenue,CAHD,Special ISB,Other Public Bodies,Enable Trust,863.28, 24-Nov-2020
1346,Revenue,CAHD,Special ISB,Other Public Bodies,Enable Trust,1137.94, 24-Nov-2020
1347,Revenue,CAHD,Special ISB,Other Public Bodies,Enable Trust,1648.02, 24-Nov-2020
1348,Revenue,CAHD,Special ISB,Other Public Bodies,Enable Trust,1491.12, 24-Nov-2020
1349,Revenue,CAHD,Special ISB,Other Public Bodies,Enable Trust,863.28, 24-Nov-2020
1350,Revenue,CAHD,Special ISB,Other Public Bodies,Enable Trust,1648.02, 24-Nov-2020
1351,Revenue,CAHD,Special ISB,Other Public Bodies,Enable Trust,1137.94, 24-Nov-2020
1352,Revenue,CAHD,Special ISB,Other Public Bodies,Enable Trust,1137.94, 24-Nov-2020
1353,Revenue,CAHD,Special ISB,Other Public Bodies,Enable Trust,1137.94, 24-Nov-2020
1354,Revenue,CAHD,Special ISB,Other Public Bodies,Enable Trust,863.28, 24-Nov-2020
1355,Revenue,CAHD,Special ISB,Other Public Bodies,Enable Trust,863.28, 24-Nov-2020
1356,Revenue,CAHD,Special ISB,Other Public Bodies,Enable Trust,863.28, 24-Nov-2020
1357,Revenue,CAHD,Special ISB,Other Public Bodies,Enable Trust,1137.94, 24-Nov-2020
1358,Revenue,CAHD,Special ISB,Other Public Bodies,Enable Trust,863.28, 24-Nov-2020
1359,Revenue,CAHD,Special ISB,Other Public Bodies,Enable Trust,863.28, 24-Nov-2020
1360,Revenue,CAHD,Special ISB,Other Public Bodies,Enable Trust,863.28, 24-Nov-2020
1361,Revenue,CAHD,Special ISB,Other Public Bodies,Enable Trust,1137.94, 24-Nov-2020
1362,Revenue,CAHD,Special ISB,Other Public Bodies,Enable Trust,1137.94, 24-Nov-2020
1363,Revenue,CAHD,Special ISB,Other Public Bodies,Enable Trust,863.28, 24-Nov-2020
1364,Revenue,CAHD,Special ISB,Other Public Bodies,Enable Trust,863.28, 24-Nov-2020
1365,Revenue,CAHD,Special ISB,Other Public Bodies,Enable Trust,1137.94, 24-Nov-2020
1366,Revenue,CAHD,Special ISB,Other Public Bodies,Enable Trust,1137.94, 24-Nov-2020
1367,Revenue,CAHD,Special ISB,Other Public Bodies,Enable Trust,1137.94, 24-Nov-2020
1368,Revenue,CAHD,Special ISB,Other Public Bodies,Enable Trust,1648.02, 24-Nov-2020
1369,Revenue,CAHD,Special ISB,Other Public Bodies,Enable Trust,1137.94, 24-Nov-2020
1370,Revenue,CAHD,Special ISB,Other Public Bodies,Enable Trust,863.28, 24-Nov-2020
1371,Revenue,CAHD,Special ISB,Other Public Bodies,Enable Trust,863.28, 24-Nov-2020
1372,Revenue,CAHD,Special ISB,Other Public Bodies,Enable Trust,1648.02, 24-Nov-2020
1373,Revenue,CAHD,Special ISB,Other Public Bodies,Enable Trust,2118.90, 24-Nov-2020
1374,Revenue,CAHD,Special ISB,Other Public Bodies,Enable Trust,1137.94, 24-Nov-2020
1375,Revenue,CAHD,Special ISB,Other Public Bodies,Enable Trust,863.28, 24-Nov-2020
1376,Revenue,CAHD,Special ISB,Other Public Bodies,Enable Trust,2118.90, 24-Nov-2020
1377,Revenue,CAHD,Special ISB,Other Public Bodies,Enable Trust,1491.12, 24-Nov-2020
1378,Revenue,CAHD,Special ISB,Other Public Bodies,Enable Trust,627.78, 24-Nov-2020
1379,Revenue,CAHD,Special ISB,Other Public Bodies,Enable Trust,1137.94, 24-Nov-2020
1380,Revenue,CAHD,Special ISB,Other Public Bodies,Enable Trust,2118.90, 24-Nov-2020
1381,Revenue,CAHD,Special ISB,Other Public Bodies,Enable Trust,1137.94, 24-Nov-2020
1382,Revenue,CAHD,Special ISB,Other Public Bodies,Enable Trust,1648.02, 24-Nov-2020
1383,Revenue,CAHD,Special ISB,Other Public Bodies,Enable Trust,2118.90, 24-Nov-2020
1384,Revenue,CAHD,Special ISB,Other Public Bodies,Enable Trust,988.80, 24-Nov-2020
1385,Revenue,CAHD,Special ISB,Other Public Bodies,Enable Trust,1648.02, 24-Nov-2020
1386,Revenue,CAHD,Special ISB,Other Public Bodies,Enable Trust,1648.02, 24-Nov-2020
1387,Revenue,CAHD,Special ISB,Other Public Bodies,Enable Trust,1648.02, 24-Nov-2020
1388,Revenue,CAHD,Special ISB,Other Public Bodies,Enable Trust,2432.78, 24-Nov-2020
1389,Revenue,CAHD,Special ISB,Other Public Bodies,Enable Trust,2118.90, 24-Nov-2020
1390,Revenue,CAHD,Special ISB,Other Public Bodies,Enable Trust,1648.02, 24-Nov-2020
1391,Revenue,CAHD,Special ISB,Other Public Bodies,Enable Trust,1648.02, 24-Nov-2020
1392,Revenue,CAHD,Special ISB,Other Public Bodies,Enable Trust,1137.94, 24-Nov-2020
1393,Revenue,CAHD,Special ISB,Other Public Bodies,Enable Trust,1648.02, 24-Nov-2020
1394,Revenue,CAHD,Special ISB,Other Public Bodies,Enable Trust,2432.78, 24-Nov-2020
1395,Revenue,CAHD,Special ISB,Other Public Bodies,Enable Trust,4083.38, 24-Nov-2020
1396,Revenue,CAHD,Central - Commissioned Services,Other Small Contracts,Epiphany In Care,1425.60, 30-Nov-2020
1397,Revenue,CAHD,Central - Commissioned Services,Other Small Contracts,Epiphany In Care,1425.60, 30-Nov-2020
1398,Revenue,CAHD,Central - Commissioned Services,Other Small Contracts,Epiphany In Care,1346.40, 30-Nov-2020
1399,Revenue,CAHD,Central - Commissioned Services,Other Small Contracts,Epiphany In Care,1108.80, 30-Nov-2020
1400,Revenue,CAHD,18-25 Year Olds,Other Small Contracts,Epiphany In Care,801.90, 16-Nov-2020
1401,Revenue,CAHD,North - Community based support,Other Small Contracts,Epiphany In Care,4118.40, 23-Nov-2020
1402,Revenue,CAHD,Central - Commissioned Services,Other Small Contracts,Epiphany In Care,5076.00, 05-Nov-2020
1403,Revenue,CAHD,Central - Commissioned Services,Other Small Contracts,Epiphany In Care,1188.00, 02-Nov-2020
1404,Revenue,CAHD,Central - Commissioned Services,Other Small Contracts,Epiphany In Care,5103.00, 02-Nov-2020
1405,Revenue,CAHD,Central - Commissioned Services,Other Small Contracts,Epiphany In Care,1108.80, 30-Nov-2020
1406,Revenue,CAHD,North - S117,Permanent Residential,Evolve House,3276.80, 17-Nov-2020
1407,Revenue,CAHD,Placements OLA Special Schools and RB,Other L.A.s - General,Excalibur Academies Trust T/A,2166.56, 25-Nov-2020
1408,Revenue,CAHD,Schools Specific Grant Income,Other Public Bodies,Excalibur Academies Trust T/A,630.00, 10-Nov-2020
1409,Revenue,CAHD,Extra Care Housing,Private & Voluntary Home Care,Extra Care Charitable Trust,27505.67, 12-Nov-2020
1410,Revenue,CAHD,North - Community based support,Permanent Residential,Eyre Court,18344.16, 17-Nov-2020
1411,Revenue,CAHD,North - Community based support,Fees & Charges Income - General,Eyre Court,3970.80, 17-Nov-2020
1412,Revenue,CAHD,North - Community based support,Permanent Residential,Eyre Court,12321.43, 17-Nov-2020
1413,Revenue,CAHD,North - Community based support,Permanent Residential,Eyre Court,5000.00, 17-Nov-2020
1414,Revenue,CAHD,Covid - ASC - Infection Control,Grants to Voluntary Bodies,Eyre Court,17769.91, 18-Nov-2020
1415,Revenue,CAHD,South - Commissioned Services,Permanent Nursing,Fairview Court,3886.76, 17-Nov-2020
1416,Revenue,CAHD,South Glos Users in South Glos Homes,Permanent Nursing,Fairview Court,735.68, 17-Nov-2020
1417,Revenue,CAHD,South Glos Users in South Glos Homes,Permanent Nursing,Fairview Court,735.68, 17-Nov-2020
1418,Revenue,CAHD,South Glos Users in South Glos Homes,Permanent Nursing,Fairview Court,735.68, 17-Nov-2020
1419,Revenue,CAHD,South - Commissioned Services,Permanent Nursing,Fairview Court,4137.76, 17-Nov-2020
1420,Revenue,CAHD,South Glos Users in South Glos Homes,Permanent Nursing,Fairview Court,735.68, 17-Nov-2020
1421,Revenue,CAHD,South Glos Users in South Glos Homes,Permanent Nursing,Fairview Court,735.68, 17-Nov-2020
1422,Revenue,CAHD,South - Commissioned Services,Permanent Nursing,Fairview Court,3618.72, 17-Nov-2020
1423,Revenue,CAHD,South Glos Users in South Glos Homes,Permanent Nursing,Fairview Court,735.68, 17-Nov-2020
1424,Revenue,CAHD,South Glos Users in South Glos Homes,Permanent Nursing,Fairview Court,735.68, 17-Nov-2020
1425,Revenue,CAHD,South - Commissioned Services,Permanent Nursing,Fairview Court,4114.29, 17-Nov-2020
1426,Revenue,CAHD,South Glos Users in South Glos Homes,Permanent Nursing,Fairview Court,1234.89, 17-Nov-2020
1427,Revenue,CAHD,South Glos Users in South Glos Homes,Permanent Nursing,Fairview Court,735.68, 17-Nov-2020
1428,Revenue,CAHD,South - Commissioned Services,Permanent Nursing,Fairview Court,685.71, 17-Nov-2020
1429,Revenue,CAHD,South - S117,Permanent Nursing,Fairview Court,4257.32, 17-Nov-2020
1430,Revenue,CAHD,South Glos Users in South Glos Homes,Permanent Nursing,Fairview Court,735.68, 17-Nov-2020
1431,Revenue,CAHD,South Glos Users in South Glos Homes,Permanent Nursing,Fairview Court,735.68, 17-Nov-2020
1432,Revenue,CAHD,South - bed purchasing and direct  payments,Permanent Nursing,Fairview Court,4078.24, 17-Nov-2020
1433,Revenue,CAHD,South Glos Users in South Glos Homes,Permanent Nursing,Fairview Court,735.68, 17-Nov-2020
1434,Revenue,CAHD,South Glos Users in South Glos Homes,Permanent Nursing,Fairview Court,735.68, 17-Nov-2020
1435,Revenue,CAHD,South Glos Users in South Glos Homes,Permanent Nursing,Fairview Court,735.68, 17-Nov-2020
1436,Revenue,CAHD,South Glos Users in South Glos Homes,Permanent Nursing,Fairview Court,735.68, 17-Nov-2020
1437,Revenue,CAHD,South - Commissioned Services,Permanent Nursing,Fairview Court,3886.76, 17-Nov-2020
1438,Revenue,CAHD,South Glos Users in South Glos Homes,Permanent Nursing,Fairview Court,735.68, 17-Nov-2020
1439,Revenue,CAHD,South Glos Users in South Glos Homes,Permanent Nursing,Fairview Court,735.68, 17-Nov-2020
1440,Revenue,CAHD,South - Commissioned Services,Permanent Nursing,Fairview Court,4800.00, 17-Nov-2020
1441,Revenue,CAHD,South Glos Users in South Glos Homes,Permanent Nursing,Fairview Court,735.68, 17-Nov-2020
1442,Revenue,CAHD,South - Commissioned Services,Fees & Charges Income - General,Fairview Court,3714.34, 17-Nov-2020
1443,Revenue,CAHD,South - Commissioned Services,Fees & Charges Income - General,Fairview Court,6918.60, 17-Nov-2020
1444,Revenue,CAHD,South Glos Users in South Glos Homes,Permanent Nursing,Fairview Court,735.68, 17-Nov-2020
1445,Revenue,CAHD,South Glos Users in South Glos Homes,Permanent Nursing,Fairview Court,735.68, 17-Nov-2020
1446,Revenue,CAHD,South Glos Users in South Glos Homes,Permanent Nursing,Fairview Court,735.68, 17-Nov-2020
1447,Revenue,CAHD,South - Commissioned Services,Permanent Residential,Fairview Court,4048.64, 17-Nov-2020
1448,Revenue,CAHD,South Glos Users in South Glos Homes,Permanent Nursing,Fairview Court,735.68, 17-Nov-2020
1449,Revenue,CAHD,South Glos Users in South Glos Homes,Permanent Nursing,Fairview Court,735.68, 17-Nov-2020
1450,Revenue,CAHD,South - Commissioned Services,Permanent Nursing,Fairview Court,4800.00, 17-Nov-2020
1451,Revenue,CAHD,South Glos Users in South Glos Homes,Permanent Nursing,Fairview Court,735.68, 17-Nov-2020
1452,Revenue,CAHD,South Glos Users in South Glos Homes,Permanent Nursing,Fairview Court,735.68, 17-Nov-2020
1453,Revenue,CAHD,North - Community based support,Permanent Residential,Fairview Court,3321.44, 17-Nov-2020
1454,Revenue,CAHD,South - bed purchasing and direct  payments,Permanent Nursing,Fairview Court,4137.76, 17-Nov-2020
1455,Revenue,CAHD,South Glos Users in South Glos Homes,Permanent Nursing,Fairview Court,735.68, 17-Nov-2020
1456,Revenue,CAHD,South Glos Users in South Glos Homes,Permanent Nursing,Fairview Court,735.68, 17-Nov-2020
1457,Revenue,CAHD,South Glos Users in South Glos Homes,Permanent Nursing,Fairview Court,735.68, 17-Nov-2020
1458,Revenue,CAHD,South - Commissioned Services,Permanent Nursing,Fairview Court,3553.36, 17-Nov-2020
1459,Revenue,CAHD,South Glos Users in South Glos Homes,Permanent Nursing,Fairview Court,735.68, 17-Nov-2020
1460,Revenue,CAHD,North - Community based support,Permanent Nursing,Fairview Court,3886.76, 17-Nov-2020
1461,Revenue,CAHD,South Glos Users in South Glos Homes,Permanent Nursing,Fairview Court,735.68, 17-Nov-2020
1462,Revenue,CAHD,South - Commissioned Services,Permanent Nursing,Fairview Court,3192.96, 17-Nov-2020
1463,Revenue,CAHD,South Glos Users in South Glos Homes,Permanent Nursing,Fairview Court,735.68, 17-Nov-2020
1464,Revenue,CAHD,South - Commissioned Services,Permanent Nursing,Fairview Court,3618.72, 17-Nov-2020
1465,Revenue,CAHD,South Glos Users in South Glos Homes,Permanent Nursing,Fairview Court,735.68, 17-Nov-2020
1466,Revenue,CAHD,South - Commissioned Services,Permanent Nursing,Fairview Court,4028.00, 17-Nov-2020
1467,Revenue,CAHD,South Glos Users in South Glos Homes,Permanent Nursing,Fairview Court,735.68, 17-Nov-2020
1468,Revenue,CAHD,South - Commissioned Services,Permanent Nursing,Fairview Court,4137.76, 17-Nov-2020
1469,Revenue,CAHD,South Glos Users in South Glos Homes,Permanent Nursing,Fairview Court,735.68, 17-Nov-2020
1470,Revenue,CAHD,South - Commissioned Services,Permanent Residential,Fairview House,2349.60, 17-Nov-2020
1471,Revenue,CAHD,South - Commissioned Services,Permanent Residential,Fairview House,3400.00, 17-Nov-2020
1472,Revenue,CAHD,South - Commissioned Services,Permanent Residential,Fairview House,3400.00, 17-Nov-2020
1473,Revenue,CAHD,South Glos Users in South Glos Homes,Permanent Nursing,Fairview House,735.68, 17-Nov-2020
1474,Revenue,CAHD,South - Commissioned Services,Permanent Residential,Fairview House,5014.29, 17-Nov-2020
1475,Revenue,CAHD,South - Commissioned Services,Permanent Residential,Fairview House,3600.00, 17-Nov-2020
1476,Revenue,CAHD,South - Commissioned Services,Permanent Residential,Fairview House,3468.00, 17-Nov-2020
1477,Revenue,CAHD,South - Commissioned Services,Permanent Residential,Fairview House,3800.00, 17-Nov-2020
1478,Revenue,CAHD,Central - Commissioned Services,Respite Planned - Residential,Faith House,2681.14, 17-Nov-2020
1479,Revenue,CAHD,Central - Commissioned Services,Respite Planned - Residential,Faith House,2569.43, 17-Nov-2020
1480,Revenue,CAHD,Central - Commissioned Services,Respite Planned - Residential,Faith House,1564.00, 17-Nov-2020
1481,Revenue,CAHD,Central - Commissioned Services,Respite Planned - Residential,Faith House,670.29, 17-Nov-2020
1482,Revenue,CAHD,North - Community based support,Permanent Residential,Faith House,2861.88, 17-Nov-2020
1483,Revenue,CAHD,North - Community based support,Permanent Nursing,Faith House,2457.71, 17-Nov-2020
1484,Revenue,CAHD,North - Community based support,Permanent Nursing,Faith House,670.29, 17-Nov-2020
1485,Revenue,CAHD,Central - Commissioned Services,Permanent Residential,Faith House,3128.00, 17-Nov-2020
1486,Revenue,CAHD,North - Community based support,Permanent Residential,Faith House,3039.60, 17-Nov-2020
1487,Revenue,CAHD,South - Commissioned Services,Permanent Residential,Faith House,2958.00, 17-Nov-2020
1488,Revenue,CAHD,Covid - ASC - Infection Control,Grants to Voluntary Bodies,Faith House,3484.30, 18-Nov-2020
1489,Revenue,CAHD,CSC - Parent & Child Assessments,Foster Parent Allowances,Families First (SW) Ltd,3197.97, 11-Nov-2020
1490,Revenue,CAHD,CSC - Parent & Child Assessments,Foster Parent Allowances,Families First (SW) Ltd,10659.90, 11-Nov-2020
1491,Revenue,CAHD,CSC - Parent & Child Assessments,Foster Parent Allowances,Families First (SW) Ltd,6542.91, 13-Nov-2020
1492,Revenue,CAHD,Post 16 High Needs Placements,Other Private Contractors,Farleigh FEC-Frome Priory,13255.06, 05-Nov-2020
1493,Revenue,CAHD,Post 16 High Needs Placements,Other Private Contractors,Farleigh FEC-Frome Priory,22350.10, 19-Nov-2020
1494,Revenue,CAHD,Post 16 High Needs Placements,Other Private Contractors,Farleigh FEC-Frome Priory,23412.15, 05-Nov-2020
1495,Revenue,CAHD,Post 16 High Needs Placements,Other Private Contractors,Farleigh FEC-Frome Priory,22552.28, 25-Nov-2020
1496,Revenue,CAHD,Information Systems - Software,Software Support & Maintenance,Fibonacci Ltd,1800.00, 27-Nov-2020
1497,Revenue,CAHD,North - Community based support,Permanent Nursing,Field House Care Home,3522.56, 17-Nov-2020
1498,Revenue,CAHD,North - Community based support,Permanent Nursing,Field House Care Home,3403.60, 17-Nov-2020
1499,Revenue,CAHD,North - Community based support,Permanent Nursing,Field House Care Home,3589.48, 17-Nov-2020
1500,Revenue,CAHD,Central - Commissioned Services,Permanent Nursing,Field House Care Home,15711.43, 17-Nov-2020
1501,Revenue,CAHD,Central - Commissioned Services,Permanent Nursing,Field House Care Home,3760.00, 17-Nov-2020
1502,Revenue,CAHD,Central - Commissioned Services,Permanent Nursing,Field House Care Home,3740.00, 17-Nov-2020
1503,Revenue,CAHD,North - Community based support,Permanent Nursing,Field House Care Home,2271.72, 17-Nov-2020
1504,Revenue,CAHD,Central - Commissioned Services,Permanent Nursing,Field House Care Home,3740.00, 17-Nov-2020
1505,Revenue,CAHD,North - Community based support,Permanent Nursing,Field House Care Home,2271.72, 17-Nov-2020
1506,Revenue,CAHD,Central - Commissioned Services,Respite Planned - Nursing,Field House Care Home,6277.86, 17-Nov-2020
1507,Revenue,CAHD,North - Community based support,Permanent Nursing,Field House Care Home,3506.00, 17-Nov-2020
1508,Revenue,CAHD,Statemented Support Payments to OLAs,Other L.A.s - General,Filton Avenue Primary School,1131.84, 25-Nov-2020
1509,Revenue,CAHD,Statemented Support Payments to OLAs,Other L.A.s - General,Filton Avenue Primary School,1332.27, 25-Nov-2020
1510,Revenue,CAHD,Covid 19- Spend on behalf of NHS,Respite Planned - Nursing,First Floor  Lingfield House,3800.00, 17-Nov-2020
1511,Revenue,CAHD,Covid 19- Spend on behalf of NHS,Respite Planned - Nursing,First Floor  Lingfield House,3800.00, 17-Nov-2020
1512,Revenue,CAHD,South - Commissioned Services,Permanent Nursing,First Floor  Lingfield House,2554.36, 17-Nov-2020
1513,Revenue,CAHD,South Glos Users in South Glos Homes,Permanent Nursing,First Floor  Lingfield House,735.68, 17-Nov-2020
1514,Revenue,CAHD,Covid 19- Spend on behalf of NHS,Respite Planned - Nursing,First Floor  Lingfield House,3800.00, 17-Nov-2020
1515,Revenue,CAHD,Covid 19- Spend on behalf of NHS,Respite Planned - Nursing,First Floor  Lingfield House,3800.00, 17-Nov-2020
1516,Revenue,CAHD,South - Commissioned Services,Permanent Residential,First Floor  Lingfield House,13994.29, 17-Nov-2020
1517,Revenue,CAHD,South - Commissioned Services,Permanent Residential,First Floor  Lingfield House,3160.00, 17-Nov-2020
1518,Revenue,CAHD,South - Commissioned Services,Fees & Charges Income - General,First Floor  Lingfield House,3596.43, 17-Nov-2020
1519,Revenue,CAHD,Covid 19- Spend on behalf of NHS,Respite Planned - Residential,First Floor  Lingfield House,3800.00, 17-Nov-2020
1520,Revenue,CAHD,Covid 19- Spend on behalf of NHS,Respite Planned - Residential,First Floor  Lingfield House,3800.00, 17-Nov-2020
1521,Revenue,CAHD,South - Commissioned Services,Permanent Residential,First Floor  Lingfield House,3360.00, 17-Nov-2020
1522,Revenue,CAHD,Covid - ASC - Infection Control,Grants to Voluntary Bodies,First Floor  Lingfield House,8362.31, 04-Nov-2020
1523,Revenue,CAHD,EARLY YEARS DEPRIVATION PAYMENT,Preventative Assistance,First Friends (Mangotsfield),553.12, 09-Nov-2020
1524,Revenue,CAHD,EARLY YEARS DEPRIVATION PAYMENT,Preventative Assistance,First Step Pre-School Ltd,1633.16, 09-Nov-2020
1525,Revenue,CAHD,Early Years Pupil Premium Grant,Preventative Assistance,First Step Pre-School Ltd,851.18, 09-Nov-2020
1526,Revenue,CAHD,Early Years Inclusion Fund,Other Public Bodies,First Steps Day Nursery,1000.00, 13-Nov-2020
1527,Revenue,CAHD,CSC - Agency Fostering,Foster Parent Allowances,Foster Care Associates Limited,2240.28, 13-Nov-2020
1528,Revenue,CAHD,CSC - Parent & Child Assessments,Foster Parent Allowances,Foster Care Associates Limited,6882.00, 13-Nov-2020
1529,Revenue,CAHD,CSC - Agency Fostering,Foster Parent Allowances,Foster Care Associates Limited,3769.91, 13-Nov-2020
1530,Revenue,CAHD,CSC - Agency Fostering,Foster Parent Allowances,Foster Care Associates Limited,3937.00, 13-Nov-2020
1531,Revenue,CAHD,CSC - Agency Fostering,Foster Parent Allowances,Foster Care Associates Limited,3664.52, 19-Nov-2020
1532,Revenue,CAHD,CSC - Agency Fostering,Foster Parent Allowances,Fostering Matters Ltd,3520.67, 10-Nov-2020
1533,Revenue,CAHD,CSC - Agency Fostering,Foster Parent Allowances,Fostering Matters Ltd,3520.67, 10-Nov-2020
1534,Revenue,CAHD,Covid 19 -Adult Social Care,Other Small Contracts,Fourways Care Limited,39.84, 06-Nov-2020
1535,Revenue,CAHD,Central - Commissioned Services,Other Small Contracts,Fourways Care Limited,552.06, 06-Nov-2020
1536,Revenue,CAHD,South - Commissioned Services,Other Small Contracts,Fourways Care Limited,808.14, 06-Nov-2020
1537,Revenue,CAHD,North - Community based support,Other Small Contracts,Fourways Care Limited,11063.34, 06-Nov-2020
1538,Revenue,CAHD,Covid 19 -Adult Social Care,Other Small Contracts,Fourways Care Limited,39.84, 06-Nov-2020
1539,Revenue,CAHD,Central - Commissioned Services,Other Small Contracts,Fourways Care Limited,487.32, 06-Nov-2020
1540,Revenue,CAHD,South - Commissioned Services,Other Small Contracts,Fourways Care Limited,828.06, 06-Nov-2020
1541,Revenue,CAHD,North - Community based support,Other Small Contracts,Fourways Care Limited,11012.94, 06-Nov-2020
1542,Revenue,CAHD,Covid 19 -Adult Social Care,Other Small Contracts,Fourways Care Limited,39.84, 11-Nov-2020
1543,Revenue,CAHD,Central - Commissioned Services,Other Small Contracts,Fourways Care Limited,318.00, 11-Nov-2020
1544,Revenue,CAHD,South - Commissioned Services,Other Small Contracts,Fourways Care Limited,778.26, 11-Nov-2020
1545,Revenue,CAHD,North - Community based support,Other Small Contracts,Fourways Care Limited,10932.84, 11-Nov-2020
1546,Revenue,CAHD,Covid 19 -Adult Social Care,Other Small Contracts,Fourways Care Limited,39.84, 19-Nov-2020
1547,Revenue,CAHD,Central - Commissioned Services,Other Small Contracts,Fourways Care Limited,312.00, 19-Nov-2020
1548,Revenue,CAHD,South - Commissioned Services,Other Small Contracts,Fourways Care Limited,763.32, 19-Nov-2020
1549,Revenue,CAHD,North - Community based support,Other Small Contracts,Fourways Care Limited,10036.65, 19-Nov-2020
1550,Revenue,CAHD,Covid - ASC - Infection Control,Grants to Voluntary Bodies,Fourways Care Limited,11022.53, 18-Nov-2020
1551,Revenue,CAHD,Central - Commissioned Services,Other Small Contracts,Freeways Trust Limited,707.04, 13-Nov-2020
1552,Revenue,CAHD,Central - Commissioned Services,Other Small Contracts,Freeways Trust Limited,667.76, 13-Nov-2020
1553,Revenue,CAHD,Central - Commissioned Services,Other Small Contracts,Freeways Trust Limited,589.20, 16-Nov-2020
1554,Revenue,CAHD,South - Commissioned Services,Day Care / Social Activities,Freeways Trust Limited,1139.12, 16-Nov-2020
1555,Revenue,CAHD,Central - Commissioned Services,Other Small Contracts,Freeways Trust Limited,785.60, 16-Nov-2020
1556,Revenue,CAHD,South - Commissioned Services,Day Care / Social Activities,Freeways Trust Limited,1065.47, 18-Nov-2020
1557,Revenue,CAHD,Central - Commissioned Services,Permanent Residential,Freeways Trust Ltd,3968.00, 17-Nov-2020
1558,Revenue,CAHD,Central - Commissioned Services,Permanent Residential,Freeways Trust Ltd,4006.56, 17-Nov-2020
1559,Revenue,CAHD,Central - Commissioned Services,Permanent Residential,Freeways Trust Ltd,33467.10, 17-Nov-2020
1560,Revenue,CAHD,Central - Commissioned Services,Permanent Residential,Freeways Trust Ltd,4462.28, 17-Nov-2020
1561,Revenue,CAHD,Central - Commissioned Services,Fees & Charges Income - General,Freeways Trust Ltd,3120.67, 17-Nov-2020
1562,Revenue,CAHD,Central - Commissioned Services,Permanent Residential,Freeways Trust Ltd,5152.32, 17-Nov-2020
1563,Revenue,CAHD,North - Community based support,Permanent Residential,Freeways Trust Ltd,4009.36, 17-Nov-2020
1564,Revenue,CAHD,Central - Commissioned Services,Permanent Residential,Freeways Trust Ltd,4197.36, 17-Nov-2020
1565,Revenue,CAHD,South - Commissioned Services,Permanent Residential,Freeways Trust Ltd,4431.96, 17-Nov-2020
1566,Revenue,CAHD,Central - Commissioned Services,Permanent Residential,Freeways Trust Ltd,4006.56, 17-Nov-2020
1567,Revenue,CAHD,Central - Commissioned Services,Permanent Residential,Freeways Trust Ltd,4006.56, 17-Nov-2020
1568,Revenue,CAHD,North - Community based support,Permanent Residential,Freeways Trust Ltd,4009.36, 17-Nov-2020
1569,Revenue,CAHD,Central - Commissioned Services,Permanent Residential,Freeways Trust Ltd,5991.92, 17-Nov-2020
1570,Revenue,CAHD,North - Community based support,Supported Living,Freeways Trust Ltd,862.44, 17-Nov-2020
1571,Revenue,CAHD,S28A cases,Permanent Residential,Freeways Trust Ltd,3979.92, 17-Nov-2020
1572,Revenue,CAHD,North - Community based support,Permanent Residential,Freeways Trust Ltd,3853.72, 17-Nov-2020
1573,Revenue,CAHD,North - Community based support,Permanent Residential,Freeways Trust Ltd,3380.28, 17-Nov-2020
1574,Revenue,CAHD,North - Community based support,Permanent Residential,Freeways Trust Ltd,3792.12, 17-Nov-2020
1575,Revenue,CAHD,North - Community based support,Permanent Residential,Freeways Trust Ltd,3768.80, 17-Nov-2020
1576,Revenue,CAHD,Section 117 Placements MH Younger,Permanent Residential,Freeways Trust Ltd,3419.16, 17-Nov-2020
1577,Revenue,CAHD,Central - Commissioned Services,Day Care / Social Activities,Frenchay Beckspool Building,1933.52, 17-Nov-2020
1578,Revenue,CAHD,South - Commissioned Services,Day Care / Social Activities,Frenchay Beckspool Building,920.44, 17-Nov-2020
1579,Revenue,CAHD,South - Commissioned Services,Day Care / Social Activities,Frenchay Beckspool Building,652.88, 17-Nov-2020
1580,Revenue,CAHD,North - Community based support,Permanent Nursing,Frenchay Park Nursing Home,3400.00, 17-Nov-2020
1581,Revenue,CAHD,Early Years High Needs Support,Other Private Contractors,Frenchay Pre School Playgroup,616.50, 25-Nov-2020
1582,Revenue,CAHD,CSC - Social Work Team - CENTRAL,Agency Staff (Admin/Support Staff) Pay,Frontline Staffing Ltd,1497.28, 02-Nov-2020
1583,Revenue,CAHD,CSC - Social Work Team - CENTRAL,Agency Staff (Admin/Support Staff) Pay,Frontline Staffing Ltd,1413.15, 04-Nov-2020
1584,Revenue,CAHD,CSC - Through & Leaving Care Team,Agency Staff (Admin/Support Staff) Pay,Frontline Staffing Ltd,1871.60, 12-Nov-2020
1585,Revenue,CAHD,CSC - Through & Leaving Care Team,Agency Staff (Admin/Support Staff) Pay,Frontline Staffing Ltd,1871.60, 12-Nov-2020
1586,Revenue,CAHD,CSC - Through & Leaving Care Team,Agency Staff (Admin/Support Staff) Pay,Frontline Staffing Ltd,1871.60, 12-Nov-2020
1587,Revenue,CAHD,CSC - Social Work Team - CENTRAL,Agency Staff (Admin/Support Staff) Pay,Frontline Staffing Ltd,1415.40, 12-Nov-2020
1588,Revenue,CAHD,CSC - Through & Leaving Care Team,Agency Staff (Admin/Support Staff) Pay,Frontline Staffing Ltd,1871.60, 13-Nov-2020
1589,Revenue,CAHD,CSC - Social Work Team - CENTRAL,Agency Staff (Admin/Support Staff) Pay,Frontline Staffing Ltd,1416.30, 16-Nov-2020
1590,Revenue,CAHD,CSC - Social Work Team - CENTRAL,Agency Staff (Admin/Support Staff) Pay,Frontline Staffing Ltd,1842.99, 20-Nov-2020
1591,Revenue,CAHD,CSC - Social Work Team - SOUTH,Agency Staff (Admin/Support Staff) Pay,Frontline Staffing Ltd,1433.40, 26-Nov-2020
1592,Revenue,CAHD,CSC - Social Work Team - SOUTH,Agency Staff (Admin/Support Staff) Pay,Frontline Staffing Ltd,1821.72, 26-Nov-2020
1593,Revenue,CAHD,CAH Director,Other Supplies & Services,Gatenby Sanderson Limited,11085.00, 16-Nov-2020
1594,Revenue,CAHD,North - Community based support,Supported Living,Gladstone House,3237.64, 17-Nov-2020
1595,Revenue,CAHD,18-25 Year Olds,Supported Living,Gladstone House,3237.64, 17-Nov-2020
1596,Revenue,CAHD,South - Commissioned Services,Permanent Residential,Gladstone House,5999.84, 17-Nov-2020
1597,Revenue,CAHD,MH Purchasing - Younger,Permanent Residential,Gladstone House,3135.90, 17-Nov-2020
1598,Revenue,CAHD,Jointly Funded H&SC Packages,Permanent Residential,Gladstone House,783.98, 17-Nov-2020
1599,Revenue,CAHD,North - Community based support,Permanent Residential,Glan Y Felin,6803.40, 17-Nov-2020
1600,Revenue,CAHD,South - Commissioned Services,Permanent Residential,Glasallt Fawr,5550.16, 17-Nov-2020
1601,Revenue,CAHD,North - Community based support,Permanent Nursing,Glebe House Nursing Home,3737.44, 17-Nov-2020
1602,Revenue,CAHD,South Glos Users in South Glos Homes,Permanent Nursing,Glebe House Nursing Home,735.68, 17-Nov-2020
1603,Revenue,CAHD,North - Community based support,Permanent Nursing,Glebe House Nursing Home,4052.60, 17-Nov-2020
1604,Revenue,CAHD,South Glos Users in South Glos Homes,Permanent Nursing,Glebe House Nursing Home,735.68, 17-Nov-2020
1605,Revenue,CAHD,South Glos Users in South Glos Homes,Permanent Nursing,Glebe House Nursing Home,735.68, 17-Nov-2020
1606,Revenue,CAHD,South Glos Users in South Glos Homes,Permanent Nursing,Glebe House Nursing Home,735.68, 17-Nov-2020
1607,Revenue,CAHD,North - Community based support,Permanent Nursing,Glebe House Nursing Home,3998.40, 17-Nov-2020
1608,Revenue,CAHD,South Glos Users in South Glos Homes,Permanent Nursing,Glebe House Nursing Home,735.68, 17-Nov-2020
1609,Revenue,CAHD,South Glos Users in South Glos Homes,Permanent Nursing,Glebe House Nursing Home,735.68, 17-Nov-2020
1610,Revenue,CAHD,North - Community based support,Permanent Residential,Glebe House Nursing Home,3910.52, 17-Nov-2020
1611,Revenue,CAHD,South Glos Users in South Glos Homes,Permanent Nursing,Glebe House Nursing Home,735.68, 17-Nov-2020
1612,Revenue,CAHD,South Glos Users in South Glos Homes,Permanent Nursing,Glebe House Nursing Home,735.68, 17-Nov-2020
1613,Revenue,CAHD,South Glos Users in South Glos Homes,Permanent Nursing,Glebe House Nursing Home,735.68, 17-Nov-2020
1614,Revenue,CAHD,North - Community based support,Permanent Nursing,Glebe House Nursing Home,4048.60, 17-Nov-2020
1615,Revenue,CAHD,South Glos Users in South Glos Homes,Permanent Nursing,Glebe House Nursing Home,735.68, 17-Nov-2020
1616,Revenue,CAHD,Central - Commissioned Services,Permanent Residential,Glebe House Nursing Home,3980.00, 17-Nov-2020
1617,Revenue,CAHD,South Glos Users in South Glos Homes,Permanent Nursing,Glebe House Nursing Home,735.68, 17-Nov-2020
1618,Revenue,CAHD,Central - Commissioned Services,Permanent Nursing,Glebe House Nursing Home,4120.00, 17-Nov-2020
1619,Revenue,CAHD,North - Community based support,Permanent Nursing,Glebe House Nursing Home,4080.00, 17-Nov-2020
1620,Revenue,CAHD,South Glos Users in South Glos Homes,Permanent Nursing,Glebe House Nursing Home,735.68, 17-Nov-2020
1621,Revenue,CAHD,South Glos Users in South Glos Homes,Permanent Nursing,Glebe House Nursing Home,735.68, 17-Nov-2020
1622,Revenue,CAHD,North - Community based support,Permanent Nursing,Glebe House Nursing Home,4039.36, 17-Nov-2020
1623,Revenue,CAHD,South Glos Users in South Glos Homes,Permanent Nursing,Glebe House Nursing Home,735.68, 17-Nov-2020
1624,Revenue,CAHD,North - Community based support,Permanent Nursing,Glebe House Nursing Home,4080.00, 17-Nov-2020
1625,Revenue,CAHD,South Glos Users in South Glos Homes,Permanent Nursing,Glebe House Nursing Home,735.68, 17-Nov-2020
1626,Revenue,CAHD,North - Community based support,Permanent Residential,Glebe House Nursing Home,5051.24, 17-Nov-2020
1627,Revenue,CAHD,South Glos Users in South Glos Homes,Permanent Nursing,Glebe House Nursing Home,735.68, 17-Nov-2020
1628,Revenue,CAHD,South Glos Users in South Glos Homes,Permanent Nursing,Glebe House Nursing Home,735.68, 17-Nov-2020
1629,Revenue,CAHD,South Glos Users in South Glos Homes,Permanent Nursing,Glebe House Nursing Home,735.68, 17-Nov-2020
1630,Revenue,CAHD,South Glos Users in South Glos Homes,Permanent Nursing,Glebe House Nursing Home,735.68, 17-Nov-2020
1631,Revenue,CAHD,North - Community based support,Permanent Nursing,Glebe House Nursing Home,3572.12, 17-Nov-2020
1632,Revenue,CAHD,South Glos Users in South Glos Homes,Permanent Nursing,Glebe House Nursing Home,735.68, 17-Nov-2020
1633,Revenue,CAHD,South Glos Users in South Glos Homes,Permanent Nursing,Glebe House Nursing Home,735.68, 17-Nov-2020
1634,Revenue,CAHD,Covid - ASC - Infection Control,Grants to Voluntary Bodies,Glebe House Nursing Home,18466.77, 04-Nov-2020
1635,Revenue,CAHD,Central - Commissioned Services,Permanent Nursing,Glenview Care Home,3224.00, 17-Nov-2020
1636,Revenue,CAHD,South - Commissioned Services,Permanent Nursing,Glenview Care Home,3220.00, 17-Nov-2020
1637,Revenue,CAHD,North - Community based support,Permanent Nursing,Glenview Care Home,3600.00, 17-Nov-2020
1638,Revenue,CAHD,North - Community based support,Permanent Nursing,Glenview Care Home,3224.00, 17-Nov-2020
1639,Revenue,CAHD,North - Community based support,Fees & Charges Income - General,Glenview Care Home,2138.16, 17-Nov-2020
1640,Revenue,CAHD,South - Commissioned Services,Respite Emergency - Residential,Glenview Care Home,14382.86, 17-Nov-2020
1641,Revenue,CAHD,South - Commissioned Services,Respite Emergency - Residential,Glenview Care Home,3857.14, 17-Nov-2020
1642,Revenue,CAHD,Sexual Health,Other Small Contracts,Gloucestershire Health & Care Services NHS FT,927.00, 10-Nov-2020
1643,Revenue,CAHD,Training Budget - Children`s Social Serv,Training Expenses,GM Tree Training Ltd,550.00, 06-Nov-2020
1644,Revenue,CAHD,South - Commissioned Services,Permanent Residential,Gordena Care Home,4018.92, 17-Nov-2020
1645,Revenue,CAHD,South - Commissioned Services,Respite Planned - Residential,Gordena Care Home,2947.35, 17-Nov-2020
1646,Revenue,CAHD,South - Commissioned Services,Permanent Residential,Gordena Care Home,2790.84, 17-Nov-2020
1647,Revenue,CAHD,South - Commissioned Services,Respite Planned - Residential,Gordena Care Home,1646.60, 17-Nov-2020
1648,Revenue,CAHD,South - Commissioned Services,Respite Planned - Residential,Gordena Care Home,1161.95, 17-Nov-2020
1649,Revenue,CAHD,South - Commissioned Services,Respite Planned - Residential,Gordena Care Home,1072.20, 17-Nov-2020
1650,Revenue,CAHD,South - Commissioned Services,Respite Planned - Residential,Gordena Care Home,982.45, 17-Nov-2020
1651,Revenue,CAHD,South - Commissioned Services,Permanent Residential,Gordena Care Home,3973.32, 17-Nov-2020
1652,Revenue,CAHD,South - Commissioned Services,Permanent Residential,Gordena Care Home,3985.44, 17-Nov-2020
1653,Revenue,CAHD,CSC - Legal Fees,Legal Fees,Individual,650.00, 16-Nov-2020
1654,Revenue,CAHD,CSC - Legal Fees,Legal Fees,Individual,650.00, 16-Nov-2020
1655,Revenue,CAHD,18-25 Year Olds,Supported Living,Granville House,1940.60, 17-Nov-2020
1656,Revenue,CAHD,South - Commissioned Services,Supported Living,Granville House,1941.20, 17-Nov-2020
1657,Revenue,CAHD,South - Commissioned Services,Supported Living,Granville House,1940.32, 17-Nov-2020
1658,Revenue,CAHD,North - S117,Permanent Nursing,Grasmere Rest Home,3800.00, 17-Nov-2020
1659,Revenue,CAHD,CSC - Residential Placements,Permanent Residential,Greenfields Adolecent Development Limited,26527.14, 30-Nov-2020
1660,Revenue,CAHD,CSC - Care Leavers Independent Living,Adults - Family Support,Greenfields Adolecent Development Limited,7528.57, 30-Nov-2020
1661,Revenue,CAHD,EARLY YEARS DEPRIVATION PAYMENT,Preventative Assistance,Greenshaw Learning Trust T/A Woodlands Primary,1189.78, 09-Nov-2020
1662,Revenue,CAHD,Early Years Pupil Premium Grant,Preventative Assistance,Greenshaw Learning Trust T/A Woodlands Primary,620.10, 09-Nov-2020
1663,Revenue,CAHD,Statemented Support Academies,Other Public Bodies,Greenshaw Learning Trust T/A Woodlands Primary,554.13, 25-Nov-2020
1664,Revenue,CAHD,Statemented Support Academies,Other Public Bodies,Greenshaw Learning Trust T/A Woodlands Primary,1072.89, 25-Nov-2020
1665,Revenue,CAHD,Statemented Support Academies,Other Public Bodies,Greenshaw Learning Trust T/A Woodlands Primary,837.09, 25-Nov-2020
1666,Revenue,CAHD,Statemented Support Academies,Other Public Bodies,Greenshaw Learning Trust T/A Woodlands Primary,742.77, 25-Nov-2020
1667,Revenue,CAHD,Statemented Support Academies,Other Public Bodies,Greenshaw Learning Trust T/A Woodlands Primary,778.14, 25-Nov-2020
1668,Revenue,CAHD,Statemented Support Academies,Other Public Bodies,Greenshaw Learning Trust T/A Woodlands Primary,860.67, 25-Nov-2020
1669,Revenue,CAHD,Academy Resource Base Funding,Other Public Bodies,Greenshaw Learning Trust T/A Woodlands Primary,627.78, 24-Nov-2020
1670,Revenue,CAHD,Academy Resource Base Funding,Other Public Bodies,Greenshaw Learning Trust T/A Woodlands Primary,1137.94, 24-Nov-2020
1671,Revenue,CAHD,Statemented Support Academies,Other Public Bodies,Greenshaw Learning Trust T/A Yate Academy,589.50, 25-Nov-2020
1672,Revenue,CAHD,Statemented Support Academies,Other Public Bodies,Greenshaw Learning Trust T/A Yate Academy,707.40, 25-Nov-2020
1673,Revenue,CAHD,Statemented Support Academies,Other Public Bodies,Greenshaw Learning Trust T/A Yate Academy,1320.48, 25-Nov-2020
1674,Revenue,CAHD,Statemented Support Academies,Other Public Bodies,Greenshaw Learning Trust T/A Yate Academy,1320.48, 25-Nov-2020
1675,Revenue,CAHD,Statemented Support Academies,Other Public Bodies,Greenshaw Learning Trust T/A Yate Academy,1209.92, 25-Nov-2020
1676,Revenue,CAHD,Statemented Support Academies,Other Public Bodies,Greenshaw Learning Trust T/A Yate Academy,1072.89, 25-Nov-2020
1677,Revenue,CAHD,Statemented Support Academies,Other Public Bodies,Greenshaw Learning Trust T/A Yate Academy,801.72, 25-Nov-2020
1678,Revenue,CAHD,Statemented Support Academies,Other Public Bodies,Greenshaw Learning Trust T/A Yate Academy,541.58, 25-Nov-2020
1679,Revenue,CAHD,Statemented Support Academies,Other Public Bodies,Greenshaw Learning Trust T/A Yate Academy,601.29, 25-Nov-2020
1680,Revenue,CAHD,Statemented Support Academies,Other Public Bodies,Greenshaw Learning Trust T/A Yate Academy,624.87, 25-Nov-2020
1681,Revenue,CAHD,Statemented Support Academies,Other Public Bodies,Greenshaw Learning Trust T/A Yate Academy,624.87, 25-Nov-2020
1682,Revenue,CAHD,Academy Resource Base Funding,Other Public Bodies,Greenshaw Learning Trust T/A Yate Academy,1491.12, 24-Nov-2020
1683,Revenue,CAHD,Academy Resource Base Funding,Other Public Bodies,Greenshaw Learning Trust T/A Yate Academy,981.04, 24-Nov-2020
1684,Revenue,CAHD,Academy Resource Base Funding,Other Public Bodies,Greenshaw Learning Trust T/A Yate Academy,1491.12, 24-Nov-2020
1685,Revenue,CAHD,South - Commissioned Services,Permanent Residential,Gwendoline House,2522.88, 17-Nov-2020
1686,Revenue,CAHD,South - Commissioned Services,Permanent Residential,Gwendoline House,2652.00, 17-Nov-2020
1687,Revenue,CAHD,Covid - ASC - Infection Control,Grants to Voluntary Bodies,Gwendoline House,5574.87, 25-Nov-2020
1688,Revenue,CAHD,North - Community based support,Other Small Contracts,H F T,706.84, 23-Nov-2020
1689,Revenue,CAHD,North - Community based support,Other Small Contracts,H F T,517.20, 26-Nov-2020
1690,Revenue,CAHD,Social Lettings Agency,Rent,Individual,577.72, 27-Nov-2020
1691,Revenue,CAHD,Social Lettings Agency,Fees - General,Individual,13.13, 27-Nov-2020
1692,Revenue,CAHD,CSC - Through & Leaving Care Team,Agency Staff (Admin/Support Staff) Pay,Hampton`s Resourcing,1668.70, 25-Nov-2020
1693,Revenue,CAHD,CSC - Through & Leaving Care Team,Agency Staff (Admin/Support Staff) Pay,Hampton`s Resourcing,1668.70, 17-Nov-2020
1694,Revenue,CAHD,CSC - Through & Leaving Care Team,Agency Staff (Admin/Support Staff) Pay,Hampton`s Resourcing,2277.55, 18-Nov-2020
1695,Revenue,CAHD,CSC - Through & Leaving Care Team,Agency Staff (Admin/Support Staff) Pay,Hampton`s Resourcing,1668.70, 24-Nov-2020
1696,Revenue,CAHD,CSC - Through & Leaving Care Team,Agency Staff (Admin/Support Staff) Pay,Hampton`s Resourcing,1725.08, 24-Nov-2020
1697,Revenue,CAHD,CSC - Through & Leaving Care Team,Agency Staff (Admin/Support Staff) Pay,Hampton`s Resourcing,3202.10, 03-Nov-2020
1698,Revenue,CAHD,Early Years Inclusion Fund,Other Public Bodies,Hanham Toddlers Pre School,2000.00, 06-Nov-2020
1699,Revenue,CAHD,EARLY YEARS DEPRIVATION PAYMENT,Preventative Assistance,Happy Days Day Nursery - Cheswick Village,1001.66, 09-Nov-2020
1700,Revenue,CAHD,Early Years Pupil Premium Grant,Preventative Assistance,Happy Days Day Nursery - Cheswick Village,522.05, 09-Nov-2020
1701,Revenue,CAHD,CSC - LAC Placements,Client Transport,Hartpury College,4533.00, 12-Nov-2020
1702,Revenue,CAHD,Home Care Monitoring (CM2000),Other Supplies & Services,HAS Technology Limited T/A CM2000,9643.14, 05-Nov-2020
1703,Revenue,CAHD,Home Care Monitoring (CM2000),Other Supplies & Services,HAS Technology Limited T/A CM2000,1610.00, 30-Nov-2020
1704,Revenue,CAHD,North - Community based support,Permanent Nursing,Head Office,4554.08, 17-Nov-2020
1705,Revenue,CAHD,CSC - Residential Placements,Permanent Residential,Headway Adolescent Resources Limited,15200.00, 11-Nov-2020
1706,Revenue,CAHD,Central - Commissioned Services,Day Care / Social Activities,Headway Bristol,383.52, 02-Nov-2020
1707,Revenue,CAHD,Central - Commissioned Services,Other Small Contracts,Headway Bristol,338.40, 02-Nov-2020
1708,Revenue,CAHD,South - Commissioned Services,Day Care / Social Activities,Headway Bristol,135.36, 02-Nov-2020
1709,Revenue,CAHD,South - Commissioned Services,Other Small Contracts,Headway Bristol,203.04, 02-Nov-2020
1710,Revenue,CAHD,Younger MH non-res purchasing,Day Care / Social Activities,Headway Bristol,45.12, 02-Nov-2020
1711,Revenue,CAHD,Central - Commissioned Services,Day Care / Social Activities,Headway Bristol,315.84, 09-Nov-2020
1712,Revenue,CAHD,Central - Commissioned Services,Other Small Contracts,Headway Bristol,473.76, 09-Nov-2020
1713,Revenue,CAHD,South - Commissioned Services,Day Care / Social Activities,Headway Bristol,135.36, 09-Nov-2020
1714,Revenue,CAHD,South - Commissioned Services,Other Small Contracts,Headway Bristol,135.36, 09-Nov-2020
1715,Revenue,CAHD,North - Community based support,Day Care / Social Activities,Headway Bristol,67.68, 09-Nov-2020
1716,Revenue,CAHD,Younger MH non-res purchasing,Day Care / Social Activities,Headway Bristol,45.12, 09-Nov-2020
1717,Revenue,CAHD,Central - Commissioned Services,Day Care / Social Activities,Headway Bristol,428.64, 16-Nov-2020
1718,Revenue,CAHD,Central - Commissioned Services,Other Small Contracts,Headway Bristol,406.08, 16-Nov-2020
1719,Revenue,CAHD,South - Commissioned Services,Day Care / Social Activities,Headway Bristol,135.36, 16-Nov-2020
1720,Revenue,CAHD,South - Commissioned Services,Other Small Contracts,Headway Bristol,135.36, 16-Nov-2020
1721,Revenue,CAHD,North - Community based support,Day Care / Social Activities,Headway Bristol,67.68, 16-Nov-2020
1722,Revenue,CAHD,Younger MH non-res purchasing,Day Care / Social Activities,Headway Bristol,45.12, 16-Nov-2020
1723,Revenue,CAHD,Central - Commissioned Services,Day Care / Social Activities,Headway Bristol,315.84, 24-Nov-2020
1724,Revenue,CAHD,Central - Commissioned Services,Other Small Contracts,Headway Bristol,541.44, 24-Nov-2020
1725,Revenue,CAHD,South - Commissioned Services,Day Care / Social Activities,Headway Bristol,135.36, 24-Nov-2020
1726,Revenue,CAHD,South - Commissioned Services,Other Small Contracts,Headway Bristol,135.36, 24-Nov-2020
1727,Revenue,CAHD,North - Community based support,Day Care / Social Activities,Headway Bristol,67.68, 24-Nov-2020
1728,Revenue,CAHD,Central - Commissioned Services,Day Care / Social Activities,Headway Bristol,315.84, 30-Nov-2020
1729,Revenue,CAHD,Central - Commissioned Services,Other Small Contracts,Headway Bristol,338.40, 30-Nov-2020
1730,Revenue,CAHD,South - Commissioned Services,Day Care / Social Activities,Headway Bristol,135.36, 30-Nov-2020
1731,Revenue,CAHD,South - Commissioned Services,Other Small Contracts,Headway Bristol,203.04, 30-Nov-2020
1732,Revenue,CAHD,North - Community based support,Day Care / Social Activities,Headway Bristol,67.68, 30-Nov-2020
1733,Revenue,CAHD,Central - Commissioned Services,Permanent Nursing,Healthcare Home Spring Limited,2445.96, 17-Nov-2020
1734,Revenue,CAHD,South Glos Users in South Glos Homes,Permanent Nursing,Healthcare Home Spring Limited,735.68, 17-Nov-2020
1735,Revenue,CAHD,Central - Commissioned Services,Permanent Nursing,Healthcare Home Spring Limited,2445.96, 17-Nov-2020
1736,Revenue,CAHD,South Glos Users in South Glos Homes,Permanent Nursing,Healthcare Home Spring Limited,735.68, 17-Nov-2020
1737,Revenue,CAHD,South Glos Users in South Glos Homes,Permanent Nursing,Healthcare Home Spring Limited,735.68, 17-Nov-2020
1738,Revenue,CAHD,Central - Commissioned Services,Permanent Residential,Healthcare Home Spring Limited,2274.92, 17-Nov-2020
1739,Revenue,CAHD,South Glos Users in South Glos Homes,Permanent Nursing,Healthcare Home Spring Limited,735.68, 17-Nov-2020
1740,Revenue,CAHD,South Glos Users in South Glos Homes,Permanent Nursing,Healthcare Home Spring Limited,735.68, 17-Nov-2020
1741,Revenue,CAHD,Central - Commissioned Services,Permanent Nursing,Healthcare Home Spring Limited,2521.04, 17-Nov-2020
1742,Revenue,CAHD,South Glos Users in South Glos Homes,Permanent Nursing,Healthcare Home Spring Limited,735.68, 17-Nov-2020
1743,Revenue,CAHD,South Glos Users in South Glos Homes,Permanent Nursing,Healthcare Home Spring Limited,735.68, 17-Nov-2020
1744,Revenue,CAHD,North - Community based support,Permanent Nursing,Healthcare Home Spring Limited,2445.96, 17-Nov-2020
1745,Revenue,CAHD,South Glos Users in South Glos Homes,Permanent Nursing,Healthcare Home Spring Limited,735.68, 17-Nov-2020
1746,Revenue,CAHD,Central - Commissioned Services,Permanent Nursing,Healthcare Home Spring Limited,22951.80, 17-Nov-2020
1747,Revenue,CAHD,Central - Commissioned Services,Fees & Charges Income - General,Healthcare Home Spring Limited,15126.00, 17-Nov-2020
1748,Revenue,CAHD,Central - Commissioned Services,Permanent Nursing,Healthcare Home Spring Limited,8087.78, 17-Nov-2020
1749,Revenue,CAHD,Central - Commissioned Services,Permanent Nursing,Healthcare Home Spring Limited,3060.24, 17-Nov-2020
1750,Revenue,CAHD,South Glos Users in South Glos Homes,Permanent Nursing,Healthcare Home Spring Limited,735.68, 17-Nov-2020
1751,Revenue,CAHD,Central - Commissioned Services,Fees & Charges Income - General,Healthcare Home Spring Limited,1484.51, 17-Nov-2020
1752,Revenue,CAHD,Central - Commissioned Services,Fees & Charges Income - General,Healthcare Home Spring Limited,6732.86, 17-Nov-2020
1753,Revenue,CAHD,Central - Commissioned Services,Fees & Charges Income - General,Healthcare Home Spring Limited,4444.24, 17-Nov-2020
1754,Revenue,CAHD,Central - Commissioned Services,Permanent Residential,Healthcare Home Spring Limited,2823.36, 17-Nov-2020
1755,Revenue,CAHD,North - Community based support,Permanent Nursing,Healthcare Home Spring Limited,2445.96, 17-Nov-2020
1756,Revenue,CAHD,South Glos Users in South Glos Homes,Permanent Nursing,Healthcare Home Spring Limited,735.68, 17-Nov-2020
1757,Revenue,CAHD,South Glos Users in South Glos Homes,Permanent Nursing,Healthcare Home Spring Limited,735.68, 17-Nov-2020
1758,Revenue,CAHD,Central - Commissioned Services,Permanent Nursing,Healthcare Home Spring Limited,2521.04, 17-Nov-2020
1759,Revenue,CAHD,South Glos Users in South Glos Homes,Permanent Nursing,Healthcare Home Spring Limited,735.68, 17-Nov-2020
1760,Revenue,CAHD,South Glos Users in South Glos Homes,Permanent Nursing,Healthcare Home Spring Limited,735.68, 17-Nov-2020
1761,Revenue,CAHD,South Glos Users in South Glos Homes,Permanent Nursing,Healthcare Home Spring Limited,735.68, 17-Nov-2020
1762,Revenue,CAHD,Central - Bed Purchasing and Direct Payments,Permanent Nursing,Healthcare Home Spring Limited,2445.96, 17-Nov-2020
1763,Revenue,CAHD,Central - Commissioned Services,Permanent Residential,Healthcare Home Spring Limited,2823.36, 17-Nov-2020
1764,Revenue,CAHD,South Glos Users in South Glos Homes,Permanent Nursing,Healthcare Home Spring Limited,735.68, 17-Nov-2020
1765,Revenue,CAHD,Central - Commissioned Services,Permanent Nursing,Healthcare Home Spring Limited,2445.96, 17-Nov-2020
1766,Revenue,CAHD,South Glos Users in South Glos Homes,Permanent Nursing,Healthcare Home Spring Limited,735.68, 17-Nov-2020
1767,Revenue,CAHD,South Glos Users in South Glos Homes,Permanent Nursing,Healthcare Home Spring Limited,735.68, 17-Nov-2020
1768,Revenue,CAHD,South Glos Users in South Glos Homes,Permanent Nursing,Healthcare Home Spring Limited,735.68, 17-Nov-2020
1769,Revenue,CAHD,Central - Commissioned Services,Permanent Nursing,Healthcare Home Spring Limited,3001.22, 17-Nov-2020
1770,Revenue,CAHD,Central - Commissioned Services,Permanent Nursing,Healthcare Home Spring Limited,2471.60, 17-Nov-2020
1771,Revenue,CAHD,South Glos Users in South Glos Homes,Permanent Nursing,Healthcare Home Spring Limited,735.68, 17-Nov-2020
1772,Revenue,CAHD,South Glos Users in South Glos Homes,Permanent Nursing,Healthcare Home Spring Limited,735.68, 17-Nov-2020
1773,Revenue,CAHD,Central - Commissioned Services,Permanent Residential,Healthcare Home Spring Limited,8106.29, 17-Nov-2020
1774,Revenue,CAHD,Central - Commissioned Services,Permanent Residential,Healthcare Home Spring Limited,2768.00, 17-Nov-2020
1775,Revenue,CAHD,South Glos Users in South Glos Homes,Permanent Nursing,Healthcare Home Spring Limited,735.68, 17-Nov-2020
1776,Revenue,CAHD,South Glos Users in South Glos Homes,Permanent Nursing,Healthcare Home Spring Limited,735.68, 17-Nov-2020
1777,Revenue,CAHD,South Glos Users in South Glos Homes,Permanent Nursing,Healthcare Home Spring Limited,735.68, 17-Nov-2020
1778,Revenue,CAHD,South Glos Users in South Glos Homes,Permanent Nursing,Healthcare Home Spring Limited,3441.93, 17-Nov-2020
1779,Revenue,CAHD,South Glos Users in South Glos Homes,Permanent Nursing,Healthcare Home Spring Limited,735.68, 17-Nov-2020
1780,Revenue,CAHD,North - Community based support,Respite Planned - Nursing,Healthcare Home Spring Limited,3597.00, 17-Nov-2020
1781,Revenue,CAHD,Central - Commissioned Services,Permanent Nursing,Healthcare Home Spring Limited,2445.96, 17-Nov-2020
1782,Revenue,CAHD,South Glos Users in South Glos Homes,Permanent Nursing,Healthcare Home Spring Limited,735.68, 17-Nov-2020
1783,Revenue,CAHD,Central - Commissioned Services,Permanent Nursing,Healthcare Home Spring Limited,2357.44, 17-Nov-2020
